{"text_format":"1","workbook":"xlsx","n_sheets":13,"sheets":["Wegleitung-Mode d'emploi","Grunddaten-Données de base","Rindvieh-Bovins","A. RF-Verzehrer-A.a.cons. du FG","Schweine-Porcs","Geflügel-Volaille","Oberflächen-Surfaces"," Wasser-Eau","Resultat-Résultat","Tierkategorien_GRUD","Wasser_GRUD","Texte","Auswahl"],"not_rendered":{"charts":0,"images":9,"macros":1,"external_links":0,"defined_names":9,"comments":2,"pivot_tables":0},"unopened":[],"bounds":{"document_bytes":16777216,"sheet_cells":100000,"rows_first":2000,"rows_last":500,"rows_between":2000,"halvings":0,"cell_chars":16384,"cell_head_chars":4096},"cells_cut":0,"cells_raw":0,"read":"whole","date_system":"1900"}

{"sheet":"Wegleitung-Mode d'emploi","index":0,"n_rows":0,"n_cols":0,"rows_kept":0,"cut":false,"hidden":false,"merged":[]}

{"sheet":"Grunddaten-Données de base","index":1,"n_rows":18,"n_cols":4,"rows_kept":18,"cut":false,"hidden":false,"merged":[]}
["Betrieb / Exploitation","Kt. Betriebsnummer / Numéro cantonal"]
[]
[null,"Name des Betriebs / Nom de l'exploitation"]
[]
[null,"Adresse"]
[]
[null," PLZ Ort / NP Lieu"]
[]
[null,"Sprache / Langue",null,"fr."]
[]
[null,"Niederschläge/Jahr (mm) / Précipitations/an (mm)",null,1000]
[]
[]
[]
[null,"Haushaltabwasser in Güllegrube ? / Eaux usées dans la fosse ?",null,"Nein"]
[]
[null,"Sanitäre Verhältnisse / Installations sanitaires",null,"Normale Verhältnisse (Dusche/Bad, WC, Waschmachine)"]
[null,"Anzahl Zimmer / Nombre de chambres",null,0]

{"sheet":"Rindvieh-Bovins","index":2,"n_rows":34,"n_cols":45,"rows_kept":34,"cut":false,"hidden":false,"merged":[[0,3,0,4],[0,40,0,41],[0,27,0,28],[0,7,0,10],[0,16,0,19],[0,31,0,32],[0,34,0,35],[0,36,0,39],[0,11,0,14]]}
[{"$f":"IF('Grunddaten-Données de base'!$D$9=\"dt.\",Texte!A35,Texte!B35)","v":"Catégorie"},null,null,{"$f":"IF('Grunddaten-Données de base'!$D$9=\"dt.\",Texte!A40,Texte!B40)","v":"Sorties / pâturage"},null,null,null,"NS-Anfall / Einheit",null,null,null,{"$f":"IF('Grunddaten-Données de base'!$D$9=\"dt.\",Texte!A44,Texte!B44)","v":"Prod. d'éléments nutr. / unité"},null,null,null,null,{"$f":"IF('Grunddaten-Données de base'!$D$9=\"dt.\",Texte!A46,Texte!B46)","v":"Total prod. d'éléments nutr."},null,null,null,null,"GVE-Faktor","GVE",null,{"$f":"IF('Grunddaten-Données de base'!$D$9=\"dt.\",Texte!A66,Texte!B66)","v":"Prod. d'engrais organiques selon système de stabulation"},{"$f":"IF('Grunddaten-Données de base'!$D$9=\"dt.\",Texte!A48,Texte!B48)","v":"Proportion fumier / lisier"},"Gülle","Mist / Gülle",null,"Mist",{"$f":"IF('Grunddaten-Données de base'!$D$9=\"dt.\",Texte!A49,Texte!B49)","v":"Lisier"},{"$f":"IF('Grunddaten-Données de base'!$D$9=\"dt.\",Texte!A50,Texte!B50)","v":"Fumier / lisier"},null,{"$f":"IF('Grunddaten-Données de base'!$D$9=\"dt.\",Texte!A53,Texte!B53)","v":"Fumier"},{"$f":"IF('Grunddaten-Données de base'!$D$9=\"dt.\",Texte!A54,Texte!B54)","v":"Lisier (m3)"},null,{"$f":"IF('Grunddaten-Données de base'!$D$9=\"dt.\",Texte!A50,Texte!B50)","v":"Fumier / lisier"},null,null,null,{"$f":"IF('Grunddaten-Données de base'!$D$9=\"dt.\",Texte!A53,Texte!B53)","v":"Fumier"}]
[{"$f":"IF('Grunddaten-Données de base'!$D$9=\"dt.\",Texte!A36,Texte!B36)","v":"Bovins"},{"$f":"IF('Grunddaten-Données de base'!$D$9=\"dt.\",Texte!A38,Texte!B38)","v":"Nombre"},{"$f":"IF('Grunddaten-Données de base'!$D$9=\"dt.\",Texte!A39,Texte!B39)","v":"Unité"},{"$f":"IF('Grunddaten-Données de base'!$D$9=\"dt.\",Texte!A41,Texte!B41)","v":"Jours / an"},{"$f":"IF('Grunddaten-Données de base'!$D$9=\"dt.\",Texte!A42,Texte!B42)","v":"h / jour"},null,{"$f":"IF('Grunddaten-Données de base'!$D$9=\"dt.\",Texte!A43,Texte!B43)","v":"Nbre corrigé"},"N","P2O5","K2O","Mg",{"$f":"IF('Grunddaten-Données de base'!$D$9=\"dt.\",Texte!A45,Texte!B45)","v":"Nstock"},"P2O5","K20","Mg",null,{"$f":"IF('Grunddaten-Données de base'!$D$9=\"dt.\",Texte!A45,Texte!B45)","v":"Nstock"},"P2O5","K2O","Mg",null,null,null,null,null,null,"Vollgülle (m3)","Gülle kotarm (m3)","Mist (t)","Mist (t)",{"$f":"IF('Grunddaten-Données de base'!$D$9=\"dt.\",Texte!A55,Texte!B55)","v":"Lisier complet (m3)"},{"$f":"IF('Grunddaten-Données de base'!$D$9=\"dt.\",Texte!A51,Texte!B51)","v":"Lisier clair (m3)"},{"$f":"IF('Grunddaten-Données de base'!$D$9=\"dt.\",Texte!A52,Texte!B52)","v":"Fumier (t)"},{"$f":"IF('Grunddaten-Données de base'!$D$9=\"dt.\",Texte!A52,Texte!B52)","v":"Fumier (t)"},{"$f":"IF('Grunddaten-Données de base'!$D$9=\"dt.\",Texte!A55,Texte!B55)","v":"Lisier complet (m3)"},{"$f":"IF('Grunddaten-Données de base'!$D$9=\"dt.\",Texte!A56,Texte!B56)","v":"Fosse à lisier"},{"$f":"IF('Grunddaten-Données de base'!$D$9=\"dt.\",Texte!A57,Texte!B57)","v":"Lisier clair (m3)"},{"$f":"IF('Grunddaten-Données de base'!$D$9=\"dt.\",Texte!A56,Texte!B56)","v":"Fosse à lisier"},{"$f":"IF('Grunddaten-Données de base'!$D$9=\"dt.\",Texte!A52,Texte!B52)","v":"Fumier (t)"},{"$f":"IF('Grunddaten-Données de base'!$D$9=\"dt.\",Texte!A58,Texte!B58)","v":"Fumière"},{"$f":"IF('Grunddaten-Données de base'!$D$9=\"dt.\",Texte!A52,Texte!B52)","v":"Fumier (t)"},{"$f":"IF('Grunddaten-Données de base'!$D$9=\"dt.\",Texte!A58,Texte!B58)","v":"Fumière"}]
[]
[{"$f":"IF('Grunddaten-Données de base'!$D$9=\"dt.\",Texte!A37,Texte!B37)","v":"Moyenne annuelle de la production laitière"},7500]
[]
[null,null,{"$f":"IF('Grunddaten-Données de base'!$D$9=\"dt.\",IF($A6=\"\",\"\",INDEX(Tierkategorien_GRUD!$A$7:$R$25,MATCH('Rindvieh-Bovins'!$A6,Tierkategorien_GRUD!$A$7:$A$25),2)),IF($A6=\"\",\"\",INDEX(Tierkategorien_GRUD!$A$7:$R$25,MATCH('Rindvieh-Bovins'!$A6,Tierkategorien_GRUD!$A$7:$A$25),18)))","v":""},null,null,{"$f":"(365-($D6*($E6/24)))/365","v":1},{"$f":"$B6*$F6","v":0},{"$f":"IF('Rindvieh-Bovins'!$A6=\"\",0,INDEX(Tierkategorien_GRUD!$A$7:$F$25,MATCH('Rindvieh-Bovins'!$A6,Tierkategorien_GRUD!$A$7:$A$25),3))","v":0},{"$f":"IF('Rindvieh-Bovins'!$A6=\"\",0,INDEX(Tierkategorien_GRUD!$A$7:$F$25,MATCH('Rindvieh-Bovins'!$A6,Tierkategorien_GRUD!$A$7:$A$25),4))","v":0},{"$f":"IF('Rindvieh-Bovins'!$A6=\"\",0,INDEX(Tierkategorien_GRUD!$A$7:$F$25,MATCH('Rindvieh-Bovins'!$A6,Tierkategorien_GRUD!$A$7:$A$25),5))","v":0},{"$f":"IF('Rindvieh-Bovins'!$A6=\"\",0,INDEX(Tierkategorien_GRUD!$A$7:$F$25,MATCH('Rindvieh-Bovins'!$A6,Tierkategorien_GRUD!$A$7:$A$25),6))","v":0},{"$f":"IF('Grunddaten-Données de base'!D9=\"dt.\",IF($A6=\"01 Milchkuh mit 7500 kg Jahresleistung\",(H6+(IF($B$4=\"\",7500,$B$4)-7500)/100*0.48),H6),IF($A6=\"01 Vache laitière avec 7500 kg de lait\",(H6+(IF($B$4=\"\",7500,$B$4)-7500)/100*0.48),H6))","v":0},{"$f":"IF($A6=\"01 Milchkuh mit 7500 kg Jahresleistung\",(I6+(IF($B$4=\"\",7500,$B$4)-7500)/100*0.27),I6)","v":0},{"$f":"IF($A6=\"01 Milchkuh mit 7500 kg Jahresleistung\",(J6+(IF($B$4=\"\",7500,$B$4)-7500)/100*0.52),J6)","v":0},{"$f":"IF($A6=\"01 Milchkuh mit 7500 kg Jahresleistung\",(K6+(IF($B$4=\"\",7500,$B$4)-7500)/100*0.1),K6)","v":0},null,{"$f":"$G6*L6","v":0},{"$f":"$G6*M6","v":0},0,0,null,{"$f":"IF('Rindvieh-Bovins'!$A6=\"\",0,INDEX(Tierkategorien_GRUD!$A$7:$O$23,MATCH('Rindvieh-Bovins'!$A6,Tierkategorien_GRUD!$A$7:$A$23),15))","v":0},{"$f":"IF(B6*V6=\"\",0,B6*V6)","v":0},null,null,null,{"$f":"IF('Grunddaten-Données de base'!D$9=\"dt.\",IF('Rindvieh-Bovins'!$A6=\"\",0,INDEX(Tierkategorien_GRUD!$H$7:$N$25,MATCH('Rindvieh-Bovins'!$A6,Tierkategorien_GRUD!$A$7:$A$25),IF($Y6=\"01 nur Gülle\",1,7))),IF('Rindvieh-Bovins'!$A6=\"\",0,INDEX(Tierkategorien_GRUD!$H$7:$N$25,MATCH('Rindvieh-Bovins'!$A6,Tierkategorien_GRUD!$Q$7:$Q$25),IF($Y6=\"01 uniquement lisier\",1,7))))","v":0},{"$f":"IF('Grunddaten-Données de base'!$D$9=\"dt.\",IF('Rindvieh-Bovins'!$A6=\"\",0,INDEX(Tierkategorien_GRUD!$H$7:$N$25,MATCH('Rindvieh-Bovins'!$A6,Tierkategorien_GRUD!$A$7:$A$25),IF($Y6=\"02 Mist / Gülle\",3,7))),IF('Rindvieh-Bovins'!$A6=\"\",0,INDEX(Tierkategorien_GRUD!$H$7:$N$25,MATCH('Rindvieh-Bovins'!$A6,Tierkategorien_GRUD!$Q$7:$Q$25),IF($Y6=\"02 Fumier / Lisier\",3,7))))","v":0},{"$f":"IF('Grunddaten-Données de base'!D$9=\"dt.\",IF('Rindvieh-Bovins'!$A6=\"\",0,INDEX(Tierkategorien_GRUD!$H$7:$N$23,MATCH('Rindvieh-Bovins'!$A6,Tierkategorien_GRUD!$A$7:$A$23),IF($Y6=\"02 Mist / Gülle\",4,7))),IF('Rindvieh-Bovins'!$A6=\"\",0,INDEX(Tierkategorien_GRUD!$H$7:$N$23,MATCH('Rindvieh-Bovins'!$A6,Tierkategorien_GRUD!$Q$7:$Q$23),IF($Y6=\"02 Fumier / Lisier\",4,7))))","v":0},{"$f":"IF('Grunddaten-Données de base'!D$9=\"dt.\",IF('Rindvieh-Bovins'!$A6=\"\",0,INDEX(Tierkategorien_GRUD!$H$7:$N$23,MATCH('Rindvieh-Bovins'!$A6,Tierkategorien_GRUD!$A$7:$A$23),IF($Y6=\"03 nur Mist\",6,7))),IF('Rindvieh-Bovins'!$A6=\"\",0,INDEX(Tierkategorien_GRUD!$H$7:$N$23,MATCH('Rindvieh-Bovins'!$A6,Tierkategorien_GRUD!$Q$7:$Q$23),IF($Y6=\"03 uniquement fumier\",6,7))))","v":0},{"$f":"AA6","v":0},{"$f":"IF('Grunddaten-Données de base'!$D$9=\"dt.\",IF($Z6=\"01 Mist/Gülle=25/75\",($AB6+$AC6)*0.75,IF($Z6=\"02 Mist/Gülle=50/50\",($AB6+$AC6)*0.5,IF($Z6=\"03 Mist/Gülle=75/25\",($AB6+$AC6)*0.25,($AB6+$AC6)*0.55))),IF($Z6=\"01 Fumier/lisier=25/75\",($AB6+$AC6)*0.75,IF($Z6=\"02 Fumier/lisier=50/50\",($AB6+$AC6)*0.5,IF($Z6=\"03 Fumier/lisier=75/25\",($AB6+$AC6)*0.25,($AB6+$AC6)*0.55))))","v":0},{"$f":"IF('Grunddaten-Données de base'!$D$9=\"dt.\",IF($Z6=\"01 Mist/Gülle=25/75\",($AB6+$AC6)*0.25,IF($Z6=\"02 Mist/Gülle=50/50\",($AB6+$AC6)*0.5,IF($Z6=\"03 Mist/Gülle=75/25\",($AB6+$AC6)*0.75,($AB6+$AC6)*0.45))),IF($Z6=\"01 Fumier/lisier=25/75\",($AB6+$AC6)*0.25,IF($Z6=\"02 Fumier/lisier=50/50\",($AB6+$AC6)*0.5,IF($Z6=\"03 Fumier/lisier=75/25\",($AB6+$AC6)*0.75,($AB6+$AC6)*0.45))))","v":0},{"$f":"AD6","v":0},{"$f":"IF('Grunddaten-Données de base'!$D$9=\"dt.\",IF($A6=\"01 Milchkuh mit 7500 kg Jahresleistung\",$G6*(AA6+($B$4-7500)/1000*0.05*AA6),($G6*AA6)),IF($A6=\"01 Vache laitière avec 7500 kg de lait\",$G6*(AA6+($B$4-7500)/1000*0.05*AA6,$G6*AA6)))","v":false},null,{"$f":"IF($A6=\"01 Milchkuh mit 7500 kg Jahresleistung\",$G6*(IF(AF6>0,AF6+($B$4-7500)/1000*0.05,0)),($G6*AF6))","v":0},null,{"$f":"(AG6*$G6)","v":0},null,{"$f":"AD6*$G6","v":0}]
[null,null,{"$f":"IF('Grunddaten-Données de base'!$D$9=\"dt.\",IF($A7=\"\",\"\",INDEX(Tierkategorien_GRUD!$A$7:$R$25,MATCH('Rindvieh-Bovins'!$A7,Tierkategorien_GRUD!$A$7:$A$25),2)),IF($A7=\"\",\"\",INDEX(Tierkategorien_GRUD!$A$7:$R$25,MATCH('Rindvieh-Bovins'!$A7,Tierkategorien_GRUD!$A$7:$A$25),18)))","v":""},null,null,1,{"$f":"$B7*$F7","v":0},{"$f":"IF('Rindvieh-Bovins'!$A7=\"\",0,INDEX(Tierkategorien_GRUD!$A$7:$F$25,MATCH('Rindvieh-Bovins'!$A7,Tierkategorien_GRUD!$A$7:$A$25),3))","v":0},{"$f":"IF('Rindvieh-Bovins'!$A7=\"\",0,INDEX(Tierkategorien_GRUD!$A$7:$F$25,MATCH('Rindvieh-Bovins'!$A7,Tierkategorien_GRUD!$A$7:$A$25),4))","v":0},{"$f":"IF('Rindvieh-Bovins'!$A7=\"\",0,INDEX(Tierkategorien_GRUD!$A$7:$F$25,MATCH('Rindvieh-Bovins'!$A7,Tierkategorien_GRUD!$A$7:$A$25),5))","v":0},{"$f":"IF('Rindvieh-Bovins'!$A7=\"\",0,INDEX(Tierkategorien_GRUD!$A$7:$F$25,MATCH('Rindvieh-Bovins'!$A7,Tierkategorien_GRUD!$A$7:$A$25),6))","v":0},{"$f":"IF('Grunddaten-Données de base'!D9=\"dt.\",IF($A7=\"01 Milchkuh mit 7500 kg Jahresleistung\",(H7+(IF($B$4=\"\",7500,$B$4)-7500)/100*0.48),H7),IF($A7=\"01 Vache laitière avec 7500 kg de lait\",(H7+(IF($B$4=\"\",7500,$B$4)-7500)/100*0.48),H7))","v":0},{"$f":"IF($A7=\"01 Milchkuh mit 7500 kg Jahresleistung\",(I7+(IF($B$4=\"\",7500,$B$4)-7500)/100*0.27),I7)","v":0},{"$f":"IF($A7=\"01 Milchkuh mit 7500 kg Jahresleistung\",(J7+(IF($B$4=\"\",7500,$B$4)-7500)/100*0.52),J7)","v":0},{"$f":"IF($A7=\"01 Milchkuh mit 7500 kg Jahresleistung\",(K7+(IF($B$4=\"\",7500,$B$4)-7500)/100*0.1),K7)","v":0},null,{"$f":"$G7*L7","v":0},{"$f":"$G7*M7","v":0},{"$f":"$G7*N7","v":0},{"$f":"$G7*O7","v":0},null,{"$f":"IF('Rindvieh-Bovins'!$A7=\"\",0,INDEX(Tierkategorien_GRUD!$A$7:$O$23,MATCH('Rindvieh-Bovins'!$A7,Tierkategorien_GRUD!$A$7:$A$23),15))","v":0},0,null,null,null,{"$f":"IF('Grunddaten-Données de base'!D$9=\"dt.\",IF('Rindvieh-Bovins'!$A7=\"\",0,INDEX(Tierkategorien_GRUD!$H$7:$N$25,MATCH('Rindvieh-Bovins'!$A7,Tierkategorien_GRUD!$A$7:$A$25),IF($Y7=\"01 nur Gülle\",1,7))),IF('Rindvieh-Bovins'!$A7=\"\",0,INDEX(Tierkategorien_GRUD!$H$7:$N$25,MATCH('Rindvieh-Bovins'!$A7,Tierkategorien_GRUD!$Q$7:$Q$25),IF($Y7=\"01 uniquement lisier\",1,7))))","v":0},{"$f":"IF('Grunddaten-Données de base'!$D$9=\"dt.\",IF('Rindvieh-Bovins'!$A7=\"\",0,INDEX(Tierkategorien_GRUD!$H$7:$N$25,MATCH('Rindvieh-Bovins'!$A7,Tierkategorien_GRUD!$A$7:$A$25),IF($Y7=\"02 Mist / Gülle\",3,7))),IF('Rindvieh-Bovins'!$A7=\"\",0,INDEX(Tierkategorien_GRUD!$H$7:$N$25,MATCH('Rindvieh-Bovins'!$A7,Tierkategorien_GRUD!$Q$7:$Q$25),IF($Y7=\"02 Fumier / Lisier\",3,7))))","v":0},{"$f":"IF('Grunddaten-Données de base'!D$9=\"dt.\",IF('Rindvieh-Bovins'!$A7=\"\",0,INDEX(Tierkategorien_GRUD!$H$7:$N$23,MATCH('Rindvieh-Bovins'!$A7,Tierkategorien_GRUD!$A$7:$A$23),IF($Y7=\"02 Mist / Gülle\",4,7))),IF('Rindvieh-Bovins'!$A7=\"\",0,INDEX(Tierkategorien_GRUD!$H$7:$N$23,MATCH('Rindvieh-Bovins'!$A7,Tierkategorien_GRUD!$Q$7:$Q$23),IF($Y7=\"02 Fumier / Lisier\",4,7))))","v":0},{"$f":"IF('Grunddaten-Données de base'!D$9=\"dt.\",IF('Rindvieh-Bovins'!$A7=\"\",0,INDEX(Tierkategorien_GRUD!$H$7:$N$23,MATCH('Rindvieh-Bovins'!$A7,Tierkategorien_GRUD!$A$7:$A$23),IF($Y7=\"03 nur Mist\",6,7))),IF('Rindvieh-Bovins'!$A7=\"\",0,INDEX(Tierkategorien_GRUD!$H$7:$N$23,MATCH('Rindvieh-Bovins'!$A7,Tierkategorien_GRUD!$Q$7:$Q$23),IF($Y7=\"03 uniquement fumier\",6,7))))","v":0},{"$f":"AA7","v":0},{"$f":"IF('Grunddaten-Données de base'!$D$9=\"dt.\",IF($Z7=\"01 Mist/Gülle=25/75\",($AB7+$AC7)*0.75,IF($Z7=\"02 Mist/Gülle=50/50\",($AB7+$AC7)*0.5,IF($Z7=\"03 Mist/Gülle=75/25\",($AB7+$AC7)*0.25,($AB7+$AC7)*0.55))),IF($Z7=\"01 Fumier/lisier=25/75\",($AB7+$AC7)*0.75,IF($Z7=\"02 Fumier/lisier=50/50\",($AB7+$AC7)*0.5,IF($Z7=\"03 Fumier/lisier=75/25\",($AB7+$AC7)*0.25,($AB7+$AC7)*0.55))))","v":0},{"$f":"IF('Grunddaten-Données de base'!$D$9=\"dt.\",IF($Z7=\"01 Mist/Gülle=25/75\",($AB7+$AC7)*0.25,IF($Z7=\"02 Mist/Gülle=50/50\",($AB7+$AC7)*0.5,IF($Z7=\"03 Mist/Gülle=75/25\",($AB7+$AC7)*0.75,($AB7+$AC7)*0.45))),IF($Z7=\"01 Fumier/lisier=25/75\",($AB7+$AC7)*0.25,IF($Z7=\"02 Fumier/lisier=50/50\",($AB7+$AC7)*0.5,IF($Z7=\"03 Fumier/lisier=75/25\",($AB7+$AC7)*0.75,($AB7+$AC7)*0.45))))","v":0},{"$f":"AD7","v":0},{"$f":"IF('Grunddaten-Données de base'!$D$9=\"dt.\",IF($A7=\"01 Milchkuh mit 7500 kg Jahresleistung\",$G7*(AA7+($B$4-7500)/1000*0.05*AA7),($G7*AA7)),IF($A7=\"01 Vache laitière avec 7500 kg de lait\",$G7*(AA7+($B$4-7500)/1000*0.05*AA7,$G7*AA7)))","v":false},null,{"$f":"IF($A7=\"01 Milchkuh mit 7500 kg Jahresleistung\",$G7*(IF(AF7>0,AE7+($B$4-7500)/1000*0.05,0)),($G7*AF7))","v":0},null,{"$f":"(AG7*$G7)","v":0},null,0]
[null,null,{"$f":"IF('Grunddaten-Données de base'!$D$9=\"dt.\",IF($A8=\"\",\"\",INDEX(Tierkategorien_GRUD!$A$7:$R$25,MATCH('Rindvieh-Bovins'!$A8,Tierkategorien_GRUD!$A$7:$A$25),2)),IF($A8=\"\",\"\",INDEX(Tierkategorien_GRUD!$A$7:$R$25,MATCH('Rindvieh-Bovins'!$A8,Tierkategorien_GRUD!$A$7:$A$25),18)))","v":""},null,null,1,0,{"$f":"IF('Rindvieh-Bovins'!$A8=\"\",0,INDEX(Tierkategorien_GRUD!$A$7:$F$25,MATCH('Rindvieh-Bovins'!$A8,Tierkategorien_GRUD!$A$7:$A$25),3))","v":0},{"$f":"IF('Rindvieh-Bovins'!$A8=\"\",0,INDEX(Tierkategorien_GRUD!$A$7:$F$25,MATCH('Rindvieh-Bovins'!$A8,Tierkategorien_GRUD!$A$7:$A$25),4))","v":0},{"$f":"IF('Rindvieh-Bovins'!$A8=\"\",0,INDEX(Tierkategorien_GRUD!$A$7:$F$25,MATCH('Rindvieh-Bovins'!$A8,Tierkategorien_GRUD!$A$7:$A$25),5))","v":0},{"$f":"IF('Rindvieh-Bovins'!$A8=\"\",0,INDEX(Tierkategorien_GRUD!$A$7:$F$25,MATCH('Rindvieh-Bovins'!$A8,Tierkategorien_GRUD!$A$7:$A$25),6))","v":0},{"$f":"IF($A8=\"01 Milchkuh mit 7500 kg Jahresleistung\",(H8+(IF($B$4=\"\",7500,$B$4)-7500)/100*0.48),H8)","v":0},0,0,0,null,0,0,0,0,null,{"$f":"IF('Rindvieh-Bovins'!$A8=\"\",0,INDEX(Tierkategorien_GRUD!$A$7:$O$23,MATCH('Rindvieh-Bovins'!$A8,Tierkategorien_GRUD!$A$7:$A$23),15))","v":0},0,null,null,null,{"$f":"IF('Grunddaten-Données de base'!D$9=\"dt.\",IF('Rindvieh-Bovins'!$A8=\"\",0,INDEX(Tierkategorien_GRUD!$H$7:$N$25,MATCH('Rindvieh-Bovins'!$A8,Tierkategorien_GRUD!$A$7:$A$25),IF($Y8=\"01 nur Gülle\",1,7))),IF('Rindvieh-Bovins'!$A8=\"\",0,INDEX(Tierkategorien_GRUD!$H$7:$N$25,MATCH('Rindvieh-Bovins'!$A8,Tierkategorien_GRUD!$Q$7:$Q$25),IF($Y8=\"01 uniquement lisier\",1,7))))","v":0},{"$f":"IF('Grunddaten-Données de base'!$D$9=\"dt.\",IF('Rindvieh-Bovins'!$A8=\"\",0,INDEX(Tierkategorien_GRUD!$H$7:$N$25,MATCH('Rindvieh-Bovins'!$A8,Tierkategorien_GRUD!$A$7:$A$25),IF($Y8=\"02 Mist / Gülle\",3,7))),IF('Rindvieh-Bovins'!$A8=\"\",0,INDEX(Tierkategorien_GRUD!$H$7:$N$25,MATCH('Rindvieh-Bovins'!$A8,Tierkategorien_GRUD!$Q$7:$Q$25),IF($Y8=\"02 Fumier / Lisier\",3,7))))","v":0},{"$f":"IF('Grunddaten-Données de base'!D$9=\"dt.\",IF('Rindvieh-Bovins'!$A8=\"\",0,INDEX(Tierkategorien_GRUD!$H$7:$N$23,MATCH('Rindvieh-Bovins'!$A8,Tierkategorien_GRUD!$A$7:$A$23),IF($Y8=\"02 Mist / Gülle\",4,7))),IF('Rindvieh-Bovins'!$A8=\"\",0,INDEX(Tierkategorien_GRUD!$H$7:$N$23,MATCH('Rindvieh-Bovins'!$A8,Tierkategorien_GRUD!$Q$7:$Q$23),IF($Y8=\"02 Fumier / Lisier\",4,7))))","v":0},{"$f":"IF('Grunddaten-Données de base'!D$9=\"dt.\",IF('Rindvieh-Bovins'!$A8=\"\",0,INDEX(Tierkategorien_GRUD!$H$7:$N$23,MATCH('Rindvieh-Bovins'!$A8,Tierkategorien_GRUD!$A$7:$A$23),IF($Y8=\"03 nur Mist\",6,7))),IF('Rindvieh-Bovins'!$A8=\"\",0,INDEX(Tierkategorien_GRUD!$H$7:$N$23,MATCH('Rindvieh-Bovins'!$A8,Tierkategorien_GRUD!$Q$7:$Q$23),IF($Y8=\"03 uniquement fumier\",6,7))))","v":0},0,{"$f":"IF('Grunddaten-Données de base'!$D$9=\"dt.\",IF($Z8=\"01 Mist/Gülle=25/75\",($AB8+$AC8)*0.75,IF($Z8=\"02 Mist/Gülle=50/50\",($AB8+$AC8)*0.5,IF($Z8=\"03 Mist/Gülle=75/25\",($AB8+$AC8)*0.25,($AB8+$AC8)*0.55))),IF($Z8=\"01 Fumier/lisier=25/75\",($AB8+$AC8)*0.75,IF($Z8=\"02 Fumier/lisier=50/50\",($AB8+$AC8)*0.5,IF($Z8=\"03 Fumier/lisier=75/25\",($AB8+$AC8)*0.25,($AB8+$AC8)*0.55))))","v":0},{"$f":"IF('Grunddaten-Données de base'!$D$9=\"dt.\",IF($Z8=\"01 Mist/Gülle=25/75\",($AB8+$AC8)*0.25,IF($Z8=\"02 Mist/Gülle=50/50\",($AB8+$AC8)*0.5,IF($Z8=\"03 Mist/Gülle=75/25\",($AB8+$AC8)*0.75,($AB8+$AC8)*0.45))),IF($Z8=\"01 Fumier/lisier=25/75\",($AB8+$AC8)*0.25,IF($Z8=\"02 Fumier/lisier=50/50\",($AB8+$AC8)*0.5,IF($Z8=\"03 Fumier/lisier=75/25\",($AB8+$AC8)*0.75,($AB8+$AC8)*0.45))))","v":0},0,{"$f":"IF('Grunddaten-Données de base'!$D$9=\"dt.\",IF($A8=\"01 Milchkuh mit 7500 kg Jahresleistung\",$G8*(AA8+($B$4-7500)/1000*0.05*AA8),($G8*AA8)),IF($A8=\"01 Vache laitière avec 7500 kg de lait\",$G8*(AA8+($B$4-7500)/1000*0.05*AA8,$G8*AA8)))","v":false},null,0,null,0,null,0]
[null,null,{"$f":"IF('Grunddaten-Données de base'!$D$9=\"dt.\",IF($A9=\"\",\"\",INDEX(Tierkategorien_GRUD!$A$7:$R$25,MATCH('Rindvieh-Bovins'!$A9,Tierkategorien_GRUD!$A$7:$A$25),2)),IF($A9=\"\",\"\",INDEX(Tierkategorien_GRUD!$A$7:$R$25,MATCH('Rindvieh-Bovins'!$A9,Tierkategorien_GRUD!$A$7:$A$25),18)))","v":""},null,null,1,0,{"$f":"IF('Rindvieh-Bovins'!$A9=\"\",0,INDEX(Tierkategorien_GRUD!$A$7:$F$25,MATCH('Rindvieh-Bovins'!$A9,Tierkategorien_GRUD!$A$7:$A$25),3))","v":0},{"$f":"IF('Rindvieh-Bovins'!$A9=\"\",0,INDEX(Tierkategorien_GRUD!$A$7:$F$25,MATCH('Rindvieh-Bovins'!$A9,Tierkategorien_GRUD!$A$7:$A$25),4))","v":0},{"$f":"IF('Rindvieh-Bovins'!$A9=\"\",0,INDEX(Tierkategorien_GRUD!$A$7:$F$25,MATCH('Rindvieh-Bovins'!$A9,Tierkategorien_GRUD!$A$7:$A$25),5))","v":0},{"$f":"IF('Rindvieh-Bovins'!$A9=\"\",0,INDEX(Tierkategorien_GRUD!$A$7:$F$25,MATCH('Rindvieh-Bovins'!$A9,Tierkategorien_GRUD!$A$7:$A$25),6))","v":0},0,0,0,0,null,0,0,0,0,null,{"$f":"IF('Rindvieh-Bovins'!$A9=\"\",0,INDEX(Tierkategorien_GRUD!$A$7:$O$23,MATCH('Rindvieh-Bovins'!$A9,Tierkategorien_GRUD!$A$7:$A$23),15))","v":0},0,null,null,null,{"$f":"IF('Grunddaten-Données de base'!D$9=\"dt.\",IF('Rindvieh-Bovins'!$A9=\"\",0,INDEX(Tierkategorien_GRUD!$H$7:$N$25,MATCH('Rindvieh-Bovins'!$A9,Tierkategorien_GRUD!$A$7:$A$25),IF($Y9=\"01 nur Gülle\",1,7))),IF('Rindvieh-Bovins'!$A9=\"\",0,INDEX(Tierkategorien_GRUD!$H$7:$N$25,MATCH('Rindvieh-Bovins'!$A9,Tierkategorien_GRUD!$Q$7:$Q$25),IF($Y9=\"01 uniquement lisier\",1,7))))","v":0},{"$f":"IF('Grunddaten-Données de base'!$D$9=\"dt.\",IF('Rindvieh-Bovins'!$A9=\"\",0,INDEX(Tierkategorien_GRUD!$H$7:$N$25,MATCH('Rindvieh-Bovins'!$A9,Tierkategorien_GRUD!$A$7:$A$25),IF($Y9=\"02 Mist / Gülle\",3,7))),IF('Rindvieh-Bovins'!$A9=\"\",0,INDEX(Tierkategorien_GRUD!$H$7:$N$25,MATCH('Rindvieh-Bovins'!$A9,Tierkategorien_GRUD!$Q$7:$Q$25),IF($Y9=\"02 Fumier / Lisier\",3,7))))","v":0},{"$f":"IF('Grunddaten-Données de base'!D$9=\"dt.\",IF('Rindvieh-Bovins'!$A9=\"\",0,INDEX(Tierkategorien_GRUD!$H$7:$N$23,MATCH('Rindvieh-Bovins'!$A9,Tierkategorien_GRUD!$A$7:$A$23),IF($Y9=\"02 Mist / Gülle\",4,7))),IF('Rindvieh-Bovins'!$A9=\"\",0,INDEX(Tierkategorien_GRUD!$H$7:$N$23,MATCH('Rindvieh-Bovins'!$A9,Tierkategorien_GRUD!$Q$7:$Q$23),IF($Y9=\"02 Fumier / Lisier\",4,7))))","v":0},{"$f":"IF('Grunddaten-Données de base'!D$9=\"dt.\",IF('Rindvieh-Bovins'!$A9=\"\",0,INDEX(Tierkategorien_GRUD!$H$7:$N$23,MATCH('Rindvieh-Bovins'!$A9,Tierkategorien_GRUD!$A$7:$A$23),IF($Y9=\"03 nur Mist\",6,7))),IF('Rindvieh-Bovins'!$A9=\"\",0,INDEX(Tierkategorien_GRUD!$H$7:$N$23,MATCH('Rindvieh-Bovins'!$A9,Tierkategorien_GRUD!$Q$7:$Q$23),IF($Y9=\"03 uniquement fumier\",6,7))))","v":0},0,{"$f":"IF('Grunddaten-Données de base'!$D$9=\"dt.\",IF($Z9=\"01 Mist/Gülle=25/75\",($AB9+$AC9)*0.75,IF($Z9=\"02 Mist/Gülle=50/50\",($AB9+$AC9)*0.5,IF($Z9=\"03 Mist/Gülle=75/25\",($AB9+$AC9)*0.25,($AB9+$AC9)*0.55))),IF($Z9=\"01 Fumier/lisier=25/75\",($AB9+$AC9)*0.75,IF($Z9=\"02 Fumier/lisier=50/50\",($AB9+$AC9)*0.5,IF($Z9=\"03 Fumier/lisier=75/25\",($AB9+$AC9)*0.25,($AB9+$AC9)*0.55))))","v":0},{"$f":"IF('Grunddaten-Données de base'!$D$9=\"dt.\",IF($Z9=\"01 Mist/Gülle=25/75\",($AB9+$AC9)*0.25,IF($Z9=\"02 Mist/Gülle=50/50\",($AB9+$AC9)*0.5,IF($Z9=\"03 Mist/Gülle=75/25\",($AB9+$AC9)*0.75,($AB9+$AC9)*0.45))),IF($Z9=\"01 Fumier/lisier=25/75\",($AB9+$AC9)*0.25,IF($Z9=\"02 Fumier/lisier=50/50\",($AB9+$AC9)*0.5,IF($Z9=\"03 Fumier/lisier=75/25\",($AB9+$AC9)*0.75,($AB9+$AC9)*0.45))))","v":0},0,{"$f":"IF('Grunddaten-Données de base'!$D$9=\"dt.\",IF($A9=\"01 Milchkuh mit 7500 kg Jahresleistung\",$G9*(AA9+($B$4-7500)/1000*0.05*AA9),($G9*AA9)),IF($A9=\"01 Vache laitière avec 7500 kg de lait\",$G9*(AA9+($B$4-7500)/1000*0.05*AA9,$G9*AA9)))","v":false},null,0,null,0,null,0]
[null,null,{"$f":"IF('Grunddaten-Données de base'!$D$9=\"dt.\",IF($A10=\"\",\"\",INDEX(Tierkategorien_GRUD!$A$7:$R$25,MATCH('Rindvieh-Bovins'!$A10,Tierkategorien_GRUD!$A$7:$A$25),2)),IF($A10=\"\",\"\",INDEX(Tierkategorien_GRUD!$A$7:$R$25,MATCH('Rindvieh-Bovins'!$A10,Tierkategorien_GRUD!$A$7:$A$25),18)))","v":""},null,null,1,0,{"$f":"IF('Rindvieh-Bovins'!$A10=\"\",0,INDEX(Tierkategorien_GRUD!$A$7:$F$25,MATCH('Rindvieh-Bovins'!$A10,Tierkategorien_GRUD!$A$7:$A$25),3))","v":0},{"$f":"IF('Rindvieh-Bovins'!$A10=\"\",0,INDEX(Tierkategorien_GRUD!$A$7:$F$25,MATCH('Rindvieh-Bovins'!$A10,Tierkategorien_GRUD!$A$7:$A$25),4))","v":0},{"$f":"IF('Rindvieh-Bovins'!$A10=\"\",0,INDEX(Tierkategorien_GRUD!$A$7:$F$25,MATCH('Rindvieh-Bovins'!$A10,Tierkategorien_GRUD!$A$7:$A$25),5))","v":0},{"$f":"IF('Rindvieh-Bovins'!$A10=\"\",0,INDEX(Tierkategorien_GRUD!$A$7:$F$25,MATCH('Rindvieh-Bovins'!$A10,Tierkategorien_GRUD!$A$7:$A$25),6))","v":0},0,0,0,0,null,0,0,0,0,null,{"$f":"IF('Rindvieh-Bovins'!$A10=\"\",0,INDEX(Tierkategorien_GRUD!$A$7:$O$23,MATCH('Rindvieh-Bovins'!$A10,Tierkategorien_GRUD!$A$7:$A$23),15))","v":0},0,null,null,null,{"$f":"IF('Grunddaten-Données de base'!D$9=\"dt.\",IF('Rindvieh-Bovins'!$A10=\"\",0,INDEX(Tierkategorien_GRUD!$H$7:$N$25,MATCH('Rindvieh-Bovins'!$A10,Tierkategorien_GRUD!$A$7:$A$25),IF($Y10=\"01 nur Gülle\",1,7))),IF('Rindvieh-Bovins'!$A10=\"\",0,INDEX(Tierkategorien_GRUD!$H$7:$N$25,MATCH('Rindvieh-Bovins'!$A10,Tierkategorien_GRUD!$Q$7:$Q$25),IF($Y10=\"01 uniquement lisier\",1,7))))","v":0},{"$f":"IF('Grunddaten-Données de base'!$D$9=\"dt.\",IF('Rindvieh-Bovins'!$A10=\"\",0,INDEX(Tierkategorien_GRUD!$H$7:$N$25,MATCH('Rindvieh-Bovins'!$A10,Tierkategorien_GRUD!$A$7:$A$25),IF($Y10=\"02 Mist / Gülle\",3,7))),IF('Rindvieh-Bovins'!$A10=\"\",0,INDEX(Tierkategorien_GRUD!$H$7:$N$25,MATCH('Rindvieh-Bovins'!$A10,Tierkategorien_GRUD!$Q$7:$Q$25),IF($Y10=\"02 Fumier / Lisier\",3,7))))","v":0},{"$f":"IF('Grunddaten-Données de base'!D$9=\"dt.\",IF('Rindvieh-Bovins'!$A10=\"\",0,INDEX(Tierkategorien_GRUD!$H$7:$N$23,MATCH('Rindvieh-Bovins'!$A10,Tierkategorien_GRUD!$A$7:$A$23),IF($Y10=\"02 Mist / Gülle\",4,7))),IF('Rindvieh-Bovins'!$A10=\"\",0,INDEX(Tierkategorien_GRUD!$H$7:$N$23,MATCH('Rindvieh-Bovins'!$A10,Tierkategorien_GRUD!$Q$7:$Q$23),IF($Y10=\"02 Fumier / Lisier\",4,7))))","v":0},{"$f":"IF('Grunddaten-Données de base'!D$9=\"dt.\",IF('Rindvieh-Bovins'!$A10=\"\",0,INDEX(Tierkategorien_GRUD!$H$7:$N$23,MATCH('Rindvieh-Bovins'!$A10,Tierkategorien_GRUD!$A$7:$A$23),IF($Y10=\"03 nur Mist\",6,7))),IF('Rindvieh-Bovins'!$A10=\"\",0,INDEX(Tierkategorien_GRUD!$H$7:$N$23,MATCH('Rindvieh-Bovins'!$A10,Tierkategorien_GRUD!$Q$7:$Q$23),IF($Y10=\"03 uniquement fumier\",6,7))))","v":0},0,{"$f":"IF('Grunddaten-Données de base'!$D$9=\"dt.\",IF($Z10=\"01 Mist/Gülle=25/75\",($AB10+$AC10)*0.75,IF($Z10=\"02 Mist/Gülle=50/50\",($AB10+$AC10)*0.5,IF($Z10=\"03 Mist/Gülle=75/25\",($AB10+$AC10)*0.25,($AB10+$AC10)*0.55))),IF($Z10=\"01 Fumier/lisier=25/75\",($AB10+$AC10)*0.75,IF($Z10=\"02 Fumier/lisier=50/50\",($AB10+$AC10)*0.5,IF($Z10=\"03 Fumier/lisier=75/25\",($AB10+$AC10)*0.25,($AB10+$AC10)*0.55))))","v":0},{"$f":"IF('Grunddaten-Données de base'!$D$9=\"dt.\",IF($Z10=\"01 Mist/Gülle=25/75\",($AB10+$AC10)*0.25,IF($Z10=\"02 Mist/Gülle=50/50\",($AB10+$AC10)*0.5,IF($Z10=\"03 Mist/Gülle=75/25\",($AB10+$AC10)*0.75,($AB10+$AC10)*0.45))),IF($Z10=\"01 Fumier/lisier=25/75\",($AB10+$AC10)*0.25,IF($Z10=\"02 Fumier/lisier=50/50\",($AB10+$AC10)*0.5,IF($Z10=\"03 Fumier/lisier=75/25\",($AB10+$AC10)*0.75,($AB10+$AC10)*0.45))))","v":0},0,{"$f":"IF('Grunddaten-Données de base'!$D$9=\"dt.\",IF($A10=\"01 Milchkuh mit 7500 kg Jahresleistung\",$G10*(AA10+($B$4-7500)/1000*0.05*AA10),($G10*AA10)),IF($A10=\"01 Vache laitière avec 7500 kg de lait\",$G10*(AA10+($B$4-7500)/1000*0.05*AA10,$G10*AA10)))","v":false},null,0,null,0,null,0]
[null,null,{"$f":"IF('Grunddaten-Données de base'!$D$9=\"dt.\",IF($A11=\"\",\"\",INDEX(Tierkategorien_GRUD!$A$7:$R$25,MATCH('Rindvieh-Bovins'!$A11,Tierkategorien_GRUD!$A$7:$A$25),2)),IF($A11=\"\",\"\",INDEX(Tierkategorien_GRUD!$A$7:$R$25,MATCH('Rindvieh-Bovins'!$A11,Tierkategorien_GRUD!$A$7:$A$25),18)))","v":""},null,null,1,0,{"$f":"IF('Rindvieh-Bovins'!$A11=\"\",0,INDEX(Tierkategorien_GRUD!$A$7:$F$25,MATCH('Rindvieh-Bovins'!$A11,Tierkategorien_GRUD!$A$7:$A$25),3))","v":0},{"$f":"IF('Rindvieh-Bovins'!$A11=\"\",0,INDEX(Tierkategorien_GRUD!$A$7:$F$25,MATCH('Rindvieh-Bovins'!$A11,Tierkategorien_GRUD!$A$7:$A$25),4))","v":0},{"$f":"IF('Rindvieh-Bovins'!$A11=\"\",0,INDEX(Tierkategorien_GRUD!$A$7:$F$25,MATCH('Rindvieh-Bovins'!$A11,Tierkategorien_GRUD!$A$7:$A$25),5))","v":0},{"$f":"IF('Rindvieh-Bovins'!$A11=\"\",0,INDEX(Tierkategorien_GRUD!$A$7:$F$25,MATCH('Rindvieh-Bovins'!$A11,Tierkategorien_GRUD!$A$7:$A$25),6))","v":0},0,0,0,0,null,0,0,0,0,null,{"$f":"IF('Rindvieh-Bovins'!$A11=\"\",0,INDEX(Tierkategorien_GRUD!$A$7:$O$23,MATCH('Rindvieh-Bovins'!$A11,Tierkategorien_GRUD!$A$7:$A$23),15))","v":0},0,null,null,null,{"$f":"IF('Grunddaten-Données de base'!D$9=\"dt.\",IF('Rindvieh-Bovins'!$A11=\"\",0,INDEX(Tierkategorien_GRUD!$H$7:$N$25,MATCH('Rindvieh-Bovins'!$A11,Tierkategorien_GRUD!$A$7:$A$25),IF($Y11=\"01 nur Gülle\",1,7))),IF('Rindvieh-Bovins'!$A11=\"\",0,INDEX(Tierkategorien_GRUD!$H$7:$N$25,MATCH('Rindvieh-Bovins'!$A11,Tierkategorien_GRUD!$Q$7:$Q$25),IF($Y11=\"01 uniquement lisier\",1,7))))","v":0},{"$f":"IF('Grunddaten-Données de base'!$D$9=\"dt.\",IF('Rindvieh-Bovins'!$A11=\"\",0,INDEX(Tierkategorien_GRUD!$H$7:$N$25,MATCH('Rindvieh-Bovins'!$A11,Tierkategorien_GRUD!$A$7:$A$25),IF($Y11=\"02 Mist / Gülle\",3,7))),IF('Rindvieh-Bovins'!$A11=\"\",0,INDEX(Tierkategorien_GRUD!$H$7:$N$25,MATCH('Rindvieh-Bovins'!$A11,Tierkategorien_GRUD!$Q$7:$Q$25),IF($Y11=\"02 Fumier / Lisier\",3,7))))","v":0},{"$f":"IF('Grunddaten-Données de base'!D$9=\"dt.\",IF('Rindvieh-Bovins'!$A11=\"\",0,INDEX(Tierkategorien_GRUD!$H$7:$N$23,MATCH('Rindvieh-Bovins'!$A11,Tierkategorien_GRUD!$A$7:$A$23),IF($Y11=\"02 Mist / Gülle\",4,7))),IF('Rindvieh-Bovins'!$A11=\"\",0,INDEX(Tierkategorien_GRUD!$H$7:$N$23,MATCH('Rindvieh-Bovins'!$A11,Tierkategorien_GRUD!$Q$7:$Q$23),IF($Y11=\"02 Fumier / Lisier\",4,7))))","v":0},{"$f":"IF('Grunddaten-Données de base'!D$9=\"dt.\",IF('Rindvieh-Bovins'!$A11=\"\",0,INDEX(Tierkategorien_GRUD!$H$7:$N$23,MATCH('Rindvieh-Bovins'!$A11,Tierkategorien_GRUD!$A$7:$A$23),IF($Y11=\"03 nur Mist\",6,7))),IF('Rindvieh-Bovins'!$A11=\"\",0,INDEX(Tierkategorien_GRUD!$H$7:$N$23,MATCH('Rindvieh-Bovins'!$A11,Tierkategorien_GRUD!$Q$7:$Q$23),IF($Y11=\"03 uniquement fumier\",6,7))))","v":0},0,{"$f":"IF('Grunddaten-Données de base'!$D$9=\"dt.\",IF($Z11=\"01 Mist/Gülle=25/75\",($AB11+$AC11)*0.75,IF($Z11=\"02 Mist/Gülle=50/50\",($AB11+$AC11)*0.5,IF($Z11=\"03 Mist/Gülle=75/25\",($AB11+$AC11)*0.25,($AB11+$AC11)*0.55))),IF($Z11=\"01 Fumier/lisier=25/75\",($AB11+$AC11)*0.75,IF($Z11=\"02 Fumier/lisier=50/50\",($AB11+$AC11)*0.5,IF($Z11=\"03 Fumier/lisier=75/25\",($AB11+$AC11)*0.25,($AB11+$AC11)*0.55))))","v":0},{"$f":"IF('Grunddaten-Données de base'!$D$9=\"dt.\",IF($Z11=\"01 Mist/Gülle=25/75\",($AB11+$AC11)*0.25,IF($Z11=\"02 Mist/Gülle=50/50\",($AB11+$AC11)*0.5,IF($Z11=\"03 Mist/Gülle=75/25\",($AB11+$AC11)*0.75,($AB11+$AC11)*0.45))),IF($Z11=\"01 Fumier/lisier=25/75\",($AB11+$AC11)*0.25,IF($Z11=\"02 Fumier/lisier=50/50\",($AB11+$AC11)*0.5,IF($Z11=\"03 Fumier/lisier=75/25\",($AB11+$AC11)*0.75,($AB11+$AC11)*0.45))))","v":0},0,{"$f":"IF('Grunddaten-Données de base'!$D$9=\"dt.\",IF($A11=\"01 Milchkuh mit 7500 kg Jahresleistung\",$G11*(AA11+($B$4-7500)/1000*0.05*AA11),($G11*AA11)),IF($A11=\"01 Vache laitière avec 7500 kg de lait\",$G11*(AA11+($B$4-7500)/1000*0.05*AA11,$G11*AA11)))","v":false},null,0,null,0,null,0]
[null,null,{"$f":"IF('Grunddaten-Données de base'!$D$9=\"dt.\",IF($A12=\"\",\"\",INDEX(Tierkategorien_GRUD!$A$7:$R$25,MATCH('Rindvieh-Bovins'!$A12,Tierkategorien_GRUD!$A$7:$A$25),2)),IF($A12=\"\",\"\",INDEX(Tierkategorien_GRUD!$A$7:$R$25,MATCH('Rindvieh-Bovins'!$A12,Tierkategorien_GRUD!$A$7:$A$25),18)))","v":""},null,null,1,0,{"$f":"IF('Rindvieh-Bovins'!$A12=\"\",0,INDEX(Tierkategorien_GRUD!$A$7:$F$25,MATCH('Rindvieh-Bovins'!$A12,Tierkategorien_GRUD!$A$7:$A$25),3))","v":0},{"$f":"IF('Rindvieh-Bovins'!$A12=\"\",0,INDEX(Tierkategorien_GRUD!$A$7:$F$25,MATCH('Rindvieh-Bovins'!$A12,Tierkategorien_GRUD!$A$7:$A$25),4))","v":0},{"$f":"IF('Rindvieh-Bovins'!$A12=\"\",0,INDEX(Tierkategorien_GRUD!$A$7:$F$25,MATCH('Rindvieh-Bovins'!$A12,Tierkategorien_GRUD!$A$7:$A$25),5))","v":0},{"$f":"IF('Rindvieh-Bovins'!$A12=\"\",0,INDEX(Tierkategorien_GRUD!$A$7:$F$25,MATCH('Rindvieh-Bovins'!$A12,Tierkategorien_GRUD!$A$7:$A$25),6))","v":0},0,0,0,0,null,0,0,0,0,null,{"$f":"IF('Rindvieh-Bovins'!$A12=\"\",0,INDEX(Tierkategorien_GRUD!$A$7:$O$23,MATCH('Rindvieh-Bovins'!$A12,Tierkategorien_GRUD!$A$7:$A$23),15))","v":0},0,null,null,null,{"$f":"IF('Grunddaten-Données de base'!D$9=\"dt.\",IF('Rindvieh-Bovins'!$A12=\"\",0,INDEX(Tierkategorien_GRUD!$H$7:$N$25,MATCH('Rindvieh-Bovins'!$A12,Tierkategorien_GRUD!$A$7:$A$25),IF($Y12=\"01 nur Gülle\",1,7))),IF('Rindvieh-Bovins'!$A12=\"\",0,INDEX(Tierkategorien_GRUD!$H$7:$N$25,MATCH('Rindvieh-Bovins'!$A12,Tierkategorien_GRUD!$Q$7:$Q$25),IF($Y12=\"01 uniquement lisier\",1,7))))","v":0},{"$f":"IF('Grunddaten-Données de base'!$D$9=\"dt.\",IF('Rindvieh-Bovins'!$A12=\"\",0,INDEX(Tierkategorien_GRUD!$H$7:$N$25,MATCH('Rindvieh-Bovins'!$A12,Tierkategorien_GRUD!$A$7:$A$25),IF($Y12=\"02 Mist / Gülle\",3,7))),IF('Rindvieh-Bovins'!$A12=\"\",0,INDEX(Tierkategorien_GRUD!$H$7:$N$25,MATCH('Rindvieh-Bovins'!$A12,Tierkategorien_GRUD!$Q$7:$Q$25),IF($Y12=\"02 Fumier / Lisier\",3,7))))","v":0},{"$f":"IF('Grunddaten-Données de base'!D$9=\"dt.\",IF('Rindvieh-Bovins'!$A12=\"\",0,INDEX(Tierkategorien_GRUD!$H$7:$N$23,MATCH('Rindvieh-Bovins'!$A12,Tierkategorien_GRUD!$A$7:$A$23),IF($Y12=\"02 Mist / Gülle\",4,7))),IF('Rindvieh-Bovins'!$A12=\"\",0,INDEX(Tierkategorien_GRUD!$H$7:$N$23,MATCH('Rindvieh-Bovins'!$A12,Tierkategorien_GRUD!$Q$7:$Q$23),IF($Y12=\"02 Fumier / Lisier\",4,7))))","v":0},{"$f":"IF('Grunddaten-Données de base'!D$9=\"dt.\",IF('Rindvieh-Bovins'!$A12=\"\",0,INDEX(Tierkategorien_GRUD!$H$7:$N$23,MATCH('Rindvieh-Bovins'!$A12,Tierkategorien_GRUD!$A$7:$A$23),IF($Y12=\"03 nur Mist\",6,7))),IF('Rindvieh-Bovins'!$A12=\"\",0,INDEX(Tierkategorien_GRUD!$H$7:$N$23,MATCH('Rindvieh-Bovins'!$A12,Tierkategorien_GRUD!$Q$7:$Q$23),IF($Y12=\"03 uniquement fumier\",6,7))))","v":0},0,{"$f":"IF('Grunddaten-Données de base'!$D$9=\"dt.\",IF($Z12=\"01 Mist/Gülle=25/75\",($AB12+$AC12)*0.75,IF($Z12=\"02 Mist/Gülle=50/50\",($AB12+$AC12)*0.5,IF($Z12=\"03 Mist/Gülle=75/25\",($AB12+$AC12)*0.25,($AB12+$AC12)*0.55))),IF($Z12=\"01 Fumier/lisier=25/75\",($AB12+$AC12)*0.75,IF($Z12=\"02 Fumier/lisier=50/50\",($AB12+$AC12)*0.5,IF($Z12=\"03 Fumier/lisier=75/25\",($AB12+$AC12)*0.25,($AB12+$AC12)*0.55))))","v":0},{"$f":"IF('Grunddaten-Données de base'!$D$9=\"dt.\",IF($Z12=\"01 Mist/Gülle=25/75\",($AB12+$AC12)*0.25,IF($Z12=\"02 Mist/Gülle=50/50\",($AB12+$AC12)*0.5,IF($Z12=\"03 Mist/Gülle=75/25\",($AB12+$AC12)*0.75,($AB12+$AC12)*0.45))),IF($Z12=\"01 Fumier/lisier=25/75\",($AB12+$AC12)*0.25,IF($Z12=\"02 Fumier/lisier=50/50\",($AB12+$AC12)*0.5,IF($Z12=\"03 Fumier/lisier=75/25\",($AB12+$AC12)*0.75,($AB12+$AC12)*0.45))))","v":0},0,{"$f":"IF('Grunddaten-Données de base'!$D$9=\"dt.\",IF($A12=\"01 Milchkuh mit 7500 kg Jahresleistung\",$G12*(AA12+($B$4-7500)/1000*0.05*AA12),($G12*AA12)),IF($A12=\"01 Vache laitière avec 7500 kg de lait\",$G12*(AA12+($B$4-7500)/1000*0.05*AA12,$G12*AA12)))","v":false},null,0,null,0,null,0]
[null,null,{"$f":"IF('Grunddaten-Données de base'!$D$9=\"dt.\",IF($A13=\"\",\"\",INDEX(Tierkategorien_GRUD!$A$7:$R$25,MATCH('Rindvieh-Bovins'!$A13,Tierkategorien_GRUD!$A$7:$A$25),2)),IF($A13=\"\",\"\",INDEX(Tierkategorien_GRUD!$A$7:$R$25,MATCH('Rindvieh-Bovins'!$A13,Tierkategorien_GRUD!$A$7:$A$25),18)))","v":""},null,null,1,0,{"$f":"IF('Rindvieh-Bovins'!$A13=\"\",0,INDEX(Tierkategorien_GRUD!$A$7:$F$25,MATCH('Rindvieh-Bovins'!$A13,Tierkategorien_GRUD!$A$7:$A$25),3))","v":0},{"$f":"IF('Rindvieh-Bovins'!$A13=\"\",0,INDEX(Tierkategorien_GRUD!$A$7:$F$25,MATCH('Rindvieh-Bovins'!$A13,Tierkategorien_GRUD!$A$7:$A$25),4))","v":0},{"$f":"IF('Rindvieh-Bovins'!$A13=\"\",0,INDEX(Tierkategorien_GRUD!$A$7:$F$25,MATCH('Rindvieh-Bovins'!$A13,Tierkategorien_GRUD!$A$7:$A$25),5))","v":0},{"$f":"IF('Rindvieh-Bovins'!$A13=\"\",0,INDEX(Tierkategorien_GRUD!$A$7:$F$25,MATCH('Rindvieh-Bovins'!$A13,Tierkategorien_GRUD!$A$7:$A$25),6))","v":0},0,0,0,0,null,0,0,0,0,null,{"$f":"IF('Rindvieh-Bovins'!$A13=\"\",0,INDEX(Tierkategorien_GRUD!$A$7:$O$23,MATCH('Rindvieh-Bovins'!$A13,Tierkategorien_GRUD!$A$7:$A$23),15))","v":0},0,null,null,null,{"$f":"IF('Grunddaten-Données de base'!D$9=\"dt.\",IF('Rindvieh-Bovins'!$A13=\"\",0,INDEX(Tierkategorien_GRUD!$H$7:$N$25,MATCH('Rindvieh-Bovins'!$A13,Tierkategorien_GRUD!$A$7:$A$25),IF($Y13=\"01 nur Gülle\",1,7))),IF('Rindvieh-Bovins'!$A13=\"\",0,INDEX(Tierkategorien_GRUD!$H$7:$N$25,MATCH('Rindvieh-Bovins'!$A13,Tierkategorien_GRUD!$Q$7:$Q$25),IF($Y13=\"01 uniquement lisier\",1,7))))","v":0},{"$f":"IF('Grunddaten-Données de base'!$D$9=\"dt.\",IF('Rindvieh-Bovins'!$A13=\"\",0,INDEX(Tierkategorien_GRUD!$H$7:$N$25,MATCH('Rindvieh-Bovins'!$A13,Tierkategorien_GRUD!$A$7:$A$25),IF($Y13=\"02 Mist / Gülle\",3,7))),IF('Rindvieh-Bovins'!$A13=\"\",0,INDEX(Tierkategorien_GRUD!$H$7:$N$25,MATCH('Rindvieh-Bovins'!$A13,Tierkategorien_GRUD!$Q$7:$Q$25),IF($Y13=\"02 Fumier / Lisier\",3,7))))","v":0},{"$f":"IF('Grunddaten-Données de base'!D$9=\"dt.\",IF('Rindvieh-Bovins'!$A13=\"\",0,INDEX(Tierkategorien_GRUD!$H$7:$N$23,MATCH('Rindvieh-Bovins'!$A13,Tierkategorien_GRUD!$A$7:$A$23),IF($Y13=\"02 Mist / Gülle\",4,7))),IF('Rindvieh-Bovins'!$A13=\"\",0,INDEX(Tierkategorien_GRUD!$H$7:$N$23,MATCH('Rindvieh-Bovins'!$A13,Tierkategorien_GRUD!$Q$7:$Q$23),IF($Y13=\"02 Fumier / Lisier\",4,7))))","v":0},{"$f":"IF('Grunddaten-Données de base'!D$9=\"dt.\",IF('Rindvieh-Bovins'!$A13=\"\",0,INDEX(Tierkategorien_GRUD!$H$7:$N$23,MATCH('Rindvieh-Bovins'!$A13,Tierkategorien_GRUD!$A$7:$A$23),IF($Y13=\"03 nur Mist\",6,7))),IF('Rindvieh-Bovins'!$A13=\"\",0,INDEX(Tierkategorien_GRUD!$H$7:$N$23,MATCH('Rindvieh-Bovins'!$A13,Tierkategorien_GRUD!$Q$7:$Q$23),IF($Y13=\"03 uniquement fumier\",6,7))))","v":0},0,{"$f":"IF('Grunddaten-Données de base'!$D$9=\"dt.\",IF($Z13=\"01 Mist/Gülle=25/75\",($AB13+$AC13)*0.75,IF($Z13=\"02 Mist/Gülle=50/50\",($AB13+$AC13)*0.5,IF($Z13=\"03 Mist/Gülle=75/25\",($AB13+$AC13)*0.25,($AB13+$AC13)*0.55))),IF($Z13=\"01 Fumier/lisier=25/75\",($AB13+$AC13)*0.75,IF($Z13=\"02 Fumier/lisier=50/50\",($AB13+$AC13)*0.5,IF($Z13=\"03 Fumier/lisier=75/25\",($AB13+$AC13)*0.25,($AB13+$AC13)*0.55))))","v":0},{"$f":"IF('Grunddaten-Données de base'!$D$9=\"dt.\",IF($Z13=\"01 Mist/Gülle=25/75\",($AB13+$AC13)*0.25,IF($Z13=\"02 Mist/Gülle=50/50\",($AB13+$AC13)*0.5,IF($Z13=\"03 Mist/Gülle=75/25\",($AB13+$AC13)*0.75,($AB13+$AC13)*0.45))),IF($Z13=\"01 Fumier/lisier=25/75\",($AB13+$AC13)*0.25,IF($Z13=\"02 Fumier/lisier=50/50\",($AB13+$AC13)*0.5,IF($Z13=\"03 Fumier/lisier=75/25\",($AB13+$AC13)*0.75,($AB13+$AC13)*0.45))))","v":0},0,{"$f":"IF('Grunddaten-Données de base'!$D$9=\"dt.\",IF($A13=\"01 Milchkuh mit 7500 kg Jahresleistung\",$G13*(AA13+($B$4-7500)/1000*0.05*AA13),($G13*AA13)),IF($A13=\"01 Vache laitière avec 7500 kg de lait\",$G13*(AA13+($B$4-7500)/1000*0.05*AA13,$G13*AA13)))","v":false},null,0,null,0,null,0]
[null,null,{"$f":"IF('Grunddaten-Données de base'!$D$9=\"dt.\",IF($A14=\"\",\"\",INDEX(Tierkategorien_GRUD!$A$7:$R$25,MATCH('Rindvieh-Bovins'!$A14,Tierkategorien_GRUD!$A$7:$A$25),2)),IF($A14=\"\",\"\",INDEX(Tierkategorien_GRUD!$A$7:$R$25,MATCH('Rindvieh-Bovins'!$A14,Tierkategorien_GRUD!$A$7:$A$25),18)))","v":""},null,null,1,0,{"$f":"IF('Rindvieh-Bovins'!$A14=\"\",0,INDEX(Tierkategorien_GRUD!$A$7:$F$25,MATCH('Rindvieh-Bovins'!$A14,Tierkategorien_GRUD!$A$7:$A$25),3))","v":0},{"$f":"IF('Rindvieh-Bovins'!$A14=\"\",0,INDEX(Tierkategorien_GRUD!$A$7:$F$25,MATCH('Rindvieh-Bovins'!$A14,Tierkategorien_GRUD!$A$7:$A$25),4))","v":0},{"$f":"IF('Rindvieh-Bovins'!$A14=\"\",0,INDEX(Tierkategorien_GRUD!$A$7:$F$25,MATCH('Rindvieh-Bovins'!$A14,Tierkategorien_GRUD!$A$7:$A$25),5))","v":0},{"$f":"IF('Rindvieh-Bovins'!$A14=\"\",0,INDEX(Tierkategorien_GRUD!$A$7:$F$25,MATCH('Rindvieh-Bovins'!$A14,Tierkategorien_GRUD!$A$7:$A$25),6))","v":0},0,0,0,0,null,0,0,0,0,null,{"$f":"IF('Rindvieh-Bovins'!$A14=\"\",0,INDEX(Tierkategorien_GRUD!$A$7:$O$23,MATCH('Rindvieh-Bovins'!$A14,Tierkategorien_GRUD!$A$7:$A$23),15))","v":0},0,null,null,null,{"$f":"IF('Grunddaten-Données de base'!D$9=\"dt.\",IF('Rindvieh-Bovins'!$A14=\"\",0,INDEX(Tierkategorien_GRUD!$H$7:$N$25,MATCH('Rindvieh-Bovins'!$A14,Tierkategorien_GRUD!$A$7:$A$25),IF($Y14=\"01 nur Gülle\",1,7))),IF('Rindvieh-Bovins'!$A14=\"\",0,INDEX(Tierkategorien_GRUD!$H$7:$N$25,MATCH('Rindvieh-Bovins'!$A14,Tierkategorien_GRUD!$Q$7:$Q$25),IF($Y14=\"01 uniquement lisier\",1,7))))","v":0},{"$f":"IF('Grunddaten-Données de base'!$D$9=\"dt.\",IF('Rindvieh-Bovins'!$A14=\"\",0,INDEX(Tierkategorien_GRUD!$H$7:$N$25,MATCH('Rindvieh-Bovins'!$A14,Tierkategorien_GRUD!$A$7:$A$25),IF($Y14=\"02 Mist / Gülle\",3,7))),IF('Rindvieh-Bovins'!$A14=\"\",0,INDEX(Tierkategorien_GRUD!$H$7:$N$25,MATCH('Rindvieh-Bovins'!$A14,Tierkategorien_GRUD!$Q$7:$Q$25),IF($Y14=\"02 Fumier / Lisier\",3,7))))","v":0},{"$f":"IF('Grunddaten-Données de base'!D$9=\"dt.\",IF('Rindvieh-Bovins'!$A14=\"\",0,INDEX(Tierkategorien_GRUD!$H$7:$N$23,MATCH('Rindvieh-Bovins'!$A14,Tierkategorien_GRUD!$A$7:$A$23),IF($Y14=\"02 Mist / Gülle\",4,7))),IF('Rindvieh-Bovins'!$A14=\"\",0,INDEX(Tierkategorien_GRUD!$H$7:$N$23,MATCH('Rindvieh-Bovins'!$A14,Tierkategorien_GRUD!$Q$7:$Q$23),IF($Y14=\"02 Fumier / Lisier\",4,7))))","v":0},{"$f":"IF('Grunddaten-Données de base'!D$9=\"dt.\",IF('Rindvieh-Bovins'!$A14=\"\",0,INDEX(Tierkategorien_GRUD!$H$7:$N$23,MATCH('Rindvieh-Bovins'!$A14,Tierkategorien_GRUD!$A$7:$A$23),IF($Y14=\"03 nur Mist\",6,7))),IF('Rindvieh-Bovins'!$A14=\"\",0,INDEX(Tierkategorien_GRUD!$H$7:$N$23,MATCH('Rindvieh-Bovins'!$A14,Tierkategorien_GRUD!$Q$7:$Q$23),IF($Y14=\"03 uniquement fumier\",6,7))))","v":0},0,{"$f":"IF('Grunddaten-Données de base'!$D$9=\"dt.\",IF($Z14=\"01 Mist/Gülle=25/75\",($AB14+$AC14)*0.75,IF($Z14=\"02 Mist/Gülle=50/50\",($AB14+$AC14)*0.5,IF($Z14=\"03 Mist/Gülle=75/25\",($AB14+$AC14)*0.25,($AB14+$AC14)*0.55))),IF($Z14=\"01 Fumier/lisier=25/75\",($AB14+$AC14)*0.75,IF($Z14=\"02 Fumier/lisier=50/50\",($AB14+$AC14)*0.5,IF($Z14=\"03 Fumier/lisier=75/25\",($AB14+$AC14)*0.25,($AB14+$AC14)*0.55))))","v":0},{"$f":"IF('Grunddaten-Données de base'!$D$9=\"dt.\",IF($Z14=\"01 Mist/Gülle=25/75\",($AB14+$AC14)*0.25,IF($Z14=\"02 Mist/Gülle=50/50\",($AB14+$AC14)*0.5,IF($Z14=\"03 Mist/Gülle=75/25\",($AB14+$AC14)*0.75,($AB14+$AC14)*0.45))),IF($Z14=\"01 Fumier/lisier=25/75\",($AB14+$AC14)*0.25,IF($Z14=\"02 Fumier/lisier=50/50\",($AB14+$AC14)*0.5,IF($Z14=\"03 Fumier/lisier=75/25\",($AB14+$AC14)*0.75,($AB14+$AC14)*0.45))))","v":0},0,{"$f":"IF('Grunddaten-Données de base'!$D$9=\"dt.\",IF($A14=\"01 Milchkuh mit 7500 kg Jahresleistung\",$G14*(AA14+($B$4-7500)/1000*0.05*AA14),($G14*AA14)),IF($A14=\"01 Vache laitière avec 7500 kg de lait\",$G14*(AA14+($B$4-7500)/1000*0.05*AA14,$G14*AA14)))","v":false},null,0,null,0,null,0]
[null,null,{"$f":"IF('Grunddaten-Données de base'!$D$9=\"dt.\",IF($A15=\"\",\"\",INDEX(Tierkategorien_GRUD!$A$7:$R$25,MATCH('Rindvieh-Bovins'!$A15,Tierkategorien_GRUD!$A$7:$A$25),2)),IF($A15=\"\",\"\",INDEX(Tierkategorien_GRUD!$A$7:$R$25,MATCH('Rindvieh-Bovins'!$A15,Tierkategorien_GRUD!$A$7:$A$25),18)))","v":""},null,null,1,0,{"$f":"IF('Rindvieh-Bovins'!$A15=\"\",0,INDEX(Tierkategorien_GRUD!$A$7:$F$25,MATCH('Rindvieh-Bovins'!$A15,Tierkategorien_GRUD!$A$7:$A$25),3))","v":0},{"$f":"IF('Rindvieh-Bovins'!$A15=\"\",0,INDEX(Tierkategorien_GRUD!$A$7:$F$25,MATCH('Rindvieh-Bovins'!$A15,Tierkategorien_GRUD!$A$7:$A$25),4))","v":0},{"$f":"IF('Rindvieh-Bovins'!$A15=\"\",0,INDEX(Tierkategorien_GRUD!$A$7:$F$25,MATCH('Rindvieh-Bovins'!$A15,Tierkategorien_GRUD!$A$7:$A$25),5))","v":0},{"$f":"IF('Rindvieh-Bovins'!$A15=\"\",0,INDEX(Tierkategorien_GRUD!$A$7:$F$25,MATCH('Rindvieh-Bovins'!$A15,Tierkategorien_GRUD!$A$7:$A$25),6))","v":0},0,0,0,0,null,0,0,0,0,null,{"$f":"IF('Rindvieh-Bovins'!$A15=\"\",0,INDEX(Tierkategorien_GRUD!$A$7:$O$23,MATCH('Rindvieh-Bovins'!$A15,Tierkategorien_GRUD!$A$7:$A$23),15))","v":0},0,null,null,null,{"$f":"IF('Grunddaten-Données de base'!D$9=\"dt.\",IF('Rindvieh-Bovins'!$A15=\"\",0,INDEX(Tierkategorien_GRUD!$H$7:$N$25,MATCH('Rindvieh-Bovins'!$A15,Tierkategorien_GRUD!$A$7:$A$25),IF($Y15=\"01 nur Gülle\",1,7))),IF('Rindvieh-Bovins'!$A15=\"\",0,INDEX(Tierkategorien_GRUD!$H$7:$N$25,MATCH('Rindvieh-Bovins'!$A15,Tierkategorien_GRUD!$Q$7:$Q$25),IF($Y15=\"01 uniquement lisier\",1,7))))","v":0},{"$f":"IF('Grunddaten-Données de base'!$D$9=\"dt.\",IF('Rindvieh-Bovins'!$A15=\"\",0,INDEX(Tierkategorien_GRUD!$H$7:$N$25,MATCH('Rindvieh-Bovins'!$A15,Tierkategorien_GRUD!$A$7:$A$25),IF($Y15=\"02 Mist / Gülle\",3,7))),IF('Rindvieh-Bovins'!$A15=\"\",0,INDEX(Tierkategorien_GRUD!$H$7:$N$25,MATCH('Rindvieh-Bovins'!$A15,Tierkategorien_GRUD!$Q$7:$Q$25),IF($Y15=\"02 Fumier / Lisier\",3,7))))","v":0},{"$f":"IF('Grunddaten-Données de base'!D$9=\"dt.\",IF('Rindvieh-Bovins'!$A15=\"\",0,INDEX(Tierkategorien_GRUD!$H$7:$N$23,MATCH('Rindvieh-Bovins'!$A15,Tierkategorien_GRUD!$A$7:$A$23),IF($Y15=\"02 Mist / Gülle\",4,7))),IF('Rindvieh-Bovins'!$A15=\"\",0,INDEX(Tierkategorien_GRUD!$H$7:$N$23,MATCH('Rindvieh-Bovins'!$A15,Tierkategorien_GRUD!$Q$7:$Q$23),IF($Y15=\"02 Fumier / Lisier\",4,7))))","v":0},{"$f":"IF('Grunddaten-Données de base'!D$9=\"dt.\",IF('Rindvieh-Bovins'!$A15=\"\",0,INDEX(Tierkategorien_GRUD!$H$7:$N$23,MATCH('Rindvieh-Bovins'!$A15,Tierkategorien_GRUD!$A$7:$A$23),IF($Y15=\"03 nur Mist\",6,7))),IF('Rindvieh-Bovins'!$A15=\"\",0,INDEX(Tierkategorien_GRUD!$H$7:$N$23,MATCH('Rindvieh-Bovins'!$A15,Tierkategorien_GRUD!$Q$7:$Q$23),IF($Y15=\"03 uniquement fumier\",6,7))))","v":0},0,{"$f":"IF('Grunddaten-Données de base'!$D$9=\"dt.\",IF($Z15=\"01 Mist/Gülle=25/75\",($AB15+$AC15)*0.75,IF($Z15=\"02 Mist/Gülle=50/50\",($AB15+$AC15)*0.5,IF($Z15=\"03 Mist/Gülle=75/25\",($AB15+$AC15)*0.25,($AB15+$AC15)*0.55))),IF($Z15=\"01 Fumier/lisier=25/75\",($AB15+$AC15)*0.75,IF($Z15=\"02 Fumier/lisier=50/50\",($AB15+$AC15)*0.5,IF($Z15=\"03 Fumier/lisier=75/25\",($AB15+$AC15)*0.25,($AB15+$AC15)*0.55))))","v":0},{"$f":"IF('Grunddaten-Données de base'!$D$9=\"dt.\",IF($Z15=\"01 Mist/Gülle=25/75\",($AB15+$AC15)*0.25,IF($Z15=\"02 Mist/Gülle=50/50\",($AB15+$AC15)*0.5,IF($Z15=\"03 Mist/Gülle=75/25\",($AB15+$AC15)*0.75,($AB15+$AC15)*0.45))),IF($Z15=\"01 Fumier/lisier=25/75\",($AB15+$AC15)*0.25,IF($Z15=\"02 Fumier/lisier=50/50\",($AB15+$AC15)*0.5,IF($Z15=\"03 Fumier/lisier=75/25\",($AB15+$AC15)*0.75,($AB15+$AC15)*0.45))))","v":0},0,{"$f":"IF('Grunddaten-Données de base'!$D$9=\"dt.\",IF($A15=\"01 Milchkuh mit 7500 kg Jahresleistung\",$G15*(AA15+($B$4-7500)/1000*0.05*AA15),($G15*AA15)),IF($A15=\"01 Vache laitière avec 7500 kg de lait\",$G15*(AA15+($B$4-7500)/1000*0.05*AA15,$G15*AA15)))","v":false},null,0,null,0,null,0]
[null,null,{"$f":"IF('Grunddaten-Données de base'!$D$9=\"dt.\",IF($A16=\"\",\"\",INDEX(Tierkategorien_GRUD!$A$7:$R$25,MATCH('Rindvieh-Bovins'!$A16,Tierkategorien_GRUD!$A$7:$A$25),2)),IF($A16=\"\",\"\",INDEX(Tierkategorien_GRUD!$A$7:$R$25,MATCH('Rindvieh-Bovins'!$A16,Tierkategorien_GRUD!$A$7:$A$25),18)))","v":""},null,null,1,0,{"$f":"IF('Rindvieh-Bovins'!$A16=\"\",0,INDEX(Tierkategorien_GRUD!$A$7:$F$25,MATCH('Rindvieh-Bovins'!$A16,Tierkategorien_GRUD!$A$7:$A$25),3))","v":0},{"$f":"IF('Rindvieh-Bovins'!$A16=\"\",0,INDEX(Tierkategorien_GRUD!$A$7:$F$25,MATCH('Rindvieh-Bovins'!$A16,Tierkategorien_GRUD!$A$7:$A$25),4))","v":0},{"$f":"IF('Rindvieh-Bovins'!$A16=\"\",0,INDEX(Tierkategorien_GRUD!$A$7:$F$25,MATCH('Rindvieh-Bovins'!$A16,Tierkategorien_GRUD!$A$7:$A$25),5))","v":0},{"$f":"IF('Rindvieh-Bovins'!$A16=\"\",0,INDEX(Tierkategorien_GRUD!$A$7:$F$25,MATCH('Rindvieh-Bovins'!$A16,Tierkategorien_GRUD!$A$7:$A$25),6))","v":0},0,0,0,0,null,0,0,0,0,null,{"$f":"IF('Rindvieh-Bovins'!$A16=\"\",0,INDEX(Tierkategorien_GRUD!$A$7:$O$23,MATCH('Rindvieh-Bovins'!$A16,Tierkategorien_GRUD!$A$7:$A$23),15))","v":0},0,null,null,null,{"$f":"IF('Grunddaten-Données de base'!D$9=\"dt.\",IF('Rindvieh-Bovins'!$A16=\"\",0,INDEX(Tierkategorien_GRUD!$H$7:$N$25,MATCH('Rindvieh-Bovins'!$A16,Tierkategorien_GRUD!$A$7:$A$25),IF($Y16=\"01 nur Gülle\",1,7))),IF('Rindvieh-Bovins'!$A16=\"\",0,INDEX(Tierkategorien_GRUD!$H$7:$N$25,MATCH('Rindvieh-Bovins'!$A16,Tierkategorien_GRUD!$Q$7:$Q$25),IF($Y16=\"01 uniquement lisier\",1,7))))","v":0},{"$f":"IF('Grunddaten-Données de base'!$D$9=\"dt.\",IF('Rindvieh-Bovins'!$A16=\"\",0,INDEX(Tierkategorien_GRUD!$H$7:$N$25,MATCH('Rindvieh-Bovins'!$A16,Tierkategorien_GRUD!$A$7:$A$25),IF($Y16=\"02 Mist / Gülle\",3,7))),IF('Rindvieh-Bovins'!$A16=\"\",0,INDEX(Tierkategorien_GRUD!$H$7:$N$25,MATCH('Rindvieh-Bovins'!$A16,Tierkategorien_GRUD!$Q$7:$Q$25),IF($Y16=\"02 Fumier / Lisier\",3,7))))","v":0},{"$f":"IF('Grunddaten-Données de base'!D$9=\"dt.\",IF('Rindvieh-Bovins'!$A16=\"\",0,INDEX(Tierkategorien_GRUD!$H$7:$N$23,MATCH('Rindvieh-Bovins'!$A16,Tierkategorien_GRUD!$A$7:$A$23),IF($Y16=\"02 Mist / Gülle\",4,7))),IF('Rindvieh-Bovins'!$A16=\"\",0,INDEX(Tierkategorien_GRUD!$H$7:$N$23,MATCH('Rindvieh-Bovins'!$A16,Tierkategorien_GRUD!$Q$7:$Q$23),IF($Y16=\"02 Fumier / Lisier\",4,7))))","v":0},{"$f":"IF('Grunddaten-Données de base'!D$9=\"dt.\",IF('Rindvieh-Bovins'!$A16=\"\",0,INDEX(Tierkategorien_GRUD!$H$7:$N$23,MATCH('Rindvieh-Bovins'!$A16,Tierkategorien_GRUD!$A$7:$A$23),IF($Y16=\"03 nur Mist\",6,7))),IF('Rindvieh-Bovins'!$A16=\"\",0,INDEX(Tierkategorien_GRUD!$H$7:$N$23,MATCH('Rindvieh-Bovins'!$A16,Tierkategorien_GRUD!$Q$7:$Q$23),IF($Y16=\"03 uniquement fumier\",6,7))))","v":0},{"$f":"AA16","v":0},{"$f":"IF('Grunddaten-Données de base'!$D$9=\"dt.\",IF($Z16=\"01 Mist/Gülle=25/75\",($AB16+$AC16)*0.75,IF($Z16=\"02 Mist/Gülle=50/50\",($AB16+$AC16)*0.5,IF($Z16=\"03 Mist/Gülle=75/25\",($AB16+$AC16)*0.25,($AB16+$AC16)*0.55))),IF($Z16=\"01 Fumier/lisier=25/75\",($AB16+$AC16)*0.75,IF($Z16=\"02 Fumier/lisier=50/50\",($AB16+$AC16)*0.5,IF($Z16=\"03 Fumier/lisier=75/25\",($AB16+$AC16)*0.25,($AB16+$AC16)*0.55))))","v":0},{"$f":"IF('Grunddaten-Données de base'!$D$9=\"dt.\",IF($Z16=\"01 Mist/Gülle=25/75\",($AB16+$AC16)*0.25,IF($Z16=\"02 Mist/Gülle=50/50\",($AB16+$AC16)*0.5,IF($Z16=\"03 Mist/Gülle=75/25\",($AB16+$AC16)*0.75,($AB16+$AC16)*0.45))),IF($Z16=\"01 Fumier/lisier=25/75\",($AB16+$AC16)*0.25,IF($Z16=\"02 Fumier/lisier=50/50\",($AB16+$AC16)*0.5,IF($Z16=\"03 Fumier/lisier=75/25\",($AB16+$AC16)*0.75,($AB16+$AC16)*0.45))))","v":0},0,{"$f":"IF('Grunddaten-Données de base'!$D$9=\"dt.\",IF($A16=\"01 Milchkuh mit 7500 kg Jahresleistung\",$G16*(AA16+($B$4-7500)/1000*0.05*AA16),($G16*AA16)),IF($A16=\"01 Vache laitière avec 7500 kg de lait\",$G16*(AA16+($B$4-7500)/1000*0.05*AA16,$G16*AA16)))","v":false},null,0,null,0,null,0]
[null,null,{"$f":"IF('Grunddaten-Données de base'!$D$9=\"dt.\",IF($A17=\"\",\"\",INDEX(Tierkategorien_GRUD!$A$7:$R$25,MATCH('Rindvieh-Bovins'!$A17,Tierkategorien_GRUD!$A$7:$A$25),2)),IF($A17=\"\",\"\",INDEX(Tierkategorien_GRUD!$A$7:$R$25,MATCH('Rindvieh-Bovins'!$A17,Tierkategorien_GRUD!$A$7:$A$25),18)))","v":""},null,null,1,0,{"$f":"IF('Rindvieh-Bovins'!$A17=\"\",0,INDEX(Tierkategorien_GRUD!$A$7:$F$25,MATCH('Rindvieh-Bovins'!$A17,Tierkategorien_GRUD!$A$7:$A$25),3))","v":0},{"$f":"IF('Rindvieh-Bovins'!$A17=\"\",0,INDEX(Tierkategorien_GRUD!$A$7:$F$25,MATCH('Rindvieh-Bovins'!$A17,Tierkategorien_GRUD!$A$7:$A$25),4))","v":0},{"$f":"IF('Rindvieh-Bovins'!$A17=\"\",0,INDEX(Tierkategorien_GRUD!$A$7:$F$25,MATCH('Rindvieh-Bovins'!$A17,Tierkategorien_GRUD!$A$7:$A$25),5))","v":0},{"$f":"IF('Rindvieh-Bovins'!$A17=\"\",0,INDEX(Tierkategorien_GRUD!$A$7:$F$25,MATCH('Rindvieh-Bovins'!$A17,Tierkategorien_GRUD!$A$7:$A$25),6))","v":0},0,0,0,0,null,0,0,0,0,null,{"$f":"IF('Rindvieh-Bovins'!$A17=\"\",0,INDEX(Tierkategorien_GRUD!$A$7:$O$23,MATCH('Rindvieh-Bovins'!$A17,Tierkategorien_GRUD!$A$7:$A$23),15))","v":0},0,null,null,null,{"$f":"IF('Grunddaten-Données de base'!D$9=\"dt.\",IF('Rindvieh-Bovins'!$A17=\"\",0,INDEX(Tierkategorien_GRUD!$H$7:$N$25,MATCH('Rindvieh-Bovins'!$A17,Tierkategorien_GRUD!$A$7:$A$25),IF($Y17=\"01 nur Gülle\",1,7))),IF('Rindvieh-Bovins'!$A17=\"\",0,INDEX(Tierkategorien_GRUD!$H$7:$N$25,MATCH('Rindvieh-Bovins'!$A17,Tierkategorien_GRUD!$Q$7:$Q$25),IF($Y17=\"01 uniquement lisier\",1,7))))","v":0},{"$f":"IF('Grunddaten-Données de base'!$D$9=\"dt.\",IF('Rindvieh-Bovins'!$A17=\"\",0,INDEX(Tierkategorien_GRUD!$H$7:$N$25,MATCH('Rindvieh-Bovins'!$A17,Tierkategorien_GRUD!$A$7:$A$25),IF($Y17=\"02 Mist / Gülle\",3,7))),IF('Rindvieh-Bovins'!$A17=\"\",0,INDEX(Tierkategorien_GRUD!$H$7:$N$25,MATCH('Rindvieh-Bovins'!$A17,Tierkategorien_GRUD!$Q$7:$Q$25),IF($Y17=\"02 Fumier / Lisier\",3,7))))","v":0},{"$f":"IF('Grunddaten-Données de base'!D$9=\"dt.\",IF('Rindvieh-Bovins'!$A17=\"\",0,INDEX(Tierkategorien_GRUD!$H$7:$N$23,MATCH('Rindvieh-Bovins'!$A17,Tierkategorien_GRUD!$A$7:$A$23),IF($Y17=\"02 Mist / Gülle\",4,7))),IF('Rindvieh-Bovins'!$A17=\"\",0,INDEX(Tierkategorien_GRUD!$H$7:$N$23,MATCH('Rindvieh-Bovins'!$A17,Tierkategorien_GRUD!$Q$7:$Q$23),IF($Y17=\"02 Fumier / Lisier\",4,7))))","v":0},{"$f":"IF('Grunddaten-Données de base'!D$9=\"dt.\",IF('Rindvieh-Bovins'!$A17=\"\",0,INDEX(Tierkategorien_GRUD!$H$7:$N$23,MATCH('Rindvieh-Bovins'!$A17,Tierkategorien_GRUD!$A$7:$A$23),IF($Y17=\"03 nur Mist\",6,7))),IF('Rindvieh-Bovins'!$A17=\"\",0,INDEX(Tierkategorien_GRUD!$H$7:$N$23,MATCH('Rindvieh-Bovins'!$A17,Tierkategorien_GRUD!$Q$7:$Q$23),IF($Y17=\"03 uniquement fumier\",6,7))))","v":0},0,{"$f":"IF('Grunddaten-Données de base'!$D$9=\"dt.\",IF($Z17=\"01 Mist/Gülle=25/75\",($AB17+$AC17)*0.75,IF($Z17=\"02 Mist/Gülle=50/50\",($AB17+$AC17)*0.5,IF($Z17=\"03 Mist/Gülle=75/25\",($AB17+$AC17)*0.25,($AB17+$AC17)*0.55))),IF($Z17=\"01 Fumier/lisier=25/75\",($AB17+$AC17)*0.75,IF($Z17=\"02 Fumier/lisier=50/50\",($AB17+$AC17)*0.5,IF($Z17=\"03 Fumier/lisier=75/25\",($AB17+$AC17)*0.25,($AB17+$AC17)*0.55))))","v":0},{"$f":"IF('Grunddaten-Données de base'!$D$9=\"dt.\",IF($Z17=\"01 Mist/Gülle=25/75\",($AB17+$AC17)*0.25,IF($Z17=\"02 Mist/Gülle=50/50\",($AB17+$AC17)*0.5,IF($Z17=\"03 Mist/Gülle=75/25\",($AB17+$AC17)*0.75,($AB17+$AC17)*0.45))),IF($Z17=\"01 Fumier/lisier=25/75\",($AB17+$AC17)*0.25,IF($Z17=\"02 Fumier/lisier=50/50\",($AB17+$AC17)*0.5,IF($Z17=\"03 Fumier/lisier=75/25\",($AB17+$AC17)*0.75,($AB17+$AC17)*0.45))))","v":0},0,{"$f":"IF('Grunddaten-Données de base'!$D$9=\"dt.\",IF($A17=\"01 Milchkuh mit 7500 kg Jahresleistung\",$G17*(AA17+($B$4-7500)/1000*0.05*AA17),($G17*AA17)),IF($A17=\"01 Vache laitière avec 7500 kg de lait\",$G17*(AA17+($B$4-7500)/1000*0.05*AA17,$G17*AA17)))","v":false},null,0,null,0,null,0]
[null,null,{"$f":"IF('Grunddaten-Données de base'!$D$9=\"dt.\",IF($A18=\"\",\"\",INDEX(Tierkategorien_GRUD!$A$7:$R$25,MATCH('Rindvieh-Bovins'!$A18,Tierkategorien_GRUD!$A$7:$A$25),2)),IF($A18=\"\",\"\",INDEX(Tierkategorien_GRUD!$A$7:$R$25,MATCH('Rindvieh-Bovins'!$A18,Tierkategorien_GRUD!$A$7:$A$25),18)))","v":""},null,null,1,0,{"$f":"IF('Rindvieh-Bovins'!$A18=\"\",0,INDEX(Tierkategorien_GRUD!$A$7:$F$25,MATCH('Rindvieh-Bovins'!$A18,Tierkategorien_GRUD!$A$7:$A$25),3))","v":0},{"$f":"IF('Rindvieh-Bovins'!$A18=\"\",0,INDEX(Tierkategorien_GRUD!$A$7:$F$25,MATCH('Rindvieh-Bovins'!$A18,Tierkategorien_GRUD!$A$7:$A$25),4))","v":0},{"$f":"IF('Rindvieh-Bovins'!$A18=\"\",0,INDEX(Tierkategorien_GRUD!$A$7:$F$25,MATCH('Rindvieh-Bovins'!$A18,Tierkategorien_GRUD!$A$7:$A$25),5))","v":0},{"$f":"IF('Rindvieh-Bovins'!$A18=\"\",0,INDEX(Tierkategorien_GRUD!$A$7:$F$25,MATCH('Rindvieh-Bovins'!$A18,Tierkategorien_GRUD!$A$7:$A$25),6))","v":0},0,0,0,0,null,0,0,0,0,null,{"$f":"IF('Rindvieh-Bovins'!$A18=\"\",0,INDEX(Tierkategorien_GRUD!$A$7:$O$23,MATCH('Rindvieh-Bovins'!$A18,Tierkategorien_GRUD!$A$7:$A$23),15))","v":0},0,null,null,null,{"$f":"IF('Grunddaten-Données de base'!D$9=\"dt.\",IF('Rindvieh-Bovins'!$A18=\"\",0,INDEX(Tierkategorien_GRUD!$H$7:$N$25,MATCH('Rindvieh-Bovins'!$A18,Tierkategorien_GRUD!$A$7:$A$25),IF($Y18=\"01 nur Gülle\",1,7))),IF('Rindvieh-Bovins'!$A18=\"\",0,INDEX(Tierkategorien_GRUD!$H$7:$N$25,MATCH('Rindvieh-Bovins'!$A18,Tierkategorien_GRUD!$Q$7:$Q$25),IF($Y18=\"01 uniquement lisier\",1,7))))","v":0},{"$f":"IF('Grunddaten-Données de base'!$D$9=\"dt.\",IF('Rindvieh-Bovins'!$A18=\"\",0,INDEX(Tierkategorien_GRUD!$H$7:$N$25,MATCH('Rindvieh-Bovins'!$A18,Tierkategorien_GRUD!$A$7:$A$25),IF($Y18=\"02 Mist / Gülle\",3,7))),IF('Rindvieh-Bovins'!$A18=\"\",0,INDEX(Tierkategorien_GRUD!$H$7:$N$25,MATCH('Rindvieh-Bovins'!$A18,Tierkategorien_GRUD!$Q$7:$Q$25),IF($Y18=\"02 Fumier / Lisier\",3,7))))","v":0},{"$f":"IF('Grunddaten-Données de base'!D$9=\"dt.\",IF('Rindvieh-Bovins'!$A18=\"\",0,INDEX(Tierkategorien_GRUD!$H$7:$N$23,MATCH('Rindvieh-Bovins'!$A18,Tierkategorien_GRUD!$A$7:$A$23),IF($Y18=\"02 Mist / Gülle\",4,7))),IF('Rindvieh-Bovins'!$A18=\"\",0,INDEX(Tierkategorien_GRUD!$H$7:$N$23,MATCH('Rindvieh-Bovins'!$A18,Tierkategorien_GRUD!$Q$7:$Q$23),IF($Y18=\"02 Fumier / Lisier\",4,7))))","v":0},{"$f":"IF('Grunddaten-Données de base'!D$9=\"dt.\",IF('Rindvieh-Bovins'!$A18=\"\",0,INDEX(Tierkategorien_GRUD!$H$7:$N$23,MATCH('Rindvieh-Bovins'!$A18,Tierkategorien_GRUD!$A$7:$A$23),IF($Y18=\"03 nur Mist\",6,7))),IF('Rindvieh-Bovins'!$A18=\"\",0,INDEX(Tierkategorien_GRUD!$H$7:$N$23,MATCH('Rindvieh-Bovins'!$A18,Tierkategorien_GRUD!$Q$7:$Q$23),IF($Y18=\"03 uniquement fumier\",6,7))))","v":0},0,{"$f":"IF('Grunddaten-Données de base'!$D$9=\"dt.\",IF($Z18=\"01 Mist/Gülle=25/75\",($AB18+$AC18)*0.75,IF($Z18=\"02 Mist/Gülle=50/50\",($AB18+$AC18)*0.5,IF($Z18=\"03 Mist/Gülle=75/25\",($AB18+$AC18)*0.25,($AB18+$AC18)*0.55))),IF($Z18=\"01 Fumier/lisier=25/75\",($AB18+$AC18)*0.75,IF($Z18=\"02 Fumier/lisier=50/50\",($AB18+$AC18)*0.5,IF($Z18=\"03 Fumier/lisier=75/25\",($AB18+$AC18)*0.25,($AB18+$AC18)*0.55))))","v":0},{"$f":"IF('Grunddaten-Données de base'!$D$9=\"dt.\",IF($Z18=\"01 Mist/Gülle=25/75\",($AB18+$AC18)*0.25,IF($Z18=\"02 Mist/Gülle=50/50\",($AB18+$AC18)*0.5,IF($Z18=\"03 Mist/Gülle=75/25\",($AB18+$AC18)*0.75,($AB18+$AC18)*0.45))),IF($Z18=\"01 Fumier/lisier=25/75\",($AB18+$AC18)*0.25,IF($Z18=\"02 Fumier/lisier=50/50\",($AB18+$AC18)*0.5,IF($Z18=\"03 Fumier/lisier=75/25\",($AB18+$AC18)*0.75,($AB18+$AC18)*0.45))))","v":0},0,{"$f":"IF('Grunddaten-Données de base'!$D$9=\"dt.\",IF($A18=\"01 Milchkuh mit 7500 kg Jahresleistung\",$G18*(AA18+($B$4-7500)/1000*0.05*AA18),($G18*AA18)),IF($A18=\"01 Vache laitière avec 7500 kg de lait\",$G18*(AA18+($B$4-7500)/1000*0.05*AA18,$G18*AA18)))","v":false},null,0,null,0,null,0]
[null,null,{"$f":"IF('Grunddaten-Données de base'!$D$9=\"dt.\",IF($A19=\"\",\"\",INDEX(Tierkategorien_GRUD!$A$7:$R$25,MATCH('Rindvieh-Bovins'!$A19,Tierkategorien_GRUD!$A$7:$A$25),2)),IF($A19=\"\",\"\",INDEX(Tierkategorien_GRUD!$A$7:$R$25,MATCH('Rindvieh-Bovins'!$A19,Tierkategorien_GRUD!$A$7:$A$25),18)))","v":""},null,null,1,0,{"$f":"IF('Rindvieh-Bovins'!$A19=\"\",0,INDEX(Tierkategorien_GRUD!$A$7:$F$25,MATCH('Rindvieh-Bovins'!$A19,Tierkategorien_GRUD!$A$7:$A$25),3))","v":0},{"$f":"IF('Rindvieh-Bovins'!$A19=\"\",0,INDEX(Tierkategorien_GRUD!$A$7:$F$25,MATCH('Rindvieh-Bovins'!$A19,Tierkategorien_GRUD!$A$7:$A$25),4))","v":0},{"$f":"IF('Rindvieh-Bovins'!$A19=\"\",0,INDEX(Tierkategorien_GRUD!$A$7:$F$25,MATCH('Rindvieh-Bovins'!$A19,Tierkategorien_GRUD!$A$7:$A$25),5))","v":0},{"$f":"IF('Rindvieh-Bovins'!$A19=\"\",0,INDEX(Tierkategorien_GRUD!$A$7:$F$25,MATCH('Rindvieh-Bovins'!$A19,Tierkategorien_GRUD!$A$7:$A$25),6))","v":0},0,0,0,0,null,0,0,0,0,null,{"$f":"IF('Rindvieh-Bovins'!$A19=\"\",0,INDEX(Tierkategorien_GRUD!$A$7:$O$23,MATCH('Rindvieh-Bovins'!$A19,Tierkategorien_GRUD!$A$7:$A$23),15))","v":0},0,null,null,null,{"$f":"IF('Grunddaten-Données de base'!D$9=\"dt.\",IF('Rindvieh-Bovins'!$A19=\"\",0,INDEX(Tierkategorien_GRUD!$H$7:$N$25,MATCH('Rindvieh-Bovins'!$A19,Tierkategorien_GRUD!$A$7:$A$25),IF($Y19=\"01 nur Gülle\",1,7))),IF('Rindvieh-Bovins'!$A19=\"\",0,INDEX(Tierkategorien_GRUD!$H$7:$N$25,MATCH('Rindvieh-Bovins'!$A19,Tierkategorien_GRUD!$Q$7:$Q$25),IF($Y19=\"01 uniquement lisier\",1,7))))","v":0},{"$f":"IF('Grunddaten-Données de base'!$D$9=\"dt.\",IF('Rindvieh-Bovins'!$A19=\"\",0,INDEX(Tierkategorien_GRUD!$H$7:$N$25,MATCH('Rindvieh-Bovins'!$A19,Tierkategorien_GRUD!$A$7:$A$25),IF($Y19=\"02 Mist / Gülle\",3,7))),IF('Rindvieh-Bovins'!$A19=\"\",0,INDEX(Tierkategorien_GRUD!$H$7:$N$25,MATCH('Rindvieh-Bovins'!$A19,Tierkategorien_GRUD!$Q$7:$Q$25),IF($Y19=\"02 Fumier / Lisier\",3,7))))","v":0},{"$f":"IF('Grunddaten-Données de base'!D$9=\"dt.\",IF('Rindvieh-Bovins'!$A19=\"\",0,INDEX(Tierkategorien_GRUD!$H$7:$N$23,MATCH('Rindvieh-Bovins'!$A19,Tierkategorien_GRUD!$A$7:$A$23),IF($Y19=\"02 Mist / Gülle\",4,7))),IF('Rindvieh-Bovins'!$A19=\"\",0,INDEX(Tierkategorien_GRUD!$H$7:$N$23,MATCH('Rindvieh-Bovins'!$A19,Tierkategorien_GRUD!$Q$7:$Q$23),IF($Y19=\"02 Fumier / Lisier\",4,7))))","v":0},{"$f":"IF('Grunddaten-Données de base'!D$9=\"dt.\",IF('Rindvieh-Bovins'!$A19=\"\",0,INDEX(Tierkategorien_GRUD!$H$7:$N$23,MATCH('Rindvieh-Bovins'!$A19,Tierkategorien_GRUD!$A$7:$A$23),IF($Y19=\"03 nur Mist\",6,7))),IF('Rindvieh-Bovins'!$A19=\"\",0,INDEX(Tierkategorien_GRUD!$H$7:$N$23,MATCH('Rindvieh-Bovins'!$A19,Tierkategorien_GRUD!$Q$7:$Q$23),IF($Y19=\"03 uniquement fumier\",6,7))))","v":0},0,{"$f":"IF('Grunddaten-Données de base'!$D$9=\"dt.\",IF($Z19=\"01 Mist/Gülle=25/75\",($AB19+$AC19)*0.75,IF($Z19=\"02 Mist/Gülle=50/50\",($AB19+$AC19)*0.5,IF($Z19=\"03 Mist/Gülle=75/25\",($AB19+$AC19)*0.25,($AB19+$AC19)*0.55))),IF($Z19=\"01 Fumier/lisier=25/75\",($AB19+$AC19)*0.75,IF($Z19=\"02 Fumier/lisier=50/50\",($AB19+$AC19)*0.5,IF($Z19=\"03 Fumier/lisier=75/25\",($AB19+$AC19)*0.25,($AB19+$AC19)*0.55))))","v":0},{"$f":"IF('Grunddaten-Données de base'!$D$9=\"dt.\",IF($Z19=\"01 Mist/Gülle=25/75\",($AB19+$AC19)*0.25,IF($Z19=\"02 Mist/Gülle=50/50\",($AB19+$AC19)*0.5,IF($Z19=\"03 Mist/Gülle=75/25\",($AB19+$AC19)*0.75,($AB19+$AC19)*0.45))),IF($Z19=\"01 Fumier/lisier=25/75\",($AB19+$AC19)*0.25,IF($Z19=\"02 Fumier/lisier=50/50\",($AB19+$AC19)*0.5,IF($Z19=\"03 Fumier/lisier=75/25\",($AB19+$AC19)*0.75,($AB19+$AC19)*0.45))))","v":0},0,{"$f":"IF('Grunddaten-Données de base'!$D$9=\"dt.\",IF($A19=\"01 Milchkuh mit 7500 kg Jahresleistung\",$G19*(AA19+($B$4-7500)/1000*0.05*AA19),($G19*AA19)),IF($A19=\"01 Vache laitière avec 7500 kg de lait\",$G19*(AA19+($B$4-7500)/1000*0.05*AA19,$G19*AA19)))","v":false},null,0,null,0,null,0]
[null,null,{"$f":"IF('Grunddaten-Données de base'!$D$9=\"dt.\",IF($A20=\"\",\"\",INDEX(Tierkategorien_GRUD!$A$7:$R$25,MATCH('Rindvieh-Bovins'!$A20,Tierkategorien_GRUD!$A$7:$A$25),2)),IF($A20=\"\",\"\",INDEX(Tierkategorien_GRUD!$A$7:$R$25,MATCH('Rindvieh-Bovins'!$A20,Tierkategorien_GRUD!$A$7:$A$25),18)))","v":""},null,null,1,0,{"$f":"IF('Rindvieh-Bovins'!$A20=\"\",0,INDEX(Tierkategorien_GRUD!$A$7:$F$25,MATCH('Rindvieh-Bovins'!$A20,Tierkategorien_GRUD!$A$7:$A$25),3))","v":0},{"$f":"IF('Rindvieh-Bovins'!$A20=\"\",0,INDEX(Tierkategorien_GRUD!$A$7:$F$25,MATCH('Rindvieh-Bovins'!$A20,Tierkategorien_GRUD!$A$7:$A$25),4))","v":0},{"$f":"IF('Rindvieh-Bovins'!$A20=\"\",0,INDEX(Tierkategorien_GRUD!$A$7:$F$25,MATCH('Rindvieh-Bovins'!$A20,Tierkategorien_GRUD!$A$7:$A$25),5))","v":0},{"$f":"IF('Rindvieh-Bovins'!$A20=\"\",0,INDEX(Tierkategorien_GRUD!$A$7:$F$25,MATCH('Rindvieh-Bovins'!$A20,Tierkategorien_GRUD!$A$7:$A$25),6))","v":0},0,0,0,0,null,0,0,0,0,null,{"$f":"IF('Rindvieh-Bovins'!$A20=\"\",0,INDEX(Tierkategorien_GRUD!$A$7:$O$23,MATCH('Rindvieh-Bovins'!$A20,Tierkategorien_GRUD!$A$7:$A$23),15))","v":0},0,null,null,null,{"$f":"IF('Grunddaten-Données de base'!D$9=\"dt.\",IF('Rindvieh-Bovins'!$A20=\"\",0,INDEX(Tierkategorien_GRUD!$H$7:$N$25,MATCH('Rindvieh-Bovins'!$A20,Tierkategorien_GRUD!$A$7:$A$25),IF($Y20=\"01 nur Gülle\",1,7))),IF('Rindvieh-Bovins'!$A20=\"\",0,INDEX(Tierkategorien_GRUD!$H$7:$N$25,MATCH('Rindvieh-Bovins'!$A20,Tierkategorien_GRUD!$Q$7:$Q$25),IF($Y20=\"01 uniquement lisier\",1,7))))","v":0},{"$f":"IF('Grunddaten-Données de base'!$D$9=\"dt.\",IF('Rindvieh-Bovins'!$A20=\"\",0,INDEX(Tierkategorien_GRUD!$H$7:$N$25,MATCH('Rindvieh-Bovins'!$A20,Tierkategorien_GRUD!$A$7:$A$25),IF($Y20=\"02 Mist / Gülle\",3,7))),IF('Rindvieh-Bovins'!$A20=\"\",0,INDEX(Tierkategorien_GRUD!$H$7:$N$25,MATCH('Rindvieh-Bovins'!$A20,Tierkategorien_GRUD!$Q$7:$Q$25),IF($Y20=\"02 Fumier / Lisier\",3,7))))","v":0},{"$f":"IF('Grunddaten-Données de base'!D$9=\"dt.\",IF('Rindvieh-Bovins'!$A20=\"\",0,INDEX(Tierkategorien_GRUD!$H$7:$N$23,MATCH('Rindvieh-Bovins'!$A20,Tierkategorien_GRUD!$A$7:$A$23),IF($Y20=\"02 Mist / Gülle\",4,7))),IF('Rindvieh-Bovins'!$A20=\"\",0,INDEX(Tierkategorien_GRUD!$H$7:$N$23,MATCH('Rindvieh-Bovins'!$A20,Tierkategorien_GRUD!$Q$7:$Q$23),IF($Y20=\"02 Fumier / Lisier\",4,7))))","v":0},{"$f":"IF('Grunddaten-Données de base'!D$9=\"dt.\",IF('Rindvieh-Bovins'!$A20=\"\",0,INDEX(Tierkategorien_GRUD!$H$7:$N$23,MATCH('Rindvieh-Bovins'!$A20,Tierkategorien_GRUD!$A$7:$A$23),IF($Y20=\"03 nur Mist\",6,7))),IF('Rindvieh-Bovins'!$A20=\"\",0,INDEX(Tierkategorien_GRUD!$H$7:$N$23,MATCH('Rindvieh-Bovins'!$A20,Tierkategorien_GRUD!$Q$7:$Q$23),IF($Y20=\"03 uniquement fumier\",6,7))))","v":0},0,{"$f":"IF('Grunddaten-Données de base'!$D$9=\"dt.\",IF($Z20=\"01 Mist/Gülle=25/75\",($AB20+$AC20)*0.75,IF($Z20=\"02 Mist/Gülle=50/50\",($AB20+$AC20)*0.5,IF($Z20=\"03 Mist/Gülle=75/25\",($AB20+$AC20)*0.25,($AB20+$AC20)*0.55))),IF($Z20=\"01 Fumier/lisier=25/75\",($AB20+$AC20)*0.75,IF($Z20=\"02 Fumier/lisier=50/50\",($AB20+$AC20)*0.5,IF($Z20=\"03 Fumier/lisier=75/25\",($AB20+$AC20)*0.25,($AB20+$AC20)*0.55))))","v":0},{"$f":"IF('Grunddaten-Données de base'!$D$9=\"dt.\",IF($Z20=\"01 Mist/Gülle=25/75\",($AB20+$AC20)*0.25,IF($Z20=\"02 Mist/Gülle=50/50\",($AB20+$AC20)*0.5,IF($Z20=\"03 Mist/Gülle=75/25\",($AB20+$AC20)*0.75,($AB20+$AC20)*0.45))),IF($Z20=\"01 Fumier/lisier=25/75\",($AB20+$AC20)*0.25,IF($Z20=\"02 Fumier/lisier=50/50\",($AB20+$AC20)*0.5,IF($Z20=\"03 Fumier/lisier=75/25\",($AB20+$AC20)*0.75,($AB20+$AC20)*0.45))))","v":0},0,{"$f":"IF('Grunddaten-Données de base'!$D$9=\"dt.\",IF($A20=\"01 Milchkuh mit 7500 kg Jahresleistung\",$G20*(AA20+($B$4-7500)/1000*0.05*AA20),($G20*AA20)),IF($A20=\"01 Vache laitière avec 7500 kg de lait\",$G20*(AA20+($B$4-7500)/1000*0.05*AA20,$G20*AA20)))","v":false},null,0,null,0,null,0]
[]
[{"$f":"IF('Grunddaten-Données de base'!$D$9=\"dt.\",Texte!A59,Texte!B59)","v":"Total d'éléments nutr. et engrais de ferme"},null,null,null,null,null,null,null,null,null,null,null,null,null,null,null,{"$f":"SUM(Q6:Q20)","v":0},{"$f":"SUM(R6:R20)","v":0},{"$f":"SUM(S6:S20)","v":0},{"$f":"SUM(T6:T20)","v":0},null,null,{"$f":"SUM(W6:W21)","v":0},null,null,null,null,null,null,null,null,null,null,null,{"$f":"SUM(AI6:AI21)","v":0},null,{"$f":"SUM(AK6:AK21)","v":0},null,{"$f":"SUM(AM6:AM21)","v":0},null,{"$f":"SUM(AO6:AO21)","v":0},null,{"$f":"IF('Grunddaten-Données de base'!$D$9=\"dt.\",Texte!A60,Texte!B60)","v":"Total"},null,{"$f":"AK22/IF((AK22+AM22)=0,1,(AK22+AM22))","v":0}]
[null,null,null,null,null,null,null,null,null,null,null,null,null,null,null,null,null,null,null,null,null,null,null,null,null,null,null,null,null,null,null,null,null,null,null,null,null,null,null,null,null,null,null,null,{"$f":"AM22/IF((AK22+AM22)=0,1,(AK22+AM22))","v":0}]
[{"$f":"IF('Grunddaten-Données de base'!$D$9=\"dt.\",Texte!A9,Texte!B9)","v":"Fosse 1"},null,null,null,null,null,null,null,null,null,null,null,null,null,null,null,{"$f":"SUMIFS(Q$6:Q$20,$AJ$6:$AJ$20,IF('Grunddaten-Données de base'!$D$9=\"dt.\",\"01 Gülle Grube 1\",\"01 Fosse 1\"),$AI$6:$AI$20,\">0\")+(SUMIFS(Q$6:Q$20,$AL$6:$AL$20,IF('Grunddaten-Données de base'!$D$9=\"dt.\",\"01 Gülle Grube 1\",\"01 Fosse 1\"),$AK$6:$AK$20,\">0\")*$AS$22)","v":0},{"$f":"SUMIFS(R$6:R$20,$AJ$6:$AJ$20,IF('Grunddaten-Données de base'!$D$9=\"dt.\",\"01 Gülle Grube 1\",\"01 Fosse 1\"),$AI$6:$AI$20,\">0\")+(SUMIFS(R$6:R$20,$AL$6:$AL$20,IF('Grunddaten-Données de base'!$D$9=\"dt.\",\"01 Gülle Grube 1\",\"01 Fosse 1\"),$AK$6:$AK$20,\">0\")*$AS$22)","v":0},{"$f":"SUMIFS(S$6:S$20,$AJ$6:$AJ$20,IF('Grunddaten-Données de base'!$D$9=\"dt.\",\"01 Gülle Grube 1\",\"01 Fosse 1\"),$AI$6:$AI$20,\">0\")+(SUMIFS(S$6:S$20,$AL$6:$AL$20,IF('Grunddaten-Données de base'!$D$9=\"dt.\",\"01 Gülle Grube 1\",\"01 Fosse 1\"),$AK$6:$AK$20,\">0\")*$AS$22)","v":0},{"$f":"SUMIFS(T$6:T$20,$AJ$6:$AJ$20,IF('Grunddaten-Données de base'!$D$9=\"dt.\",\"01 Gülle Grube 1\",\"01 Fosse 1\"),$AI$6:$AI$20,\">0\")+(SUMIFS(T$6:T$20,$AL$6:$AL$20,IF('Grunddaten-Données de base'!$D$9=\"dt.\",\"01 Gülle Grube 1\",\"01 Fosse 1\"),$AK$6:$AK$20,\">0\")*$AS$22)","v":0},null,null,null,null,null,null,null,null,null,null,null,null,null,null,{"$f":"SUMIFS(AI$6:AI$20,AJ$6:AJ$20,IF('Grunddaten-Données de base'!$D$9=\"dt.\",\"01 Gülle Grube 1\",\"01 Fosse 1\"))","v":0},null,{"$f":"SUMIFS(AK$6:AK$20,AL$6:AL$20,IF('Grunddaten-Données de base'!$D$9=\"dt.\",\"01 Gülle Grube 1\",\"01 Fosse 1\"))","v":0},null,null,null,null,null,{"$f":"AI24+AK24","v":0}]
[{"$f":"IF('Grunddaten-Données de base'!$D$9=\"dt.\",Texte!A10,Texte!B10)","v":"Fosse 2"},null,null,null,null,null,null,null,null,null,null,null,null,null,null,null,{"$f":"SUMIFS(Q$6:Q$20,$AJ$6:$AJ$20,IF('Grunddaten-Données de base'!$D$9=\"dt.\",\"02 Gülle Grube 2\",\"02 Fosse 2\"),$AI$6:$AI$20,\">0\")+(SUMIFS(Q$6:Q$20,$AL$6:$AL$20,IF('Grunddaten-Données de base'!$D$9=\"dt.\",\"02 Gülle Grube 2\",\"02 Fosse 2\"),$AK$6:$AK$20,\">0\")*$AS$22)","v":0},{"$f":"SUMIFS(R$6:R$20,$AJ$6:$AJ$20,IF('Grunddaten-Données de base'!$D$9=\"dt.\",\"02 Gülle Grube 2\",\"02 Fosse 2\"),$AI$6:$AI$20,\">0\")+(SUMIFS(R$6:R$20,$AL$6:$AL$20,IF('Grunddaten-Données de base'!$D$9=\"dt.\",\"02 Gülle Grube 2\",\"02 Fosse 2\"),$AK$6:$AK$20,\">0\")*$AS$22)","v":0},{"$f":"SUMIFS(S$6:S$20,$AJ$6:$AJ$20,IF('Grunddaten-Données de base'!$D$9=\"dt.\",\"02 Gülle Grube 2\",\"02 Fosse 2\"),$AI$6:$AI$20,\">0\")+(SUMIFS(S$6:S$20,$AL$6:$AL$20,IF('Grunddaten-Données de base'!$D$9=\"dt.\",\"02 Gülle Grube 2\",\"02 Fosse 2\"),$AK$6:$AK$20,\">0\")*$AS$22)","v":0},{"$f":"SUMIFS(T$6:T$20,$AJ$6:$AJ$20,IF('Grunddaten-Données de base'!$D$9=\"dt.\",\"02 Gülle Grube 2\",\"02 Fosse 2\"),$AI$6:$AI$20,\">0\")+(SUMIFS(T$6:T$20,$AL$6:$AL$20,IF('Grunddaten-Données de base'!$D$9=\"dt.\",\"02 Gülle Grube 2\",\"02 Fosse 2\"),$AK$6:$AK$20,\">0\")*$AS$22)","v":0},null,null,null,null,null,null,null,null,null,null,null,null,null,null,{"$f":"SUMIFS(AI$6:AI$20,AJ$6:AJ$20,IF('Grunddaten-Données de base'!$D$9=\"dt.\",\"02 Gülle Grube 2\",\"02 Fosse 2\"))","v":0},null,{"$f":"SUMIFS(AK$6:AK$20,AL$6:AL$20,IF('Grunddaten-Données de base'!$D$9=\"dt.\",\"02 Gülle Grube 2\",\"02 Fosse 2\"))","v":0},null,null,null,null,null,{"$f":"AI25+AK25","v":0}]
[{"$f":"IF('Grunddaten-Données de base'!$D$9=\"dt.\",Texte!A11,Texte!B11)","v":"Fosse 3"},null,null,null,null,null,null,null,null,null,null,null,null,null,null,null,{"$f":"SUMIFS(Q$6:Q$20,$AJ$6:$AJ$20,IF('Grunddaten-Données de base'!$D$9=\"dt.\",\"03 Gülle Grube 3\",\"03 Fosse 3\"),$AI$6:$AI$20,\">0\")+(SUMIFS(Q$6:Q$20,$AL$6:$AL$20,IF('Grunddaten-Données de base'!$D$9=\"dt.\",\"03 Gülle Grube 3\",\"03 Fosse 3\"),$AK$6:$AK$20,\">0\")*$AS$22)","v":0},{"$f":"SUMIFS(R$6:R$20,$AJ$6:$AJ$20,IF('Grunddaten-Données de base'!$D$9=\"dt.\",\"03 Gülle Grube 3\",\"03 Fosse 3\"),$AI$6:$AI$20,\">0\")+(SUMIFS(R$6:R$20,$AL$6:$AL$20,IF('Grunddaten-Données de base'!$D$9=\"dt.\",\"03 Gülle Grube 3\",\"03 Fosse 3\"),$AK$6:$AK$20,\">0\")*$AS$22)","v":0},{"$f":"SUMIFS(S$6:S$20,$AJ$6:$AJ$20,IF('Grunddaten-Données de base'!$D$9=\"dt.\",\"03 Gülle Grube 3\",\"03 Fosse 3\"),$AI$6:$AI$20,\">0\")+(SUMIFS(S$6:S$20,$AL$6:$AL$20,IF('Grunddaten-Données de base'!$D$9=\"dt.\",\"03 Gülle Grube 3\",\"03 Fosse 3\"),$AK$6:$AK$20,\">0\")*$AS$22)","v":0},{"$f":"SUMIFS(T$6:T$20,$AJ$6:$AJ$20,IF('Grunddaten-Données de base'!$D$9=\"dt.\",\"03 Gülle Grube 3\",\"03 Fosse 3\"),$AI$6:$AI$20,\">0\")+(SUMIFS(T$6:T$20,$AL$6:$AL$20,IF('Grunddaten-Données de base'!$D$9=\"dt.\",\"03 Gülle Grube 3\",\"03 Fosse 3\"),$AK$6:$AK$20,\">0\")*$AS$22)","v":0},null,null,null,null,null,null,null,null,null,null,null,null,null,null,{"$f":"SUMIFS(AI$6:AI$20,AJ$6:AJ$20,IF('Grunddaten-Données de base'!$D$9=\"dt.\",\"03 Gülle Grube 3\",\"03 Fosse 3\"))","v":0},null,{"$f":"SUMIFS(AK$6:AK$20,AL$6:AL$20,IF('Grunddaten-Données de base'!$D$9=\"dt.\",\"03 Gülle Grube 3\",\"03 Fosse 3\"))","v":0},null,null,null,null,null,0]
[]
[]
[{"$f":"IF('Grunddaten-Données de base'!$D$9=\"dt.\",Texte!A12,Texte!B12)","v":"Fumière 1"},null,null,null,null,null,null,null,null,null,null,null,null,null,null,null,{"$f":"(SUMIFS(Q$6:Q$20,$AN$6:$AN$20,IF('Grunddaten-Données de base'!$D$9=\"dt.\",\"04 Mistplatz 1\",\"04 Fumière 1\"),$AM$6:$AM$20,\">0\")*$AS$23)+SUMIFS(Q$6:Q$20,$AP$6:$AP$20,IF('Grunddaten-Données de base'!$D$9=\"dt.\",\"04 Mistplatz 1\",\"04 Fumière 1\"),$AO$6:$AO$20,\">0\")","v":0},{"$f":"(SUMIFS(R$6:R$20,$AN$6:$AN$20,IF('Grunddaten-Données de base'!$D$9=\"dt.\",\"04 Mistplatz 1\",\"04 Fumière 1\"),$AM$6:$AM$20,\">0\")*$AS$23)+SUMIFS(R$6:R$20,$AP$6:$AP$20,IF('Grunddaten-Données de base'!$D$9=\"dt.\",\"04 Mistplatz 1\",\"04 Fumière 1\"),$AO$6:$AO$20,\">0\")","v":0},{"$f":"(SUMIFS(S$6:S$20,$AN$6:$AN$20,IF('Grunddaten-Données de base'!$D$9=\"dt.\",\"04 Mistplatz 1\",\"04 Fumière 1\"),$AM$6:$AM$20,\">0\")*$AS$23)+SUMIFS(S$6:S$20,$AP$6:$AP$20,IF('Grunddaten-Données de base'!$D$9=\"dt.\",\"04 Mistplatz 1\",\"04 Fumière 1\"),$AO$6:$AO$20,\">0\")","v":0},{"$f":"(SUMIFS(T$6:T$20,$AN$6:$AN$20,IF('Grunddaten-Données de base'!$D$9=\"dt.\",\"04 Mistplatz 1\",\"04 Fumière 1\"),$AM$6:$AM$20,\">0\")*$AS$23)+SUMIFS(T$6:T$20,$AP$6:$AP$20,IF('Grunddaten-Données de base'!$D$9=\"dt.\",\"04 Mistplatz 1\",\"04 Fumière 1\"),$AO$6:$AO$20,\">0\")","v":0},null,null,null,null,null,null,null,null,null,null,null,null,null,null,null,null,null,null,{"$f":"SUMIFS(AM$6:AM$20,AN$6:AN$20,IF('Grunddaten-Données de base'!$D$9=\"dt.\",\"04 Mistplatz 1\",\"04 Fumière 1\"))","v":0},null,{"$f":"SUMIFS(AO$6:AO$20,AP$6:AP$20,IF('Grunddaten-Données de base'!$D$9=\"dt.\",\"04 Mistplatz 1\",\"04 Fumière 1\"))","v":0},null,{"$f":"AM29+AO29","v":0}]
[{"$f":"IF('Grunddaten-Données de base'!$D$9=\"dt.\",Texte!A13,Texte!B13)","v":"Fumière 2"},null,null,null,null,null,null,null,null,null,null,null,null,null,null,null,{"$f":"(SUMIFS(Q$6:Q$20,$AN$6:$AN$20,IF('Grunddaten-Données de base'!$D$9=\"dt.\",\"05 Mistplatz 2\",\"05 Fumière 2\"),$AM$6:$AM$20,\">0\")*$AS$23)+SUMIFS(Q$6:Q$20,$AP$6:$AP$20,IF('Grunddaten-Données de base'!$D$9=\"dt.\",\"05 Mistplatz 2\",\"05 Fumière 2\"),$AO$6:$AO$20,\">0\")","v":0},{"$f":"(SUMIFS(R$6:R$20,$AN$6:$AN$20,IF('Grunddaten-Données de base'!$D$9=\"dt.\",\"05 Mistplatz 2\",\"05 Fumière 2\"),$AM$6:$AM$20,\">0\")*$AS$23)+SUMIFS(R$6:R$20,$AP$6:$AP$20,IF('Grunddaten-Données de base'!$D$9=\"dt.\",\"05 Mistplatz 2\",\"05 Fumière 2\"),$AO$6:$AO$20,\">0\")","v":0},{"$f":"(SUMIFS(S$6:S$20,$AN$6:$AN$20,IF('Grunddaten-Données de base'!$D$9=\"dt.\",\"05 Mistplatz 2\",\"05 Fumière 2\"),$AM$6:$AM$20,\">0\")*$AS$23)+SUMIFS(S$6:S$20,$AP$6:$AP$20,IF('Grunddaten-Données de base'!$D$9=\"dt.\",\"05 Mistplatz 2\",\"05 Fumière 2\"),$AO$6:$AO$20,\">0\")","v":0},{"$f":"(SUMIFS(T$6:T$20,$AN$6:$AN$20,IF('Grunddaten-Données de base'!$D$9=\"dt.\",\"05 Mistplatz 2\",\"05 Fumière 2\"),$AM$6:$AM$20,\">0\")*$AS$23)+SUMIFS(T$6:T$20,$AP$6:$AP$20,IF('Grunddaten-Données de base'!$D$9=\"dt.\",\"05 Mistplatz 2\",\"05 Fumière 2\"),$AO$6:$AO$20,\">0\")","v":0},null,null,null,null,null,null,null,null,null,null,null,null,null,null,null,null,null,null,{"$f":"SUMIFS(AM$6:AM$20,AN$6:AN$20,IF('Grunddaten-Données de base'!$D$9=\"dt.\",\"05 Mistplatz 2\",\"05 Fumière 2\"))","v":0},null,{"$f":"SUMIFS(AO$6:AO$20,AP$6:AP$20,IF('Grunddaten-Données de base'!$D$9=\"dt.\",\"05 Mistplatz 2\",\"05 Fumière 2\"))","v":0},null,{"$f":"AM30+AO30","v":0}]
[{"$f":"IF('Grunddaten-Données de base'!$D$9=\"dt.\",Texte!A14,Texte!B14)","v":"Fumière 3"},null,null,null,null,null,null,null,null,null,null,null,null,null,null,null,{"$f":"(SUMIFS(Q$6:Q$20,$AN$6:$AN$20,IF('Grunddaten-Données de base'!$D$9=\"dt.\",\"06 Mistplatz 3\",\"06 Fumière 3\"),$AM$6:$AM$20,\">0\")*$AS$23)+SUMIFS(Q$6:Q$20,$AP$6:$AP$20,IF('Grunddaten-Données de base'!$D$9=\"dt.\",\"06 Mistplatz 3\",\"06 Fumière 3\"),$AO$6:$AO$20,\">0\")","v":0},{"$f":"(SUMIFS(R$6:R$20,$AN$6:$AN$20,IF('Grunddaten-Données de base'!$D$9=\"dt.\",\"06 Mistplatz 3\",\"06 Fumière 3\"),$AM$6:$AM$20,\">0\")*$AS$23)+SUMIFS(R$6:R$20,$AP$6:$AP$20,IF('Grunddaten-Données de base'!$D$9=\"dt.\",\"06 Mistplatz 3\",\"06 Fumière 3\"),$AO$6:$AO$20,\">0\")","v":0},{"$f":"(SUMIFS(S$6:S$20,$AN$6:$AN$20,IF('Grunddaten-Données de base'!$D$9=\"dt.\",\"06 Mistplatz 3\",\"06 Fumière 3\"),$AM$6:$AM$20,\">0\")*$AS$23)+SUMIFS(S$6:S$20,$AP$6:$AP$20,IF('Grunddaten-Données de base'!$D$9=\"dt.\",\"06 Mistplatz 3\",\"06 Fumière 3\"),$AO$6:$AO$20,\">0\")","v":0},{"$f":"(SUMIFS(T$6:T$20,$AN$6:$AN$20,IF('Grunddaten-Données de base'!$D$9=\"dt.\",\"06 Mistplatz 3\",\"06 Fumière 3\"),$AM$6:$AM$20,\">0\")*$AS$23)+SUMIFS(T$6:T$20,$AP$6:$AP$20,IF('Grunddaten-Données de base'!$D$9=\"dt.\",\"06 Mistplatz 3\",\"06 Fumière 3\"),$AO$6:$AO$20,\">0\")","v":0},null,null,null,null,null,null,null,null,null,null,null,null,null,null,null,null,null,null,{"$f":"SUMIFS(AM$6:AM$20,AN$6:AN$20,IF('Grunddaten-Données de base'!$D$9=\"dt.\",\"06 Mistplatz 3\",\"06 Fumière 3\"))","v":0},null,{"$f":"SUMIFS(AO$6:AO$20,AP$6:AP$20,IF('Grunddaten-Données de base'!$D$9=\"dt.\",\"06 Mistplatz 3\",\"06 Fumière 3\"))","v":0},null,{"$f":"AM31+AO31","v":0}]
[]
[null,null,null,null,null,null,null,null,null,null,null,null,null,null,null,null,{"$f":"SUM(Q24:Q31)","v":0},{"$f":"SUM(R24:R31)","v":0},0,0,null,null,null,null,null,null,null,null,null,null,null,null,null,null,{"$f":"SUM(AI24:AI26)","v":0},null,{"$f":"SUM(AK24:AK26)","v":0},null,{"$f":"SUM(AM29:AM31)","v":0},null,{"$f":"SUM(AO29:AO31)","v":0}]
[null,null,null,null,null,null,null,null,null,null,null,null,null,null,null,null,null,null,null,null,null,null,null,null,null,null,null,null,null,null,null,null,null,null,null,{"$f":"IF($AI$22<>$AI$33,IF('Grunddaten-Données de base'!$D$9=\"dt.\",\"Achtung! Fehler in der Zuteilung!\",\"Attention! Faute dans la distribution !\"),\"\")","v":""},null,{"$f":"IF($AK$22<>$AK$33,IF('Grunddaten-Données de base'!$D$9=\"dt.\",\"Achtung! Fehler in der Zuteilung!\",\"Attention! Faute dans la distribution !\"),\"\")","v":""},null,{"$f":"IF($AM$22<>$AM$33,IF('Grunddaten-Données de base'!$D$9=\"dt.\",\"Achtung! Fehler in der Zuteilung!\",\"Attention! Faute dans la distribution !\"),\"\")","v":""},null,{"$f":"IF($AO$22<>$AO$33,IF('Grunddaten-Données de base'!$D$9=\"dt.\",\"Achtung! Fehler in der Zuteilung!\",\"Attention! Faute dans la distribution !\"),\"\")","v":""}]

{"sheet":"A. RF-Verzehrer-A.a.cons. du FG","index":3,"n_rows":32,"n_cols":25,"rows_kept":32,"cut":false,"hidden":false,"merged":[[0,7,0,10],[0,12,0,15],[0,3,0,4]]}
[{"$f":"IF('Grunddaten-Données de base'!$D$9=\"dt.\",Texte!A35,Texte!B35)","v":"Catégorie"},null,null,{"$f":"IF('Grunddaten-Données de base'!$D$9=\"dt.\",Texte!A40,Texte!B40)","v":"Sorties / pâturage"},null,null,null,{"$f":"IF('Grunddaten-Données de base'!$D$9=\"dt.\",Texte!A44,Texte!B44)","v":"Prod. d'éléments nutr. / unité"},null,null,null,null,{"$f":"IF('Grunddaten-Données de base'!$D$9=\"dt.\",Texte!A46,Texte!B46)","v":"Total prod. d'éléments nutr."},null,null,null,null,"GVE-Faktor","GVE",null,"Mist (m3)",{"$f":"IF('Grunddaten-Données de base'!$D$9=\"dt.\",Texte!A52,Texte!B52)","v":"Fumier (t)"},{"$f":"IF('Grunddaten-Données de base'!$D$9=\"dt.\",Texte!A58,Texte!B58)","v":"Fumière"}]
[{"$f":"IF('Grunddaten-Données de base'!$D$9=\"dt.\",Texte!A62,Texte!B62)","v":"Autres animaux consommant des fourrages grossiers"},{"$f":"IF('Grunddaten-Données de base'!$D$9=\"dt.\",Texte!A38,Texte!B38)","v":"Nombre"},{"$f":"IF('Grunddaten-Données de base'!$D$9=\"dt.\",Texte!A39,Texte!B39)","v":"Unité"},{"$f":"IF('Grunddaten-Données de base'!$D$9=\"dt.\",Texte!A41,Texte!B41)","v":"Jours / an"},{"$f":"IF('Grunddaten-Données de base'!$D$9=\"dt.\",Texte!A42,Texte!B42)","v":"h / jour"},null,{"$f":"IF('Grunddaten-Données de base'!$D$9=\"dt.\",Texte!A43,Texte!B43)","v":"Nbre corrigé"},{"$f":"IF('Grunddaten-Données de base'!$D$9=\"dt.\",Texte!A45,Texte!B45)","v":"Nstock"},"P2O5","K2O","Mg",null,{"$f":"IF('Grunddaten-Données de base'!$D$9=\"dt.\",Texte!A45,Texte!B45)","v":"Nstock"},"P2O5","K2O","Mg"]
[]
[null,null,{"$f":"IF('Grunddaten-Données de base'!D$9=\"dt.\",IF('A. RF-Verzehrer-A.a.cons. du FG'!$A4=\"\",\"\",INDEX(Tierkategorien_GRUD!$A$27:$R$49,MATCH('A. RF-Verzehrer-A.a.cons. du FG'!$A4,Tierkategorien_GRUD!$A$27:$A$49),2)),IF('A. RF-Verzehrer-A.a.cons. du FG'!$A4=\"\",\"\",INDEX(Tierkategorien_GRUD!$A$27:$R$49,MATCH('A. RF-Verzehrer-A.a.cons. du FG'!$A4,Tierkategorien_GRUD!$A$27:$A$49),18)))","v":""},null,null,{"$f":"(365-($D4*($E4/24)))/365","v":1},{"$f":"$B4*$F4","v":0},{"$f":"IF('A. RF-Verzehrer-A.a.cons. du FG'!$A4=\"\",0,INDEX(Tierkategorien_GRUD!$A$27:$F$49,MATCH('A. RF-Verzehrer-A.a.cons. du FG'!$A4,Tierkategorien_GRUD!$A$27:$A$49),3))","v":0},{"$f":"IF('A. RF-Verzehrer-A.a.cons. du FG'!$A4=\"\",0,INDEX(Tierkategorien_GRUD!$A$27:$F$49,MATCH('A. RF-Verzehrer-A.a.cons. du FG'!$A4,Tierkategorien_GRUD!$A$27:$A$49),4))","v":0},{"$f":"IF('A. RF-Verzehrer-A.a.cons. du FG'!$A4=\"\",0,INDEX(Tierkategorien_GRUD!$A$27:$F$49,MATCH('A. RF-Verzehrer-A.a.cons. du FG'!$A4,Tierkategorien_GRUD!$A$27:$A$49),5))","v":0},{"$f":"IF('A. RF-Verzehrer-A.a.cons. du FG'!$A4=\"\",0,INDEX(Tierkategorien_GRUD!$A$27:$F$49,MATCH('A. RF-Verzehrer-A.a.cons. du FG'!$A4,Tierkategorien_GRUD!$A$27:$A$49),6))","v":0},null,{"$f":"$G4*H4","v":0},{"$f":"$G4*I4","v":0},{"$f":"$G4*J4","v":0},0,null,{"$f":"IF('A. RF-Verzehrer-A.a.cons. du FG'!$A4=\"\",0,INDEX(Tierkategorien_GRUD!$A$27:$O$49,MATCH('A. RF-Verzehrer-A.a.cons. du FG'!$A4,Tierkategorien_GRUD!$A$27:$A$49),15))","v":0},{"$f":"IF(G4*R4=\"\",0,G4*R4)","v":0},{"$f":"IF('A. RF-Verzehrer-A.a.cons. du FG'!$A4=\"\",\"\",INDEX(Tierkategorien_GRUD!$A$27:$P$49,MATCH('A. RF-Verzehrer-A.a.cons. du FG'!$A4,Tierkategorien_GRUD!$A$27:$A$49),16))","v":""},{"$f":"IF('A. RF-Verzehrer-A.a.cons. du FG'!$A4=\"\",0,INDEX(Tierkategorien_GRUD!$A$27:$M$49,MATCH('A. RF-Verzehrer-A.a.cons. du FG'!$A4,Tierkategorien_GRUD!$A$27:$A$49),13))","v":0},{"$f":"U4*G4","v":0}]
[null,null,{"$f":"IF('Grunddaten-Données de base'!D$9=\"dt.\",IF('A. RF-Verzehrer-A.a.cons. du FG'!$A5=\"\",\"\",INDEX(Tierkategorien_GRUD!$A$27:$R$49,MATCH('A. RF-Verzehrer-A.a.cons. du FG'!$A5,Tierkategorien_GRUD!$A$27:$A$49),2)),IF('A. RF-Verzehrer-A.a.cons. du FG'!$A5=\"\",\"\",INDEX(Tierkategorien_GRUD!$A$27:$R$49,MATCH('A. RF-Verzehrer-A.a.cons. du FG'!$A5,Tierkategorien_GRUD!$A$27:$A$49),18)))","v":""},null,null,{"$f":"(365-($D5*($E5/24)))/365","v":1},{"$f":"$B5*$F5","v":0},{"$f":"IF('A. RF-Verzehrer-A.a.cons. du FG'!$A5=\"\",0,INDEX(Tierkategorien_GRUD!$A$27:$F$49,MATCH('A. RF-Verzehrer-A.a.cons. du FG'!$A5,Tierkategorien_GRUD!$A$27:$A$49),3))","v":0},{"$f":"IF('A. RF-Verzehrer-A.a.cons. du FG'!$A5=\"\",0,INDEX(Tierkategorien_GRUD!$A$27:$F$49,MATCH('A. RF-Verzehrer-A.a.cons. du FG'!$A5,Tierkategorien_GRUD!$A$27:$A$49),4))","v":0},{"$f":"IF('A. RF-Verzehrer-A.a.cons. du FG'!$A5=\"\",0,INDEX(Tierkategorien_GRUD!$A$27:$F$49,MATCH('A. RF-Verzehrer-A.a.cons. du FG'!$A5,Tierkategorien_GRUD!$A$27:$A$49),5))","v":0},{"$f":"IF('A. RF-Verzehrer-A.a.cons. du FG'!$A5=\"\",0,INDEX(Tierkategorien_GRUD!$A$27:$F$49,MATCH('A. RF-Verzehrer-A.a.cons. du FG'!$A5,Tierkategorien_GRUD!$A$27:$A$49),6))","v":0},null,{"$f":"$G5*H5","v":0},{"$f":"$G5*I5","v":0},{"$f":"$G5*J5","v":0},{"$f":"$G5*K5","v":0},null,{"$f":"IF('A. RF-Verzehrer-A.a.cons. du FG'!$A5=\"\",0,INDEX(Tierkategorien_GRUD!$A$27:$O$49,MATCH('A. RF-Verzehrer-A.a.cons. du FG'!$A5,Tierkategorien_GRUD!$A$27:$A$49),15))","v":0},{"$f":"IF(G5*R5=\"\",0,G5*R5)","v":0},{"$f":"IF('A. RF-Verzehrer-A.a.cons. du FG'!$A5=\"\",\"\",INDEX(Tierkategorien_GRUD!$A$27:$P$49,MATCH('A. RF-Verzehrer-A.a.cons. du FG'!$A5,Tierkategorien_GRUD!$A$27:$A$49),16))","v":""},{"$f":"IF('A. RF-Verzehrer-A.a.cons. du FG'!$A5=\"\",0,INDEX(Tierkategorien_GRUD!$A$27:$M$49,MATCH('A. RF-Verzehrer-A.a.cons. du FG'!$A5,Tierkategorien_GRUD!$A$27:$A$49),13))","v":0},{"$f":"U5*G5","v":0}]
[null,null,{"$f":"IF('Grunddaten-Données de base'!D$9=\"dt.\",IF('A. RF-Verzehrer-A.a.cons. du FG'!$A6=\"\",\"\",INDEX(Tierkategorien_GRUD!$A$27:$R$49,MATCH('A. RF-Verzehrer-A.a.cons. du FG'!$A6,Tierkategorien_GRUD!$A$27:$A$49),2)),IF('A. RF-Verzehrer-A.a.cons. du FG'!$A6=\"\",\"\",INDEX(Tierkategorien_GRUD!$A$27:$R$49,MATCH('A. RF-Verzehrer-A.a.cons. du FG'!$A6,Tierkategorien_GRUD!$A$27:$A$49),18)))","v":""},null,null,1,{"$f":"$B6*$F6","v":0},{"$f":"IF('A. RF-Verzehrer-A.a.cons. du FG'!$A6=\"\",0,INDEX(Tierkategorien_GRUD!$A$27:$F$49,MATCH('A. RF-Verzehrer-A.a.cons. du FG'!$A6,Tierkategorien_GRUD!$A$27:$A$49),3))","v":0},{"$f":"IF('A. RF-Verzehrer-A.a.cons. du FG'!$A6=\"\",0,INDEX(Tierkategorien_GRUD!$A$27:$F$49,MATCH('A. RF-Verzehrer-A.a.cons. du FG'!$A6,Tierkategorien_GRUD!$A$27:$A$49),4))","v":0},{"$f":"IF('A. RF-Verzehrer-A.a.cons. du FG'!$A6=\"\",0,INDEX(Tierkategorien_GRUD!$A$27:$F$49,MATCH('A. RF-Verzehrer-A.a.cons. du FG'!$A6,Tierkategorien_GRUD!$A$27:$A$49),5))","v":0},{"$f":"IF('A. RF-Verzehrer-A.a.cons. du FG'!$A6=\"\",0,INDEX(Tierkategorien_GRUD!$A$27:$F$49,MATCH('A. RF-Verzehrer-A.a.cons. du FG'!$A6,Tierkategorien_GRUD!$A$27:$A$49),6))","v":0},null,0,0,0,0,null,{"$f":"IF('A. RF-Verzehrer-A.a.cons. du FG'!$A6=\"\",0,INDEX(Tierkategorien_GRUD!$A$27:$O$49,MATCH('A. RF-Verzehrer-A.a.cons. du FG'!$A6,Tierkategorien_GRUD!$A$27:$A$49),15))","v":0},0,{"$f":"IF('A. RF-Verzehrer-A.a.cons. du FG'!$A6=\"\",\"\",INDEX(Tierkategorien_GRUD!$A$27:$P$49,MATCH('A. RF-Verzehrer-A.a.cons. du FG'!$A6,Tierkategorien_GRUD!$A$27:$A$49),16))","v":""},{"$f":"IF('A. RF-Verzehrer-A.a.cons. du FG'!$A6=\"\",0,INDEX(Tierkategorien_GRUD!$A$27:$M$49,MATCH('A. RF-Verzehrer-A.a.cons. du FG'!$A6,Tierkategorien_GRUD!$A$27:$A$49),13))","v":0},0]
[null,null,{"$f":"IF('Grunddaten-Données de base'!D$9=\"dt.\",IF('A. RF-Verzehrer-A.a.cons. du FG'!$A7=\"\",\"\",INDEX(Tierkategorien_GRUD!$A$27:$R$49,MATCH('A. RF-Verzehrer-A.a.cons. du FG'!$A7,Tierkategorien_GRUD!$A$27:$A$49),2)),IF('A. RF-Verzehrer-A.a.cons. du FG'!$A7=\"\",\"\",INDEX(Tierkategorien_GRUD!$A$27:$R$49,MATCH('A. RF-Verzehrer-A.a.cons. du FG'!$A7,Tierkategorien_GRUD!$A$27:$A$49),18)))","v":""},null,null,1,0,{"$f":"IF('A. RF-Verzehrer-A.a.cons. du FG'!$A7=\"\",0,INDEX(Tierkategorien_GRUD!$A$27:$F$49,MATCH('A. RF-Verzehrer-A.a.cons. du FG'!$A7,Tierkategorien_GRUD!$A$27:$A$49),3))","v":0},{"$f":"IF('A. RF-Verzehrer-A.a.cons. du FG'!$A7=\"\",0,INDEX(Tierkategorien_GRUD!$A$27:$F$49,MATCH('A. RF-Verzehrer-A.a.cons. du FG'!$A7,Tierkategorien_GRUD!$A$27:$A$49),4))","v":0},{"$f":"IF('A. RF-Verzehrer-A.a.cons. du FG'!$A7=\"\",0,INDEX(Tierkategorien_GRUD!$A$27:$F$49,MATCH('A. RF-Verzehrer-A.a.cons. du FG'!$A7,Tierkategorien_GRUD!$A$27:$A$49),5))","v":0},{"$f":"IF('A. RF-Verzehrer-A.a.cons. du FG'!$A7=\"\",0,INDEX(Tierkategorien_GRUD!$A$27:$F$49,MATCH('A. RF-Verzehrer-A.a.cons. du FG'!$A7,Tierkategorien_GRUD!$A$27:$A$49),6))","v":0},null,0,0,0,0,null,{"$f":"IF('A. RF-Verzehrer-A.a.cons. du FG'!$A7=\"\",0,INDEX(Tierkategorien_GRUD!$A$27:$O$49,MATCH('A. RF-Verzehrer-A.a.cons. du FG'!$A7,Tierkategorien_GRUD!$A$27:$A$49),15))","v":0},0,{"$f":"IF('A. RF-Verzehrer-A.a.cons. du FG'!$A7=\"\",\"\",INDEX(Tierkategorien_GRUD!$A$27:$P$49,MATCH('A. RF-Verzehrer-A.a.cons. du FG'!$A7,Tierkategorien_GRUD!$A$27:$A$49),16))","v":""},{"$f":"IF('A. RF-Verzehrer-A.a.cons. du FG'!$A7=\"\",0,INDEX(Tierkategorien_GRUD!$A$27:$M$49,MATCH('A. RF-Verzehrer-A.a.cons. du FG'!$A7,Tierkategorien_GRUD!$A$27:$A$49),13))","v":0},0]
[null,null,{"$f":"IF('Grunddaten-Données de base'!D$9=\"dt.\",IF('A. RF-Verzehrer-A.a.cons. du FG'!$A8=\"\",\"\",INDEX(Tierkategorien_GRUD!$A$27:$R$49,MATCH('A. RF-Verzehrer-A.a.cons. du FG'!$A8,Tierkategorien_GRUD!$A$27:$A$49),2)),IF('A. RF-Verzehrer-A.a.cons. du FG'!$A8=\"\",\"\",INDEX(Tierkategorien_GRUD!$A$27:$R$49,MATCH('A. RF-Verzehrer-A.a.cons. du FG'!$A8,Tierkategorien_GRUD!$A$27:$A$49),18)))","v":""},null,null,1,0,{"$f":"IF('A. RF-Verzehrer-A.a.cons. du FG'!$A8=\"\",0,INDEX(Tierkategorien_GRUD!$A$27:$F$49,MATCH('A. RF-Verzehrer-A.a.cons. du FG'!$A8,Tierkategorien_GRUD!$A$27:$A$49),3))","v":0},{"$f":"IF('A. RF-Verzehrer-A.a.cons. du FG'!$A8=\"\",0,INDEX(Tierkategorien_GRUD!$A$27:$F$49,MATCH('A. RF-Verzehrer-A.a.cons. du FG'!$A8,Tierkategorien_GRUD!$A$27:$A$49),4))","v":0},{"$f":"IF('A. RF-Verzehrer-A.a.cons. du FG'!$A8=\"\",0,INDEX(Tierkategorien_GRUD!$A$27:$F$49,MATCH('A. RF-Verzehrer-A.a.cons. du FG'!$A8,Tierkategorien_GRUD!$A$27:$A$49),5))","v":0},{"$f":"IF('A. RF-Verzehrer-A.a.cons. du FG'!$A8=\"\",0,INDEX(Tierkategorien_GRUD!$A$27:$F$49,MATCH('A. RF-Verzehrer-A.a.cons. du FG'!$A8,Tierkategorien_GRUD!$A$27:$A$49),6))","v":0},null,0,0,0,0,null,{"$f":"IF('A. RF-Verzehrer-A.a.cons. du FG'!$A8=\"\",0,INDEX(Tierkategorien_GRUD!$A$27:$O$49,MATCH('A. RF-Verzehrer-A.a.cons. du FG'!$A8,Tierkategorien_GRUD!$A$27:$A$49),15))","v":0},0,{"$f":"IF('A. RF-Verzehrer-A.a.cons. du FG'!$A8=\"\",\"\",INDEX(Tierkategorien_GRUD!$A$27:$P$49,MATCH('A. RF-Verzehrer-A.a.cons. du FG'!$A8,Tierkategorien_GRUD!$A$27:$A$49),16))","v":""},{"$f":"IF('A. RF-Verzehrer-A.a.cons. du FG'!$A8=\"\",0,INDEX(Tierkategorien_GRUD!$A$27:$M$49,MATCH('A. RF-Verzehrer-A.a.cons. du FG'!$A8,Tierkategorien_GRUD!$A$27:$A$49),13))","v":0},0]
[null,null,{"$f":"IF('Grunddaten-Données de base'!D$9=\"dt.\",IF('A. RF-Verzehrer-A.a.cons. du FG'!$A9=\"\",\"\",INDEX(Tierkategorien_GRUD!$A$27:$R$49,MATCH('A. RF-Verzehrer-A.a.cons. du FG'!$A9,Tierkategorien_GRUD!$A$27:$A$49),2)),IF('A. RF-Verzehrer-A.a.cons. du FG'!$A9=\"\",\"\",INDEX(Tierkategorien_GRUD!$A$27:$R$49,MATCH('A. RF-Verzehrer-A.a.cons. du FG'!$A9,Tierkategorien_GRUD!$A$27:$A$49),18)))","v":""},null,null,1,0,{"$f":"IF('A. RF-Verzehrer-A.a.cons. du FG'!$A9=\"\",0,INDEX(Tierkategorien_GRUD!$A$27:$F$49,MATCH('A. RF-Verzehrer-A.a.cons. du FG'!$A9,Tierkategorien_GRUD!$A$27:$A$49),3))","v":0},{"$f":"IF('A. RF-Verzehrer-A.a.cons. du FG'!$A9=\"\",0,INDEX(Tierkategorien_GRUD!$A$27:$F$49,MATCH('A. RF-Verzehrer-A.a.cons. du FG'!$A9,Tierkategorien_GRUD!$A$27:$A$49),4))","v":0},{"$f":"IF('A. RF-Verzehrer-A.a.cons. du FG'!$A9=\"\",0,INDEX(Tierkategorien_GRUD!$A$27:$F$49,MATCH('A. RF-Verzehrer-A.a.cons. du FG'!$A9,Tierkategorien_GRUD!$A$27:$A$49),5))","v":0},{"$f":"IF('A. RF-Verzehrer-A.a.cons. du FG'!$A9=\"\",0,INDEX(Tierkategorien_GRUD!$A$27:$F$49,MATCH('A. RF-Verzehrer-A.a.cons. du FG'!$A9,Tierkategorien_GRUD!$A$27:$A$49),6))","v":0},null,0,0,0,0,null,{"$f":"IF('A. RF-Verzehrer-A.a.cons. du FG'!$A9=\"\",0,INDEX(Tierkategorien_GRUD!$A$27:$O$49,MATCH('A. RF-Verzehrer-A.a.cons. du FG'!$A9,Tierkategorien_GRUD!$A$27:$A$49),15))","v":0},0,{"$f":"IF('A. RF-Verzehrer-A.a.cons. du FG'!$A9=\"\",\"\",INDEX(Tierkategorien_GRUD!$A$27:$P$49,MATCH('A. RF-Verzehrer-A.a.cons. du FG'!$A9,Tierkategorien_GRUD!$A$27:$A$49),16))","v":""},{"$f":"IF('A. RF-Verzehrer-A.a.cons. du FG'!$A9=\"\",0,INDEX(Tierkategorien_GRUD!$A$27:$M$49,MATCH('A. RF-Verzehrer-A.a.cons. du FG'!$A9,Tierkategorien_GRUD!$A$27:$A$49),13))","v":0},0]
[null,null,{"$f":"IF('Grunddaten-Données de base'!D$9=\"dt.\",IF('A. RF-Verzehrer-A.a.cons. du FG'!$A10=\"\",\"\",INDEX(Tierkategorien_GRUD!$A$27:$R$49,MATCH('A. RF-Verzehrer-A.a.cons. du FG'!$A10,Tierkategorien_GRUD!$A$27:$A$49),2)),IF('A. RF-Verzehrer-A.a.cons. du FG'!$A10=\"\",\"\",INDEX(Tierkategorien_GRUD!$A$27:$R$49,MATCH('A. RF-Verzehrer-A.a.cons. du FG'!$A10,Tierkategorien_GRUD!$A$27:$A$49),18)))","v":""},null,null,1,0,{"$f":"IF('A. RF-Verzehrer-A.a.cons. du FG'!$A10=\"\",0,INDEX(Tierkategorien_GRUD!$A$27:$F$49,MATCH('A. RF-Verzehrer-A.a.cons. du FG'!$A10,Tierkategorien_GRUD!$A$27:$A$49),3))","v":0},{"$f":"IF('A. RF-Verzehrer-A.a.cons. du FG'!$A10=\"\",0,INDEX(Tierkategorien_GRUD!$A$27:$F$49,MATCH('A. RF-Verzehrer-A.a.cons. du FG'!$A10,Tierkategorien_GRUD!$A$27:$A$49),4))","v":0},{"$f":"IF('A. RF-Verzehrer-A.a.cons. du FG'!$A10=\"\",0,INDEX(Tierkategorien_GRUD!$A$27:$F$49,MATCH('A. RF-Verzehrer-A.a.cons. du FG'!$A10,Tierkategorien_GRUD!$A$27:$A$49),5))","v":0},{"$f":"IF('A. RF-Verzehrer-A.a.cons. du FG'!$A10=\"\",0,INDEX(Tierkategorien_GRUD!$A$27:$F$49,MATCH('A. RF-Verzehrer-A.a.cons. du FG'!$A10,Tierkategorien_GRUD!$A$27:$A$49),6))","v":0},null,0,0,0,0,null,{"$f":"IF('A. RF-Verzehrer-A.a.cons. du FG'!$A10=\"\",0,INDEX(Tierkategorien_GRUD!$A$27:$O$49,MATCH('A. RF-Verzehrer-A.a.cons. du FG'!$A10,Tierkategorien_GRUD!$A$27:$A$49),15))","v":0},0,{"$f":"IF('A. RF-Verzehrer-A.a.cons. du FG'!$A10=\"\",\"\",INDEX(Tierkategorien_GRUD!$A$27:$P$49,MATCH('A. RF-Verzehrer-A.a.cons. du FG'!$A10,Tierkategorien_GRUD!$A$27:$A$49),16))","v":""},{"$f":"IF('A. RF-Verzehrer-A.a.cons. du FG'!$A10=\"\",0,INDEX(Tierkategorien_GRUD!$A$27:$M$49,MATCH('A. RF-Verzehrer-A.a.cons. du FG'!$A10,Tierkategorien_GRUD!$A$27:$A$49),13))","v":0},0]
[null,null,{"$f":"IF('Grunddaten-Données de base'!D$9=\"dt.\",IF('A. RF-Verzehrer-A.a.cons. du FG'!$A11=\"\",\"\",INDEX(Tierkategorien_GRUD!$A$27:$R$49,MATCH('A. RF-Verzehrer-A.a.cons. du FG'!$A11,Tierkategorien_GRUD!$A$27:$A$49),2)),IF('A. RF-Verzehrer-A.a.cons. du FG'!$A11=\"\",\"\",INDEX(Tierkategorien_GRUD!$A$27:$R$49,MATCH('A. RF-Verzehrer-A.a.cons. du FG'!$A11,Tierkategorien_GRUD!$A$27:$A$49),18)))","v":""},null,null,1,0,{"$f":"IF('A. RF-Verzehrer-A.a.cons. du FG'!$A11=\"\",0,INDEX(Tierkategorien_GRUD!$A$27:$F$49,MATCH('A. RF-Verzehrer-A.a.cons. du FG'!$A11,Tierkategorien_GRUD!$A$27:$A$49),3))","v":0},{"$f":"IF('A. RF-Verzehrer-A.a.cons. du FG'!$A11=\"\",0,INDEX(Tierkategorien_GRUD!$A$27:$F$49,MATCH('A. RF-Verzehrer-A.a.cons. du FG'!$A11,Tierkategorien_GRUD!$A$27:$A$49),4))","v":0},{"$f":"IF('A. RF-Verzehrer-A.a.cons. du FG'!$A11=\"\",0,INDEX(Tierkategorien_GRUD!$A$27:$F$49,MATCH('A. RF-Verzehrer-A.a.cons. du FG'!$A11,Tierkategorien_GRUD!$A$27:$A$49),5))","v":0},{"$f":"IF('A. RF-Verzehrer-A.a.cons. du FG'!$A11=\"\",0,INDEX(Tierkategorien_GRUD!$A$27:$F$49,MATCH('A. RF-Verzehrer-A.a.cons. du FG'!$A11,Tierkategorien_GRUD!$A$27:$A$49),6))","v":0},null,0,0,0,0,null,{"$f":"IF('A. RF-Verzehrer-A.a.cons. du FG'!$A11=\"\",0,INDEX(Tierkategorien_GRUD!$A$27:$O$49,MATCH('A. RF-Verzehrer-A.a.cons. du FG'!$A11,Tierkategorien_GRUD!$A$27:$A$49),15))","v":0},0,{"$f":"IF('A. RF-Verzehrer-A.a.cons. du FG'!$A11=\"\",\"\",INDEX(Tierkategorien_GRUD!$A$27:$P$49,MATCH('A. RF-Verzehrer-A.a.cons. du FG'!$A11,Tierkategorien_GRUD!$A$27:$A$49),16))","v":""},{"$f":"IF('A. RF-Verzehrer-A.a.cons. du FG'!$A11=\"\",0,INDEX(Tierkategorien_GRUD!$A$27:$M$49,MATCH('A. RF-Verzehrer-A.a.cons. du FG'!$A11,Tierkategorien_GRUD!$A$27:$A$49),13))","v":0},0]
[null,null,{"$f":"IF('Grunddaten-Données de base'!D$9=\"dt.\",IF('A. RF-Verzehrer-A.a.cons. du FG'!$A12=\"\",\"\",INDEX(Tierkategorien_GRUD!$A$27:$R$49,MATCH('A. RF-Verzehrer-A.a.cons. du FG'!$A12,Tierkategorien_GRUD!$A$27:$A$49),2)),IF('A. RF-Verzehrer-A.a.cons. du FG'!$A12=\"\",\"\",INDEX(Tierkategorien_GRUD!$A$27:$R$49,MATCH('A. RF-Verzehrer-A.a.cons. du FG'!$A12,Tierkategorien_GRUD!$A$27:$A$49),18)))","v":""},null,null,1,0,{"$f":"IF('A. RF-Verzehrer-A.a.cons. du FG'!$A12=\"\",0,INDEX(Tierkategorien_GRUD!$A$27:$F$49,MATCH('A. RF-Verzehrer-A.a.cons. du FG'!$A12,Tierkategorien_GRUD!$A$27:$A$49),3))","v":0},{"$f":"IF('A. RF-Verzehrer-A.a.cons. du FG'!$A12=\"\",0,INDEX(Tierkategorien_GRUD!$A$27:$F$49,MATCH('A. RF-Verzehrer-A.a.cons. du FG'!$A12,Tierkategorien_GRUD!$A$27:$A$49),4))","v":0},{"$f":"IF('A. RF-Verzehrer-A.a.cons. du FG'!$A12=\"\",0,INDEX(Tierkategorien_GRUD!$A$27:$F$49,MATCH('A. RF-Verzehrer-A.a.cons. du FG'!$A12,Tierkategorien_GRUD!$A$27:$A$49),5))","v":0},{"$f":"IF('A. RF-Verzehrer-A.a.cons. du FG'!$A12=\"\",0,INDEX(Tierkategorien_GRUD!$A$27:$F$49,MATCH('A. RF-Verzehrer-A.a.cons. du FG'!$A12,Tierkategorien_GRUD!$A$27:$A$49),6))","v":0},null,0,0,0,0,null,{"$f":"IF('A. RF-Verzehrer-A.a.cons. du FG'!$A12=\"\",0,INDEX(Tierkategorien_GRUD!$A$27:$O$49,MATCH('A. RF-Verzehrer-A.a.cons. du FG'!$A12,Tierkategorien_GRUD!$A$27:$A$49),15))","v":0},0,{"$f":"IF('A. RF-Verzehrer-A.a.cons. du FG'!$A12=\"\",\"\",INDEX(Tierkategorien_GRUD!$A$27:$P$49,MATCH('A. RF-Verzehrer-A.a.cons. du FG'!$A12,Tierkategorien_GRUD!$A$27:$A$49),16))","v":""},{"$f":"IF('A. RF-Verzehrer-A.a.cons. du FG'!$A12=\"\",0,INDEX(Tierkategorien_GRUD!$A$27:$M$49,MATCH('A. RF-Verzehrer-A.a.cons. du FG'!$A12,Tierkategorien_GRUD!$A$27:$A$49),13))","v":0},0]
[null,null,{"$f":"IF('Grunddaten-Données de base'!D$9=\"dt.\",IF('A. RF-Verzehrer-A.a.cons. du FG'!$A13=\"\",\"\",INDEX(Tierkategorien_GRUD!$A$27:$R$49,MATCH('A. RF-Verzehrer-A.a.cons. du FG'!$A13,Tierkategorien_GRUD!$A$27:$A$49),2)),IF('A. RF-Verzehrer-A.a.cons. du FG'!$A13=\"\",\"\",INDEX(Tierkategorien_GRUD!$A$27:$R$49,MATCH('A. RF-Verzehrer-A.a.cons. du FG'!$A13,Tierkategorien_GRUD!$A$27:$A$49),18)))","v":""},null,null,1,0,{"$f":"IF('A. RF-Verzehrer-A.a.cons. du FG'!$A13=\"\",0,INDEX(Tierkategorien_GRUD!$A$27:$F$49,MATCH('A. RF-Verzehrer-A.a.cons. du FG'!$A13,Tierkategorien_GRUD!$A$27:$A$49),3))","v":0},{"$f":"IF('A. RF-Verzehrer-A.a.cons. du FG'!$A13=\"\",0,INDEX(Tierkategorien_GRUD!$A$27:$F$49,MATCH('A. RF-Verzehrer-A.a.cons. du FG'!$A13,Tierkategorien_GRUD!$A$27:$A$49),4))","v":0},{"$f":"IF('A. RF-Verzehrer-A.a.cons. du FG'!$A13=\"\",0,INDEX(Tierkategorien_GRUD!$A$27:$F$49,MATCH('A. RF-Verzehrer-A.a.cons. du FG'!$A13,Tierkategorien_GRUD!$A$27:$A$49),5))","v":0},{"$f":"IF('A. RF-Verzehrer-A.a.cons. du FG'!$A13=\"\",0,INDEX(Tierkategorien_GRUD!$A$27:$F$49,MATCH('A. RF-Verzehrer-A.a.cons. du FG'!$A13,Tierkategorien_GRUD!$A$27:$A$49),6))","v":0},null,0,0,0,0,null,{"$f":"IF('A. RF-Verzehrer-A.a.cons. du FG'!$A13=\"\",0,INDEX(Tierkategorien_GRUD!$A$27:$O$49,MATCH('A. RF-Verzehrer-A.a.cons. du FG'!$A13,Tierkategorien_GRUD!$A$27:$A$49),15))","v":0},0,{"$f":"IF('A. RF-Verzehrer-A.a.cons. du FG'!$A13=\"\",\"\",INDEX(Tierkategorien_GRUD!$A$27:$P$49,MATCH('A. RF-Verzehrer-A.a.cons. du FG'!$A13,Tierkategorien_GRUD!$A$27:$A$49),16))","v":""},{"$f":"IF('A. RF-Verzehrer-A.a.cons. du FG'!$A13=\"\",0,INDEX(Tierkategorien_GRUD!$A$27:$M$49,MATCH('A. RF-Verzehrer-A.a.cons. du FG'!$A13,Tierkategorien_GRUD!$A$27:$A$49),13))","v":0},0]
[null,null,{"$f":"IF('Grunddaten-Données de base'!D$9=\"dt.\",IF('A. RF-Verzehrer-A.a.cons. du FG'!$A14=\"\",\"\",INDEX(Tierkategorien_GRUD!$A$27:$R$49,MATCH('A. RF-Verzehrer-A.a.cons. du FG'!$A14,Tierkategorien_GRUD!$A$27:$A$49),2)),IF('A. RF-Verzehrer-A.a.cons. du FG'!$A14=\"\",\"\",INDEX(Tierkategorien_GRUD!$A$27:$R$49,MATCH('A. RF-Verzehrer-A.a.cons. du FG'!$A14,Tierkategorien_GRUD!$A$27:$A$49),18)))","v":""},null,null,1,0,{"$f":"IF('A. RF-Verzehrer-A.a.cons. du FG'!$A14=\"\",0,INDEX(Tierkategorien_GRUD!$A$27:$F$49,MATCH('A. RF-Verzehrer-A.a.cons. du FG'!$A14,Tierkategorien_GRUD!$A$27:$A$49),3))","v":0},{"$f":"IF('A. RF-Verzehrer-A.a.cons. du FG'!$A14=\"\",0,INDEX(Tierkategorien_GRUD!$A$27:$F$49,MATCH('A. RF-Verzehrer-A.a.cons. du FG'!$A14,Tierkategorien_GRUD!$A$27:$A$49),4))","v":0},{"$f":"IF('A. RF-Verzehrer-A.a.cons. du FG'!$A14=\"\",0,INDEX(Tierkategorien_GRUD!$A$27:$F$49,MATCH('A. RF-Verzehrer-A.a.cons. du FG'!$A14,Tierkategorien_GRUD!$A$27:$A$49),5))","v":0},{"$f":"IF('A. RF-Verzehrer-A.a.cons. du FG'!$A14=\"\",0,INDEX(Tierkategorien_GRUD!$A$27:$F$49,MATCH('A. RF-Verzehrer-A.a.cons. du FG'!$A14,Tierkategorien_GRUD!$A$27:$A$49),6))","v":0},null,0,0,0,0,null,{"$f":"IF('A. RF-Verzehrer-A.a.cons. du FG'!$A14=\"\",0,INDEX(Tierkategorien_GRUD!$A$27:$O$49,MATCH('A. RF-Verzehrer-A.a.cons. du FG'!$A14,Tierkategorien_GRUD!$A$27:$A$49),15))","v":0},0,{"$f":"IF('A. RF-Verzehrer-A.a.cons. du FG'!$A14=\"\",\"\",INDEX(Tierkategorien_GRUD!$A$27:$P$49,MATCH('A. RF-Verzehrer-A.a.cons. du FG'!$A14,Tierkategorien_GRUD!$A$27:$A$49),16))","v":""},{"$f":"IF('A. RF-Verzehrer-A.a.cons. du FG'!$A14=\"\",0,INDEX(Tierkategorien_GRUD!$A$27:$M$49,MATCH('A. RF-Verzehrer-A.a.cons. du FG'!$A14,Tierkategorien_GRUD!$A$27:$A$49),13))","v":0},0]
[null,null,{"$f":"IF('Grunddaten-Données de base'!D$9=\"dt.\",IF('A. RF-Verzehrer-A.a.cons. du FG'!$A15=\"\",\"\",INDEX(Tierkategorien_GRUD!$A$27:$R$49,MATCH('A. RF-Verzehrer-A.a.cons. du FG'!$A15,Tierkategorien_GRUD!$A$27:$A$49),2)),IF('A. RF-Verzehrer-A.a.cons. du FG'!$A15=\"\",\"\",INDEX(Tierkategorien_GRUD!$A$27:$R$49,MATCH('A. RF-Verzehrer-A.a.cons. du FG'!$A15,Tierkategorien_GRUD!$A$27:$A$49),18)))","v":""},null,null,1,0,{"$f":"IF('A. RF-Verzehrer-A.a.cons. du FG'!$A15=\"\",0,INDEX(Tierkategorien_GRUD!$A$27:$F$49,MATCH('A. RF-Verzehrer-A.a.cons. du FG'!$A15,Tierkategorien_GRUD!$A$27:$A$49),3))","v":0},{"$f":"IF('A. RF-Verzehrer-A.a.cons. du FG'!$A15=\"\",0,INDEX(Tierkategorien_GRUD!$A$27:$F$49,MATCH('A. RF-Verzehrer-A.a.cons. du FG'!$A15,Tierkategorien_GRUD!$A$27:$A$49),4))","v":0},{"$f":"IF('A. RF-Verzehrer-A.a.cons. du FG'!$A15=\"\",0,INDEX(Tierkategorien_GRUD!$A$27:$F$49,MATCH('A. RF-Verzehrer-A.a.cons. du FG'!$A15,Tierkategorien_GRUD!$A$27:$A$49),5))","v":0},{"$f":"IF('A. RF-Verzehrer-A.a.cons. du FG'!$A15=\"\",0,INDEX(Tierkategorien_GRUD!$A$27:$F$49,MATCH('A. RF-Verzehrer-A.a.cons. du FG'!$A15,Tierkategorien_GRUD!$A$27:$A$49),6))","v":0},null,0,0,0,0,null,{"$f":"IF('A. RF-Verzehrer-A.a.cons. du FG'!$A15=\"\",0,INDEX(Tierkategorien_GRUD!$A$27:$O$49,MATCH('A. RF-Verzehrer-A.a.cons. du FG'!$A15,Tierkategorien_GRUD!$A$27:$A$49),15))","v":0},0,{"$f":"IF('A. RF-Verzehrer-A.a.cons. du FG'!$A15=\"\",\"\",INDEX(Tierkategorien_GRUD!$A$27:$P$49,MATCH('A. RF-Verzehrer-A.a.cons. du FG'!$A15,Tierkategorien_GRUD!$A$27:$A$49),16))","v":""},{"$f":"IF('A. RF-Verzehrer-A.a.cons. du FG'!$A15=\"\",0,INDEX(Tierkategorien_GRUD!$A$27:$M$49,MATCH('A. RF-Verzehrer-A.a.cons. du FG'!$A15,Tierkategorien_GRUD!$A$27:$A$49),13))","v":0},0]
[null,null,{"$f":"IF('Grunddaten-Données de base'!D$9=\"dt.\",IF('A. RF-Verzehrer-A.a.cons. du FG'!$A16=\"\",\"\",INDEX(Tierkategorien_GRUD!$A$27:$R$49,MATCH('A. RF-Verzehrer-A.a.cons. du FG'!$A16,Tierkategorien_GRUD!$A$27:$A$49),2)),IF('A. RF-Verzehrer-A.a.cons. du FG'!$A16=\"\",\"\",INDEX(Tierkategorien_GRUD!$A$27:$R$49,MATCH('A. RF-Verzehrer-A.a.cons. du FG'!$A16,Tierkategorien_GRUD!$A$27:$A$49),18)))","v":""},null,null,1,0,{"$f":"IF('A. RF-Verzehrer-A.a.cons. du FG'!$A16=\"\",0,INDEX(Tierkategorien_GRUD!$A$27:$F$49,MATCH('A. RF-Verzehrer-A.a.cons. du FG'!$A16,Tierkategorien_GRUD!$A$27:$A$49),3))","v":0},{"$f":"IF('A. RF-Verzehrer-A.a.cons. du FG'!$A16=\"\",0,INDEX(Tierkategorien_GRUD!$A$27:$F$49,MATCH('A. RF-Verzehrer-A.a.cons. du FG'!$A16,Tierkategorien_GRUD!$A$27:$A$49),4))","v":0},{"$f":"IF('A. RF-Verzehrer-A.a.cons. du FG'!$A16=\"\",0,INDEX(Tierkategorien_GRUD!$A$27:$F$49,MATCH('A. RF-Verzehrer-A.a.cons. du FG'!$A16,Tierkategorien_GRUD!$A$27:$A$49),5))","v":0},{"$f":"IF('A. RF-Verzehrer-A.a.cons. du FG'!$A16=\"\",0,INDEX(Tierkategorien_GRUD!$A$27:$F$49,MATCH('A. RF-Verzehrer-A.a.cons. du FG'!$A16,Tierkategorien_GRUD!$A$27:$A$49),6))","v":0},null,0,0,0,0,null,{"$f":"IF('A. RF-Verzehrer-A.a.cons. du FG'!$A16=\"\",0,INDEX(Tierkategorien_GRUD!$A$27:$O$49,MATCH('A. RF-Verzehrer-A.a.cons. du FG'!$A16,Tierkategorien_GRUD!$A$27:$A$49),15))","v":0},0,{"$f":"IF('A. RF-Verzehrer-A.a.cons. du FG'!$A16=\"\",\"\",INDEX(Tierkategorien_GRUD!$A$27:$P$49,MATCH('A. RF-Verzehrer-A.a.cons. du FG'!$A16,Tierkategorien_GRUD!$A$27:$A$49),16))","v":""},{"$f":"IF('A. RF-Verzehrer-A.a.cons. du FG'!$A16=\"\",0,INDEX(Tierkategorien_GRUD!$A$27:$M$49,MATCH('A. RF-Verzehrer-A.a.cons. du FG'!$A16,Tierkategorien_GRUD!$A$27:$A$49),13))","v":0},0]
[null,null,{"$f":"IF('Grunddaten-Données de base'!D$9=\"dt.\",IF('A. RF-Verzehrer-A.a.cons. du FG'!$A17=\"\",\"\",INDEX(Tierkategorien_GRUD!$A$27:$R$49,MATCH('A. RF-Verzehrer-A.a.cons. du FG'!$A17,Tierkategorien_GRUD!$A$27:$A$49),2)),IF('A. RF-Verzehrer-A.a.cons. du FG'!$A17=\"\",\"\",INDEX(Tierkategorien_GRUD!$A$27:$R$49,MATCH('A. RF-Verzehrer-A.a.cons. du FG'!$A17,Tierkategorien_GRUD!$A$27:$A$49),18)))","v":""},null,null,1,0,{"$f":"IF('A. RF-Verzehrer-A.a.cons. du FG'!$A17=\"\",0,INDEX(Tierkategorien_GRUD!$A$27:$F$49,MATCH('A. RF-Verzehrer-A.a.cons. du FG'!$A17,Tierkategorien_GRUD!$A$27:$A$49),3))","v":0},{"$f":"IF('A. RF-Verzehrer-A.a.cons. du FG'!$A17=\"\",0,INDEX(Tierkategorien_GRUD!$A$27:$F$49,MATCH('A. RF-Verzehrer-A.a.cons. du FG'!$A17,Tierkategorien_GRUD!$A$27:$A$49),4))","v":0},{"$f":"IF('A. RF-Verzehrer-A.a.cons. du FG'!$A17=\"\",0,INDEX(Tierkategorien_GRUD!$A$27:$F$49,MATCH('A. RF-Verzehrer-A.a.cons. du FG'!$A17,Tierkategorien_GRUD!$A$27:$A$49),5))","v":0},{"$f":"IF('A. RF-Verzehrer-A.a.cons. du FG'!$A17=\"\",0,INDEX(Tierkategorien_GRUD!$A$27:$F$49,MATCH('A. RF-Verzehrer-A.a.cons. du FG'!$A17,Tierkategorien_GRUD!$A$27:$A$49),6))","v":0},null,0,0,0,0,null,{"$f":"IF('A. RF-Verzehrer-A.a.cons. du FG'!$A17=\"\",0,INDEX(Tierkategorien_GRUD!$A$27:$O$49,MATCH('A. RF-Verzehrer-A.a.cons. du FG'!$A17,Tierkategorien_GRUD!$A$27:$A$49),15))","v":0},0,{"$f":"IF('A. RF-Verzehrer-A.a.cons. du FG'!$A17=\"\",\"\",INDEX(Tierkategorien_GRUD!$A$27:$P$49,MATCH('A. RF-Verzehrer-A.a.cons. du FG'!$A17,Tierkategorien_GRUD!$A$27:$A$49),16))","v":""},{"$f":"IF('A. RF-Verzehrer-A.a.cons. du FG'!$A17=\"\",0,INDEX(Tierkategorien_GRUD!$A$27:$M$49,MATCH('A. RF-Verzehrer-A.a.cons. du FG'!$A17,Tierkategorien_GRUD!$A$27:$A$49),13))","v":0},{"$f":"U17*G17","v":0}]
[null,null,{"$f":"IF('Grunddaten-Données de base'!D$9=\"dt.\",IF('A. RF-Verzehrer-A.a.cons. du FG'!$A18=\"\",\"\",INDEX(Tierkategorien_GRUD!$A$27:$R$49,MATCH('A. RF-Verzehrer-A.a.cons. du FG'!$A18,Tierkategorien_GRUD!$A$27:$A$49),2)),IF('A. RF-Verzehrer-A.a.cons. du FG'!$A18=\"\",\"\",INDEX(Tierkategorien_GRUD!$A$27:$R$49,MATCH('A. RF-Verzehrer-A.a.cons. du FG'!$A18,Tierkategorien_GRUD!$A$27:$A$49),18)))","v":""},null,null,1,0,{"$f":"IF('A. RF-Verzehrer-A.a.cons. du FG'!$A18=\"\",0,INDEX(Tierkategorien_GRUD!$A$27:$F$49,MATCH('A. RF-Verzehrer-A.a.cons. du FG'!$A18,Tierkategorien_GRUD!$A$27:$A$49),3))","v":0},{"$f":"IF('A. RF-Verzehrer-A.a.cons. du FG'!$A18=\"\",0,INDEX(Tierkategorien_GRUD!$A$27:$F$49,MATCH('A. RF-Verzehrer-A.a.cons. du FG'!$A18,Tierkategorien_GRUD!$A$27:$A$49),4))","v":0},{"$f":"IF('A. RF-Verzehrer-A.a.cons. du FG'!$A18=\"\",0,INDEX(Tierkategorien_GRUD!$A$27:$F$49,MATCH('A. RF-Verzehrer-A.a.cons. du FG'!$A18,Tierkategorien_GRUD!$A$27:$A$49),5))","v":0},{"$f":"IF('A. RF-Verzehrer-A.a.cons. du FG'!$A18=\"\",0,INDEX(Tierkategorien_GRUD!$A$27:$F$49,MATCH('A. RF-Verzehrer-A.a.cons. du FG'!$A18,Tierkategorien_GRUD!$A$27:$A$49),6))","v":0},null,0,0,0,0,null,{"$f":"IF('A. RF-Verzehrer-A.a.cons. du FG'!$A18=\"\",0,INDEX(Tierkategorien_GRUD!$A$27:$O$49,MATCH('A. RF-Verzehrer-A.a.cons. du FG'!$A18,Tierkategorien_GRUD!$A$27:$A$49),15))","v":0},0,{"$f":"IF('A. RF-Verzehrer-A.a.cons. du FG'!$A18=\"\",\"\",INDEX(Tierkategorien_GRUD!$A$27:$P$49,MATCH('A. RF-Verzehrer-A.a.cons. du FG'!$A18,Tierkategorien_GRUD!$A$27:$A$49),16))","v":""},{"$f":"IF('A. RF-Verzehrer-A.a.cons. du FG'!$A18=\"\",0,INDEX(Tierkategorien_GRUD!$A$27:$M$49,MATCH('A. RF-Verzehrer-A.a.cons. du FG'!$A18,Tierkategorien_GRUD!$A$27:$A$49),13))","v":0},0]
[]
[{"$f":"IF('Grunddaten-Données de base'!$D$9=\"dt.\",Texte!A59,Texte!B59)","v":"Total d'éléments nutr. et engrais de ferme"},null,null,null,null,null,null,null,null,null,null,null,{"$f":"SUM(M4:M19)","v":0},{"$f":"SUM(N4:N19)","v":0},0,0,null,null,{"$f":"SUM(S4:S19)","v":0},null,null,{"$f":"SUM(V4:V19)","v":0}]
[null,null,null,null,null,null,null,null,null,null,null,null,null,null,null,null,null,null,null,null,null,null,null,null,"GVE"]
[null,null,null,null,null,null,null,null,null,null,null,null,null,null,null,null,null,null,null,null,null,null,null,"Pferdeartige",{"$f":"SUMIFS(S$4:S18,T$4:T18,\"Pferdeartige\")","v":0}]
[null,null,null,null,null,null,null,null,null,null,null,null,null,null,null,null,null,null,null,null,null,null,null,"Milchschafe",{"$f":"SUMIFS(S$4:S19,T$4:T19,\"Milchschafe\")","v":0}]
[null,null,null,null,null,null,null,null,null,null,null,null,null,null,null,null,null,null,null,null,null,null,null,"Ziegen",{"$f":"SUMIFS(S$4:S20,T$4:T20,\"Ziegen\")","v":0}]
[null,null,null,null,null,null,null,null,null,null,null,null,null,null,null,null,null,null,null,null,null,null,null,"Kaninchen",{"$f":"SUMIFS(S$4:S21,T$4:T21,\"Kaninchen\")","v":0}]
[]
[{"$f":"IF('Grunddaten-Données de base'!$D$9=\"dt.\",Texte!A12,Texte!B12)","v":"Fumière 1"},null,null,null,null,null,null,null,null,null,null,null,{"$f":"SUMIFS(M$4:M$18,$W$4:$W$18,IF('Grunddaten-Données de base'!$D$9=\"dt.\",\"04 Mistplatz 1\",\"04 Fumière 1\"))","v":0},{"$f":"SUMIFS(N$4:N$18,$W$4:$W$18,IF('Grunddaten-Données de base'!$D$9=\"dt.\",\"04 Mistplatz 1\",\"04 Fumière 1\"))","v":0},{"$f":"SUMIFS(O$4:O$18,$W$4:$W$18,IF('Grunddaten-Données de base'!$D$9=\"dt.\",\"04 Mistplatz 1\",\"04 Fumière 1\"))","v":0},{"$f":"SUMIFS(P$4:P$18,$W$4:$W$18,IF('Grunddaten-Données de base'!$D$9=\"dt.\",\"04 Mistplatz 1\",\"04 Fumière 1\"))","v":0},null,null,null,null,null,{"$f":"SUMIFS(V$4:V$18,W$4:W$18,IF('Grunddaten-Données de base'!$D$9=\"dt.\",\"04 Mistplatz 1\",\"04 Fumière 1\"))","v":0}]
[{"$f":"IF('Grunddaten-Données de base'!$D$9=\"dt.\",Texte!A13,Texte!B13)","v":"Fumière 2"},null,null,null,null,null,null,null,null,null,null,null,{"$f":"SUMIFS(M$4:M$18,$W$4:$W$18,IF('Grunddaten-Données de base'!$D$9=\"dt.\",\"05 Mistplatz 2\",\"05 Fumière 2\"))","v":0},{"$f":"SUMIFS(N$4:N$18,$W$4:$W$18,\"05 Mistplatz 2\")","v":0},0,0,null,null,null,null,null,{"$f":"SUMIFS(V$4:V$18,W$4:W$18,IF('Grunddaten-Données de base'!$D$9=\"dt.\",\"05 Mistplatz 2\",\"05 Fumière 2\"))","v":0}]
[{"$f":"IF('Grunddaten-Données de base'!$D$9=\"dt.\",Texte!A14,Texte!B14)","v":"Fumière 3"},null,null,null,null,null,null,null,null,null,null,null,{"$f":"SUMIFS(M$4:M$18,$W$4:$W$18,IF('Grunddaten-Données de base'!$D$9=\"dt.\",\"06 Mistplatz 3\",\"06 Fumière 3\"))","v":0},{"$f":"SUMIFS(N$4:N$18,$W$4:$W$18,\"06 Mistplatz 3\")","v":0},0,0,null,null,null,null,null,{"$f":"SUMIFS(V$4:V$18,W$4:W$18,IF('Grunddaten-Données de base'!$D$9=\"dt.\",\"06 Mistplatz 3\",\"06 Fumière 3\"))","v":0}]
[]
[null,null,null,null,null,null,null,null,null,null,null,null,{"$f":"SUM(M27:M29)","v":0},{"$f":"SUM(N27:N29)","v":0},0,0,null,null,null,null,null,{"$f":"SUM(V27:V29)","v":0}]
[null,null,null,null,null,null,null,null,null,null,null,null,null,null,null,null,null,null,null,null,null,null,{"$f":"IF($V$20<>$V$31,IF('Grunddaten-Données de base'!$D$9=\"dt.\",\"Achtung! Fehler in der Zuteilung!\",\"Attention! Faute dans la distribution !\"),\"\")","v":""}]

{"sheet":"Schweine-Porcs","index":4,"n_rows":38,"n_cols":32,"rows_kept":38,"cut":false,"hidden":false,"merged":[[0,3,0,4],[0,7,0,10],[0,14,0,19],[0,20,0,21]]}
[{"$f":"IF('Grunddaten-Données de base'!$D$9=\"dt.\",Texte!A35,Texte!B35)","v":"Catégorie"},null,null,{"$f":"IF('Grunddaten-Données de base'!$D$9=\"dt.\",Texte!A40,Texte!B40)","v":"Sorties / pâturage"},null,null,null,{"$f":"IF('Grunddaten-Données de base'!$D$9=\"dt.\",Texte!A44,Texte!B44)","v":"Prod. d'éléments nutr. / unité"},null,null,null,null,null,null,{"$f":"IF('Grunddaten-Données de base'!$D$9=\"dt.\",Texte!A46,Texte!B46)","v":"Total prod. d'éléments nutr."},null,null,null,null,null,{"$f":"IF('Grunddaten-Données de base'!$D$9=\"dt.\",Texte!A65,Texte!B65)","v":"Résultat de la correction linéaire (CL)"},null,"GVE-Faktor","GVE",{"$f":"IF('Grunddaten-Données de base'!$D$9=\"dt.\",Texte!A66,Texte!B66)","v":"Prod. d'engrais organiques selon système de stabulation"},null,"Gülle (m3)",{"$f":"IF('Grunddaten-Données de base'!$D$9=\"dt.\",Texte!A54,Texte!B54)","v":"Lisier (m3)"},{"$f":"IF('Grunddaten-Données de base'!$D$9=\"dt.\",Texte!A56,Texte!B56)","v":"Fosse à lisier"},"Mist (m3)",{"$f":"IF('Grunddaten-Données de base'!$D$9=\"dt.\",Texte!A52,Texte!B52)","v":"Fumier (t)"},{"$f":"IF('Grunddaten-Données de base'!$D$9=\"dt.\",Texte!A58,Texte!B58)","v":"Fumière"}]
[{"$f":"IF('Grunddaten-Données de base'!$D$9=\"dt.\",Texte!A64,Texte!B64)","v":"Porcs"},{"$f":"IF('Grunddaten-Données de base'!$D$9=\"dt.\",Texte!A38,Texte!B38)","v":"Nombre"},{"$f":"IF('Grunddaten-Données de base'!$D$9=\"dt.\",Texte!A39,Texte!B39)","v":"Unité"},{"$f":"IF('Grunddaten-Données de base'!$D$9=\"dt.\",Texte!A41,Texte!B41)","v":"Jours / an"},{"$f":"IF('Grunddaten-Données de base'!$D$9=\"dt.\",Texte!A42,Texte!B42)","v":"h / jour"},null,{"$f":"IF('Grunddaten-Données de base'!$D$9=\"dt.\",Texte!A43,Texte!B43)","v":"Nbre corrigé"},{"$f":"IF('Grunddaten-Données de base'!$D$9=\"dt.\",Texte!A45,Texte!B45)","v":"Nstock"},"P2O5","K2O","Mg",null,"Impex zugelassen (j/n)","Impex","Nges","P2O5",{"$f":"IF('Grunddaten-Données de base'!$D$9=\"dt.\",Texte!A45,Texte!B45)","v":"Nstock"},"P2O5","K2O","Mg",{"$f":"IF('Grunddaten-Données de base'!$D$9=\"dt.\",Texte!A45,Texte!B45)","v":"Nstock"},"P2O5"]
[]
[null,null,{"$f":"IF('Grunddaten-Données de base'!$D$9=\"dt.\",IF($A4=\"\",\"\",INDEX(Tierkategorien_GRUD!$A$54:$R$59,MATCH('Schweine-Porcs'!$A4,Tierkategorien_GRUD!$A$54:$A$59),2)),IF($A4=\"\",\"\",INDEX(Tierkategorien_GRUD!$A$54:$R$59,MATCH('Schweine-Porcs'!$A4,Tierkategorien_GRUD!$A$54:$A$59),18)))","v":""},null,null,{"$f":"(365-($D4*($E4/24)))/365","v":1},{"$f":"$B4*$F4","v":0},{"$f":"IF('Schweine-Porcs'!$A4=\"\",0,INDEX(Tierkategorien_GRUD!$A$54:$F$59,MATCH('Schweine-Porcs'!$A4,Tierkategorien_GRUD!$A$54:$A$59),3))","v":0},{"$f":"IF('Schweine-Porcs'!$A4=\"\",0,INDEX(Tierkategorien_GRUD!$A$54:$F$59,MATCH('Schweine-Porcs'!$A4,Tierkategorien_GRUD!$A$54:$A$59),4))","v":0},{"$f":"IF('Schweine-Porcs'!$A4=\"\",0,INDEX(Tierkategorien_GRUD!$A$54:$F$59,MATCH('Schweine-Porcs'!$A4,Tierkategorien_GRUD!$A$54:$A$59),5))","v":0},{"$f":"IF('Schweine-Porcs'!$A4=\"\",0,INDEX(Tierkategorien_GRUD!$A$54:$F$59,MATCH('Schweine-Porcs'!$A4,Tierkategorien_GRUD!$A$54:$A$59),6))","v":0},null,{"$f":"IF($A4=\"\",\"\",INDEX(Tierkategorien_GRUD!$A$54:$S$59,MATCH('Schweine-Porcs'!$A4,Tierkategorien_GRUD!$A$54:$A$59),19))","v":""},null,{"$f":"IF('Grunddaten-Données de base'!$D$9=\"dt.\",IF(N4=\"mit Impex\",$B4*H4,IF(U4=\"\",$G4*H4,U4)),IF(N4=\"avec Impex\",$B4*H4,IF(U4=\"\",$G4*H4,U4)))","v":0},{"$f":"IF('Grunddaten-Données de base'!$D$9=\"dt.\",IF(N4=\"mit Impex\",$B4*I4,IF(V4=\"\",$G4*I4,V4)),IF(N4=\"avec Impex\",$B4*I4,IF(V4=\"\",$G4*I4,V4)))","v":0},{"$f":"IF('Grunddaten-Données de base'!$D$9=\"dt.\",IF($N4=\"mit Impex\",$O4*$Q$22,$O4),IF($N4=\"avec Impex\",$O4*$Q$22,$O4))","v":0},{"$f":"IF('Grunddaten-Données de base'!$D$9=\"dt.\",IF($N4=\"mit Impex\",$P4*$R$22,$P4),IF($N4=\"avec Impex\",$P4*$R$22,$P4))","v":0},{"$f":"$G4*J4","v":0},{"$f":"$G4*K4","v":0},null,null,{"$f":"IF('Schweine-Porcs'!$A4=\"\",0,INDEX(Tierkategorien_GRUD!$A$54:$O$59,MATCH('Schweine-Porcs'!$A4,Tierkategorien_GRUD!$A$54:$A$59),15))","v":0},{"$f":"IF(G4*W4=\"\",0,G4*W4)","v":0},null,null,{"$f":"IF('Schweine-Porcs'!$A4=\"\",0,INDEX(Tierkategorien_GRUD!$A$54:$M$59,MATCH('Schweine-Porcs'!$A4,Tierkategorien_GRUD!$A$54:$A$59),8))","v":0},{"$f":"IF(Y4=IF('Grunddaten-Données de base'!$D$9=\"dt.\",\"02 nur Mist\",\"02 uniquement fumier\"),0,G4*AA4)","v":0},null,{"$f":"IF('Schweine-Porcs'!$A4=\"\",0,INDEX(Tierkategorien_GRUD!$A$54:$M$59,MATCH('Schweine-Porcs'!$A4,Tierkategorien_GRUD!$A$54:$A$59),13))","v":0},{"$f":"IF(Y4=IF('Grunddaten-Données de base'!$D$9=\"dt.\",\"01 nur Gülle\",\"01 uniquement lisier\"),0,G4*AD4)","v":0}]
[null,null,{"$f":"IF('Grunddaten-Données de base'!$D$9=\"dt.\",IF($A5=\"\",\"\",INDEX(Tierkategorien_GRUD!$A$54:$R$59,MATCH('Schweine-Porcs'!$A5,Tierkategorien_GRUD!$A$54:$A$59),2)),IF($A5=\"\",\"\",INDEX(Tierkategorien_GRUD!$A$54:$R$59,MATCH('Schweine-Porcs'!$A5,Tierkategorien_GRUD!$A$54:$A$59),18)))","v":""},null,null,{"$f":"(365-($D5*($E5/24)))/365","v":1},{"$f":"$B5*$F5","v":0},{"$f":"IF('Schweine-Porcs'!$A5=\"\",0,INDEX(Tierkategorien_GRUD!$A$54:$F$59,MATCH('Schweine-Porcs'!$A5,Tierkategorien_GRUD!$A$54:$A$59),3))","v":0},{"$f":"IF('Schweine-Porcs'!$A5=\"\",0,INDEX(Tierkategorien_GRUD!$A$54:$F$59,MATCH('Schweine-Porcs'!$A5,Tierkategorien_GRUD!$A$54:$A$59),4))","v":0},{"$f":"IF('Schweine-Porcs'!$A5=\"\",0,INDEX(Tierkategorien_GRUD!$A$54:$F$59,MATCH('Schweine-Porcs'!$A5,Tierkategorien_GRUD!$A$54:$A$59),5))","v":0},{"$f":"IF('Schweine-Porcs'!$A5=\"\",0,INDEX(Tierkategorien_GRUD!$A$54:$F$59,MATCH('Schweine-Porcs'!$A5,Tierkategorien_GRUD!$A$54:$A$59),6))","v":0},null,{"$f":"IF($A5=\"\",\"\",INDEX(Tierkategorien_GRUD!$A$54:$S$59,MATCH('Schweine-Porcs'!$A5,Tierkategorien_GRUD!$A$54:$A$59),19))","v":""},null,{"$f":"IF('Grunddaten-Données de base'!$D$9=\"dt.\",IF(N5=\"mit Impex\",$B5*H5,IF(U5=\"\",$G5*H5,U5)),IF(N5=\"avec Impex\",$B5*H5,IF(U5=\"\",$G5*H5,U5)))","v":0},{"$f":"IF('Grunddaten-Données de base'!$D$9=\"dt.\",IF(N5=\"mit Impex\",$B5*I5,IF(V5=\"\",$G5*I5,V5)),IF(N5=\"avec Impex\",$B5*I5,IF(V5=\"\",$G5*I5,V5)))","v":0},{"$f":"IF('Grunddaten-Données de base'!$D$9=\"dt.\",IF($N5=\"mit Impex\",$O5*$Q$22,$O5),IF($N5=\"avec Impex\",$O5*$Q$22,$O5))","v":0},{"$f":"IF('Grunddaten-Données de base'!$D$9=\"dt.\",IF($N5=\"mit Impex\",$P5*$R$22,$P5),IF($N5=\"avec Impex\",$P5*$R$22,$P5))","v":0},0,0,null,null,{"$f":"IF('Schweine-Porcs'!$A5=\"\",0,INDEX(Tierkategorien_GRUD!$A$54:$O$59,MATCH('Schweine-Porcs'!$A5,Tierkategorien_GRUD!$A$54:$A$59),15))","v":0},0,null,null,{"$f":"IF('Schweine-Porcs'!$A5=\"\",0,INDEX(Tierkategorien_GRUD!$A$54:$M$59,MATCH('Schweine-Porcs'!$A5,Tierkategorien_GRUD!$A$54:$A$59),8))","v":0},{"$f":"IF(Y5=IF('Grunddaten-Données de base'!$D$9=\"dt.\",\"02 nur Mist\",\"02 uniquement fumier\"),0,G5*AA5)","v":0},null,{"$f":"IF('Schweine-Porcs'!$A5=\"\",0,INDEX(Tierkategorien_GRUD!$A$54:$M$59,MATCH('Schweine-Porcs'!$A5,Tierkategorien_GRUD!$A$54:$A$59),13))","v":0},{"$f":"IF(Y5=IF('Grunddaten-Données de base'!$D$9=\"dt.\",\"01 nur Gülle\",\"01 uniquement lisier\"),0,G5*AD5)","v":0}]
[null,null,{"$f":"IF('Grunddaten-Données de base'!$D$9=\"dt.\",IF($A6=\"\",\"\",INDEX(Tierkategorien_GRUD!$A$54:$R$59,MATCH('Schweine-Porcs'!$A6,Tierkategorien_GRUD!$A$54:$A$59),2)),IF($A6=\"\",\"\",INDEX(Tierkategorien_GRUD!$A$54:$R$59,MATCH('Schweine-Porcs'!$A6,Tierkategorien_GRUD!$A$54:$A$59),18)))","v":""},null,null,1,0,{"$f":"IF('Schweine-Porcs'!$A6=\"\",0,INDEX(Tierkategorien_GRUD!$A$54:$F$59,MATCH('Schweine-Porcs'!$A6,Tierkategorien_GRUD!$A$54:$A$59),3))","v":0},{"$f":"IF('Schweine-Porcs'!$A6=\"\",0,INDEX(Tierkategorien_GRUD!$A$54:$F$59,MATCH('Schweine-Porcs'!$A6,Tierkategorien_GRUD!$A$54:$A$59),4))","v":0},{"$f":"IF('Schweine-Porcs'!$A6=\"\",0,INDEX(Tierkategorien_GRUD!$A$54:$F$59,MATCH('Schweine-Porcs'!$A6,Tierkategorien_GRUD!$A$54:$A$59),5))","v":0},{"$f":"IF('Schweine-Porcs'!$A6=\"\",0,INDEX(Tierkategorien_GRUD!$A$54:$F$59,MATCH('Schweine-Porcs'!$A6,Tierkategorien_GRUD!$A$54:$A$59),6))","v":0},null,{"$f":"IF($A6=\"\",\"\",INDEX(Tierkategorien_GRUD!$A$54:$S$59,MATCH('Schweine-Porcs'!$A6,Tierkategorien_GRUD!$A$54:$A$59),19))","v":""},null,{"$f":"IF('Grunddaten-Données de base'!$D$9=\"dt.\",IF(N6=\"mit Impex\",$B6*H6,IF(U6=\"\",$G6*H6,U6)),IF(N6=\"avec Impex\",$B6*H6,IF(U6=\"\",$G6*H6,U6)))","v":0},{"$f":"IF('Grunddaten-Données de base'!$D$9=\"dt.\",IF(N6=\"mit Impex\",$B6*I6,IF(V6=\"\",$G6*I6,V6)),IF(N6=\"avec Impex\",$B6*I6,IF(V6=\"\",$G6*I6,V6)))","v":0},{"$f":"IF('Grunddaten-Données de base'!$D$9=\"dt.\",IF($N6=\"mit Impex\",$O6*$Q$22,$O6),IF($N6=\"avec Impex\",$O6*$Q$22,$O6))","v":0},{"$f":"IF('Grunddaten-Données de base'!$D$9=\"dt.\",IF($N6=\"mit Impex\",$P6*$R$22,$P6),IF($N6=\"avec Impex\",$P6*$R$22,$P6))","v":0},0,0,null,null,{"$f":"IF('Schweine-Porcs'!$A6=\"\",0,INDEX(Tierkategorien_GRUD!$A$54:$O$59,MATCH('Schweine-Porcs'!$A6,Tierkategorien_GRUD!$A$54:$A$59),15))","v":0},0,null,null,{"$f":"IF('Schweine-Porcs'!$A6=\"\",0,INDEX(Tierkategorien_GRUD!$A$54:$M$59,MATCH('Schweine-Porcs'!$A6,Tierkategorien_GRUD!$A$54:$A$59),8))","v":0},{"$f":"IF(Y6=IF('Grunddaten-Données de base'!$D$9=\"dt.\",\"02 nur Mist\",\"02 uniquement fumier\"),0,G6*AA6)","v":0},null,{"$f":"IF('Schweine-Porcs'!$A6=\"\",0,INDEX(Tierkategorien_GRUD!$A$54:$M$59,MATCH('Schweine-Porcs'!$A6,Tierkategorien_GRUD!$A$54:$A$59),13))","v":0},{"$f":"IF(Y6=IF('Grunddaten-Données de base'!$D$9=\"dt.\",\"01 nur Gülle\",\"01 uniquement lisier\"),0,G6*AD6)","v":0}]
[null,null,{"$f":"IF('Grunddaten-Données de base'!$D$9=\"dt.\",IF($A7=\"\",\"\",INDEX(Tierkategorien_GRUD!$A$54:$R$59,MATCH('Schweine-Porcs'!$A7,Tierkategorien_GRUD!$A$54:$A$59),2)),IF($A7=\"\",\"\",INDEX(Tierkategorien_GRUD!$A$54:$R$59,MATCH('Schweine-Porcs'!$A7,Tierkategorien_GRUD!$A$54:$A$59),18)))","v":""},null,null,1,0,{"$f":"IF('Schweine-Porcs'!$A7=\"\",0,INDEX(Tierkategorien_GRUD!$A$54:$F$59,MATCH('Schweine-Porcs'!$A7,Tierkategorien_GRUD!$A$54:$A$59),3))","v":0},{"$f":"IF('Schweine-Porcs'!$A7=\"\",0,INDEX(Tierkategorien_GRUD!$A$54:$F$59,MATCH('Schweine-Porcs'!$A7,Tierkategorien_GRUD!$A$54:$A$59),4))","v":0},{"$f":"IF('Schweine-Porcs'!$A7=\"\",0,INDEX(Tierkategorien_GRUD!$A$54:$F$59,MATCH('Schweine-Porcs'!$A7,Tierkategorien_GRUD!$A$54:$A$59),5))","v":0},{"$f":"IF('Schweine-Porcs'!$A7=\"\",0,INDEX(Tierkategorien_GRUD!$A$54:$F$59,MATCH('Schweine-Porcs'!$A7,Tierkategorien_GRUD!$A$54:$A$59),6))","v":0},null,{"$f":"IF($A7=\"\",\"\",INDEX(Tierkategorien_GRUD!$A$54:$S$59,MATCH('Schweine-Porcs'!$A7,Tierkategorien_GRUD!$A$54:$A$59),19))","v":""},null,{"$f":"IF('Grunddaten-Données de base'!$D$9=\"dt.\",IF(N7=\"mit Impex\",$B7*H7,IF(U7=\"\",$G7*H7,U7)),IF(N7=\"avec Impex\",$B7*H7,IF(U7=\"\",$G7*H7,U7)))","v":0},{"$f":"IF('Grunddaten-Données de base'!$D$9=\"dt.\",IF(N7=\"mit Impex\",$B7*I7,IF(V7=\"\",$G7*I7,V7)),IF(N7=\"avec Impex\",$B7*I7,IF(V7=\"\",$G7*I7,V7)))","v":0},{"$f":"IF('Grunddaten-Données de base'!$D$9=\"dt.\",IF($N7=\"mit Impex\",$O7*$Q$22,$O7),IF($N7=\"avec Impex\",$O7*$Q$22,$O7))","v":0},{"$f":"IF('Grunddaten-Données de base'!$D$9=\"dt.\",IF($N7=\"mit Impex\",$P7*$R$22,$P7),IF($N7=\"avec Impex\",$P7*$R$22,$P7))","v":0},0,0,null,null,{"$f":"IF('Schweine-Porcs'!$A7=\"\",0,INDEX(Tierkategorien_GRUD!$A$54:$O$59,MATCH('Schweine-Porcs'!$A7,Tierkategorien_GRUD!$A$54:$A$59),15))","v":0},0,null,null,{"$f":"IF('Schweine-Porcs'!$A7=\"\",0,INDEX(Tierkategorien_GRUD!$A$54:$M$59,MATCH('Schweine-Porcs'!$A7,Tierkategorien_GRUD!$A$54:$A$59),8))","v":0},{"$f":"IF(Y7=IF('Grunddaten-Données de base'!$D$9=\"dt.\",\"02 nur Mist\",\"02 uniquement fumier\"),0,G7*AA7)","v":0},null,{"$f":"IF('Schweine-Porcs'!$A7=\"\",0,INDEX(Tierkategorien_GRUD!$A$54:$M$59,MATCH('Schweine-Porcs'!$A7,Tierkategorien_GRUD!$A$54:$A$59),13))","v":0},{"$f":"IF(Y7=IF('Grunddaten-Données de base'!$D$9=\"dt.\",\"01 nur Gülle\",\"01 uniquement lisier\"),0,G7*AD7)","v":0}]
[null,null,{"$f":"IF('Grunddaten-Données de base'!$D$9=\"dt.\",IF($A8=\"\",\"\",INDEX(Tierkategorien_GRUD!$A$54:$R$59,MATCH('Schweine-Porcs'!$A8,Tierkategorien_GRUD!$A$54:$A$59),2)),IF($A8=\"\",\"\",INDEX(Tierkategorien_GRUD!$A$54:$R$59,MATCH('Schweine-Porcs'!$A8,Tierkategorien_GRUD!$A$54:$A$59),18)))","v":""},null,null,1,0,{"$f":"IF('Schweine-Porcs'!$A8=\"\",0,INDEX(Tierkategorien_GRUD!$A$54:$F$59,MATCH('Schweine-Porcs'!$A8,Tierkategorien_GRUD!$A$54:$A$59),3))","v":0},{"$f":"IF('Schweine-Porcs'!$A8=\"\",0,INDEX(Tierkategorien_GRUD!$A$54:$F$59,MATCH('Schweine-Porcs'!$A8,Tierkategorien_GRUD!$A$54:$A$59),4))","v":0},{"$f":"IF('Schweine-Porcs'!$A8=\"\",0,INDEX(Tierkategorien_GRUD!$A$54:$F$59,MATCH('Schweine-Porcs'!$A8,Tierkategorien_GRUD!$A$54:$A$59),5))","v":0},{"$f":"IF('Schweine-Porcs'!$A8=\"\",0,INDEX(Tierkategorien_GRUD!$A$54:$F$59,MATCH('Schweine-Porcs'!$A8,Tierkategorien_GRUD!$A$54:$A$59),6))","v":0},null,{"$f":"IF($A8=\"\",\"\",INDEX(Tierkategorien_GRUD!$A$54:$S$59,MATCH('Schweine-Porcs'!$A8,Tierkategorien_GRUD!$A$54:$A$59),19))","v":""},null,{"$f":"IF('Grunddaten-Données de base'!$D$9=\"dt.\",IF(N8=\"mit Impex\",$B8*H8,IF(U8=\"\",$G8*H8,U8)),IF(N8=\"avec Impex\",$B8*H8,IF(U8=\"\",$G8*H8,U8)))","v":0},{"$f":"IF('Grunddaten-Données de base'!$D$9=\"dt.\",IF(N8=\"mit Impex\",$B8*I8,IF(V8=\"\",$G8*I8,V8)),IF(N8=\"avec Impex\",$B8*I8,IF(V8=\"\",$G8*I8,V8)))","v":0},{"$f":"IF('Grunddaten-Données de base'!$D$9=\"dt.\",IF($N8=\"mit Impex\",$O8*$Q$22,$O8),IF($N8=\"avec Impex\",$O8*$Q$22,$O8))","v":0},{"$f":"IF('Grunddaten-Données de base'!$D$9=\"dt.\",IF($N8=\"mit Impex\",$P8*$R$22,$P8),IF($N8=\"avec Impex\",$P8*$R$22,$P8))","v":0},0,0,null,null,{"$f":"IF('Schweine-Porcs'!$A8=\"\",0,INDEX(Tierkategorien_GRUD!$A$54:$O$59,MATCH('Schweine-Porcs'!$A8,Tierkategorien_GRUD!$A$54:$A$59),15))","v":0},0,null,null,{"$f":"IF('Schweine-Porcs'!$A8=\"\",0,INDEX(Tierkategorien_GRUD!$A$54:$M$59,MATCH('Schweine-Porcs'!$A8,Tierkategorien_GRUD!$A$54:$A$59),8))","v":0},{"$f":"IF(Y8=IF('Grunddaten-Données de base'!$D$9=\"dt.\",\"02 nur Mist\",\"02 uniquement fumier\"),0,G8*AA8)","v":0},null,{"$f":"IF('Schweine-Porcs'!$A8=\"\",0,INDEX(Tierkategorien_GRUD!$A$54:$M$59,MATCH('Schweine-Porcs'!$A8,Tierkategorien_GRUD!$A$54:$A$59),13))","v":0},{"$f":"IF(Y8=IF('Grunddaten-Données de base'!$D$9=\"dt.\",\"01 nur Gülle\",\"01 uniquement lisier\"),0,G8*AD8)","v":0}]
[null,null,{"$f":"IF('Grunddaten-Données de base'!$D$9=\"dt.\",IF($A9=\"\",\"\",INDEX(Tierkategorien_GRUD!$A$54:$R$59,MATCH('Schweine-Porcs'!$A9,Tierkategorien_GRUD!$A$54:$A$59),2)),IF($A9=\"\",\"\",INDEX(Tierkategorien_GRUD!$A$54:$R$59,MATCH('Schweine-Porcs'!$A9,Tierkategorien_GRUD!$A$54:$A$59),18)))","v":""},null,null,1,0,{"$f":"IF('Schweine-Porcs'!$A9=\"\",0,INDEX(Tierkategorien_GRUD!$A$54:$F$59,MATCH('Schweine-Porcs'!$A9,Tierkategorien_GRUD!$A$54:$A$59),3))","v":0},{"$f":"IF('Schweine-Porcs'!$A9=\"\",0,INDEX(Tierkategorien_GRUD!$A$54:$F$59,MATCH('Schweine-Porcs'!$A9,Tierkategorien_GRUD!$A$54:$A$59),4))","v":0},{"$f":"IF('Schweine-Porcs'!$A9=\"\",0,INDEX(Tierkategorien_GRUD!$A$54:$F$59,MATCH('Schweine-Porcs'!$A9,Tierkategorien_GRUD!$A$54:$A$59),5))","v":0},{"$f":"IF('Schweine-Porcs'!$A9=\"\",0,INDEX(Tierkategorien_GRUD!$A$54:$F$59,MATCH('Schweine-Porcs'!$A9,Tierkategorien_GRUD!$A$54:$A$59),6))","v":0},null,{"$f":"IF($A9=\"\",\"\",INDEX(Tierkategorien_GRUD!$A$54:$S$59,MATCH('Schweine-Porcs'!$A9,Tierkategorien_GRUD!$A$54:$A$59),19))","v":""},null,{"$f":"IF('Grunddaten-Données de base'!$D$9=\"dt.\",IF(N9=\"mit Impex\",$B9*H9,IF(U9=\"\",$G9*H9,U9)),IF(N9=\"avec Impex\",$B9*H9,IF(U9=\"\",$G9*H9,U9)))","v":0},{"$f":"IF('Grunddaten-Données de base'!$D$9=\"dt.\",IF(N9=\"mit Impex\",$B9*I9,IF(V9=\"\",$G9*I9,V9)),IF(N9=\"avec Impex\",$B9*I9,IF(V9=\"\",$G9*I9,V9)))","v":0},{"$f":"IF('Grunddaten-Données de base'!$D$9=\"dt.\",IF($N9=\"mit Impex\",$O9*$Q$22,$O9),IF($N9=\"avec Impex\",$O9*$Q$22,$O9))","v":0},{"$f":"IF('Grunddaten-Données de base'!$D$9=\"dt.\",IF($N9=\"mit Impex\",$P9*$R$22,$P9),IF($N9=\"avec Impex\",$P9*$R$22,$P9))","v":0},0,0,null,null,{"$f":"IF('Schweine-Porcs'!$A9=\"\",0,INDEX(Tierkategorien_GRUD!$A$54:$O$59,MATCH('Schweine-Porcs'!$A9,Tierkategorien_GRUD!$A$54:$A$59),15))","v":0},0,null,null,{"$f":"IF('Schweine-Porcs'!$A9=\"\",0,INDEX(Tierkategorien_GRUD!$A$54:$M$59,MATCH('Schweine-Porcs'!$A9,Tierkategorien_GRUD!$A$54:$A$59),8))","v":0},{"$f":"IF(Y9=IF('Grunddaten-Données de base'!$D$9=\"dt.\",\"02 nur Mist\",\"02 uniquement fumier\"),0,G9*AA9)","v":0},null,{"$f":"IF('Schweine-Porcs'!$A9=\"\",0,INDEX(Tierkategorien_GRUD!$A$54:$M$59,MATCH('Schweine-Porcs'!$A9,Tierkategorien_GRUD!$A$54:$A$59),13))","v":0},{"$f":"IF(Y9=IF('Grunddaten-Données de base'!$D$9=\"dt.\",\"01 nur Gülle\",\"01 uniquement lisier\"),0,G9*AD9)","v":0}]
[null,null,{"$f":"IF('Grunddaten-Données de base'!$D$9=\"dt.\",IF($A10=\"\",\"\",INDEX(Tierkategorien_GRUD!$A$54:$R$59,MATCH('Schweine-Porcs'!$A10,Tierkategorien_GRUD!$A$54:$A$59),2)),IF($A10=\"\",\"\",INDEX(Tierkategorien_GRUD!$A$54:$R$59,MATCH('Schweine-Porcs'!$A10,Tierkategorien_GRUD!$A$54:$A$59),18)))","v":""},null,null,1,0,{"$f":"IF('Schweine-Porcs'!$A10=\"\",0,INDEX(Tierkategorien_GRUD!$A$54:$F$59,MATCH('Schweine-Porcs'!$A10,Tierkategorien_GRUD!$A$54:$A$59),3))","v":0},{"$f":"IF('Schweine-Porcs'!$A10=\"\",0,INDEX(Tierkategorien_GRUD!$A$54:$F$59,MATCH('Schweine-Porcs'!$A10,Tierkategorien_GRUD!$A$54:$A$59),4))","v":0},{"$f":"IF('Schweine-Porcs'!$A10=\"\",0,INDEX(Tierkategorien_GRUD!$A$54:$F$59,MATCH('Schweine-Porcs'!$A10,Tierkategorien_GRUD!$A$54:$A$59),5))","v":0},{"$f":"IF('Schweine-Porcs'!$A10=\"\",0,INDEX(Tierkategorien_GRUD!$A$54:$F$59,MATCH('Schweine-Porcs'!$A10,Tierkategorien_GRUD!$A$54:$A$59),6))","v":0},null,{"$f":"IF($A10=\"\",\"\",INDEX(Tierkategorien_GRUD!$A$54:$S$59,MATCH('Schweine-Porcs'!$A10,Tierkategorien_GRUD!$A$54:$A$59),19))","v":""},null,{"$f":"IF('Grunddaten-Données de base'!$D$9=\"dt.\",IF(N10=\"mit Impex\",$B10*H10,IF(U10=\"\",$G10*H10,U10)),IF(N10=\"avec Impex\",$B10*H10,IF(U10=\"\",$G10*H10,U10)))","v":0},{"$f":"IF('Grunddaten-Données de base'!$D$9=\"dt.\",IF(N10=\"mit Impex\",$B10*I10,IF(V10=\"\",$G10*I10,V10)),IF(N10=\"avec Impex\",$B10*I10,IF(V10=\"\",$G10*I10,V10)))","v":0},{"$f":"IF('Grunddaten-Données de base'!$D$9=\"dt.\",IF($N10=\"mit Impex\",$O10*$Q$22,$O10),IF($N10=\"avec Impex\",$O10*$Q$22,$O10))","v":0},{"$f":"IF('Grunddaten-Données de base'!$D$9=\"dt.\",IF($N10=\"mit Impex\",$P10*$R$22,$P10),IF($N10=\"avec Impex\",$P10*$R$22,$P10))","v":0},0,0,null,null,{"$f":"IF('Schweine-Porcs'!$A10=\"\",0,INDEX(Tierkategorien_GRUD!$A$54:$O$59,MATCH('Schweine-Porcs'!$A10,Tierkategorien_GRUD!$A$54:$A$59),15))","v":0},0,null,null,{"$f":"IF('Schweine-Porcs'!$A10=\"\",0,INDEX(Tierkategorien_GRUD!$A$54:$M$59,MATCH('Schweine-Porcs'!$A10,Tierkategorien_GRUD!$A$54:$A$59),8))","v":0},{"$f":"IF(Y10=IF('Grunddaten-Données de base'!$D$9=\"dt.\",\"02 nur Mist\",\"02 uniquement fumier\"),0,G10*AA10)","v":0},null,{"$f":"IF('Schweine-Porcs'!$A10=\"\",0,INDEX(Tierkategorien_GRUD!$A$54:$M$59,MATCH('Schweine-Porcs'!$A10,Tierkategorien_GRUD!$A$54:$A$59),13))","v":0},{"$f":"IF(Y10=IF('Grunddaten-Données de base'!$D$9=\"dt.\",\"01 nur Gülle\",\"01 uniquement lisier\"),0,G10*AD10)","v":0}]
[null,null,{"$f":"IF('Grunddaten-Données de base'!$D$9=\"dt.\",IF($A11=\"\",\"\",INDEX(Tierkategorien_GRUD!$A$54:$R$59,MATCH('Schweine-Porcs'!$A11,Tierkategorien_GRUD!$A$54:$A$59),2)),IF($A11=\"\",\"\",INDEX(Tierkategorien_GRUD!$A$54:$R$59,MATCH('Schweine-Porcs'!$A11,Tierkategorien_GRUD!$A$54:$A$59),18)))","v":""},null,null,1,0,{"$f":"IF('Schweine-Porcs'!$A11=\"\",0,INDEX(Tierkategorien_GRUD!$A$54:$F$59,MATCH('Schweine-Porcs'!$A11,Tierkategorien_GRUD!$A$54:$A$59),3))","v":0},{"$f":"IF('Schweine-Porcs'!$A11=\"\",0,INDEX(Tierkategorien_GRUD!$A$54:$F$59,MATCH('Schweine-Porcs'!$A11,Tierkategorien_GRUD!$A$54:$A$59),4))","v":0},{"$f":"IF('Schweine-Porcs'!$A11=\"\",0,INDEX(Tierkategorien_GRUD!$A$54:$F$59,MATCH('Schweine-Porcs'!$A11,Tierkategorien_GRUD!$A$54:$A$59),5))","v":0},{"$f":"IF('Schweine-Porcs'!$A11=\"\",0,INDEX(Tierkategorien_GRUD!$A$54:$F$59,MATCH('Schweine-Porcs'!$A11,Tierkategorien_GRUD!$A$54:$A$59),6))","v":0},null,{"$f":"IF($A11=\"\",\"\",INDEX(Tierkategorien_GRUD!$A$54:$S$59,MATCH('Schweine-Porcs'!$A11,Tierkategorien_GRUD!$A$54:$A$59),19))","v":""},null,{"$f":"IF('Grunddaten-Données de base'!$D$9=\"dt.\",IF(N11=\"mit Impex\",$B11*H11,IF(U11=\"\",$G11*H11,U11)),IF(N11=\"avec Impex\",$B11*H11,IF(U11=\"\",$G11*H11,U11)))","v":0},{"$f":"IF('Grunddaten-Données de base'!$D$9=\"dt.\",IF(N11=\"mit Impex\",$B11*I11,IF(V11=\"\",$G11*I11,V11)),IF(N11=\"avec Impex\",$B11*I11,IF(V11=\"\",$G11*I11,V11)))","v":0},{"$f":"IF('Grunddaten-Données de base'!$D$9=\"dt.\",IF($N11=\"mit Impex\",$O11*$Q$22,$O11),IF($N11=\"avec Impex\",$O11*$Q$22,$O11))","v":0},{"$f":"IF('Grunddaten-Données de base'!$D$9=\"dt.\",IF($N11=\"mit Impex\",$P11*$R$22,$P11),IF($N11=\"avec Impex\",$P11*$R$22,$P11))","v":0},0,0,null,null,{"$f":"IF('Schweine-Porcs'!$A11=\"\",0,INDEX(Tierkategorien_GRUD!$A$54:$O$59,MATCH('Schweine-Porcs'!$A11,Tierkategorien_GRUD!$A$54:$A$59),15))","v":0},0,null,null,{"$f":"IF('Schweine-Porcs'!$A11=\"\",0,INDEX(Tierkategorien_GRUD!$A$54:$M$59,MATCH('Schweine-Porcs'!$A11,Tierkategorien_GRUD!$A$54:$A$59),8))","v":0},{"$f":"IF(Y11=IF('Grunddaten-Données de base'!$D$9=\"dt.\",\"02 nur Mist\",\"02 uniquement fumier\"),0,G11*AA11)","v":0},null,{"$f":"IF('Schweine-Porcs'!$A11=\"\",0,INDEX(Tierkategorien_GRUD!$A$54:$M$59,MATCH('Schweine-Porcs'!$A11,Tierkategorien_GRUD!$A$54:$A$59),13))","v":0},{"$f":"IF(Y11=IF('Grunddaten-Données de base'!$D$9=\"dt.\",\"01 nur Gülle\",\"01 uniquement lisier\"),0,G11*AD11)","v":0}]
[null,null,{"$f":"IF('Grunddaten-Données de base'!$D$9=\"dt.\",IF($A12=\"\",\"\",INDEX(Tierkategorien_GRUD!$A$54:$R$59,MATCH('Schweine-Porcs'!$A12,Tierkategorien_GRUD!$A$54:$A$59),2)),IF($A12=\"\",\"\",INDEX(Tierkategorien_GRUD!$A$54:$R$59,MATCH('Schweine-Porcs'!$A12,Tierkategorien_GRUD!$A$54:$A$59),18)))","v":""},null,null,1,0,{"$f":"IF('Schweine-Porcs'!$A12=\"\",0,INDEX(Tierkategorien_GRUD!$A$54:$F$59,MATCH('Schweine-Porcs'!$A12,Tierkategorien_GRUD!$A$54:$A$59),3))","v":0},{"$f":"IF('Schweine-Porcs'!$A12=\"\",0,INDEX(Tierkategorien_GRUD!$A$54:$F$59,MATCH('Schweine-Porcs'!$A12,Tierkategorien_GRUD!$A$54:$A$59),4))","v":0},{"$f":"IF('Schweine-Porcs'!$A12=\"\",0,INDEX(Tierkategorien_GRUD!$A$54:$F$59,MATCH('Schweine-Porcs'!$A12,Tierkategorien_GRUD!$A$54:$A$59),5))","v":0},{"$f":"IF('Schweine-Porcs'!$A12=\"\",0,INDEX(Tierkategorien_GRUD!$A$54:$F$59,MATCH('Schweine-Porcs'!$A12,Tierkategorien_GRUD!$A$54:$A$59),6))","v":0},null,{"$f":"IF($A12=\"\",\"\",INDEX(Tierkategorien_GRUD!$A$54:$S$59,MATCH('Schweine-Porcs'!$A12,Tierkategorien_GRUD!$A$54:$A$59),19))","v":""},null,{"$f":"IF('Grunddaten-Données de base'!$D$9=\"dt.\",IF(N12=\"mit Impex\",$B12*H12,IF(U12=\"\",$G12*H12,U12)),IF(N12=\"avec Impex\",$B12*H12,IF(U12=\"\",$G12*H12,U12)))","v":0},{"$f":"IF('Grunddaten-Données de base'!$D$9=\"dt.\",IF(N12=\"mit Impex\",$B12*I12,IF(V12=\"\",$G12*I12,V12)),IF(N12=\"avec Impex\",$B12*I12,IF(V12=\"\",$G12*I12,V12)))","v":0},{"$f":"IF('Grunddaten-Données de base'!$D$9=\"dt.\",IF($N12=\"mit Impex\",$O12*$Q$22,$O12),IF($N12=\"avec Impex\",$O12*$Q$22,$O12))","v":0},{"$f":"IF('Grunddaten-Données de base'!$D$9=\"dt.\",IF($N12=\"mit Impex\",$P12*$R$22,$P12),IF($N12=\"avec Impex\",$P12*$R$22,$P12))","v":0},0,0,null,null,{"$f":"IF('Schweine-Porcs'!$A12=\"\",0,INDEX(Tierkategorien_GRUD!$A$54:$O$59,MATCH('Schweine-Porcs'!$A12,Tierkategorien_GRUD!$A$54:$A$59),15))","v":0},0,null,null,{"$f":"IF('Schweine-Porcs'!$A12=\"\",0,INDEX(Tierkategorien_GRUD!$A$54:$M$59,MATCH('Schweine-Porcs'!$A12,Tierkategorien_GRUD!$A$54:$A$59),8))","v":0},{"$f":"IF(Y12=IF('Grunddaten-Données de base'!$D$9=\"dt.\",\"02 nur Mist\",\"02 uniquement fumier\"),0,G12*AA12)","v":0},null,{"$f":"IF('Schweine-Porcs'!$A12=\"\",0,INDEX(Tierkategorien_GRUD!$A$54:$M$59,MATCH('Schweine-Porcs'!$A12,Tierkategorien_GRUD!$A$54:$A$59),13))","v":0},{"$f":"IF(Y12=IF('Grunddaten-Données de base'!$D$9=\"dt.\",\"01 nur Gülle\",\"01 uniquement lisier\"),0,G12*AD12)","v":0}]
[null,null,{"$f":"IF('Grunddaten-Données de base'!$D$9=\"dt.\",IF($A13=\"\",\"\",INDEX(Tierkategorien_GRUD!$A$54:$R$59,MATCH('Schweine-Porcs'!$A13,Tierkategorien_GRUD!$A$54:$A$59),2)),IF($A13=\"\",\"\",INDEX(Tierkategorien_GRUD!$A$54:$R$59,MATCH('Schweine-Porcs'!$A13,Tierkategorien_GRUD!$A$54:$A$59),18)))","v":""},null,null,1,0,{"$f":"IF('Schweine-Porcs'!$A13=\"\",0,INDEX(Tierkategorien_GRUD!$A$54:$F$59,MATCH('Schweine-Porcs'!$A13,Tierkategorien_GRUD!$A$54:$A$59),3))","v":0},{"$f":"IF('Schweine-Porcs'!$A13=\"\",0,INDEX(Tierkategorien_GRUD!$A$54:$F$59,MATCH('Schweine-Porcs'!$A13,Tierkategorien_GRUD!$A$54:$A$59),4))","v":0},{"$f":"IF('Schweine-Porcs'!$A13=\"\",0,INDEX(Tierkategorien_GRUD!$A$54:$F$59,MATCH('Schweine-Porcs'!$A13,Tierkategorien_GRUD!$A$54:$A$59),5))","v":0},{"$f":"IF('Schweine-Porcs'!$A13=\"\",0,INDEX(Tierkategorien_GRUD!$A$54:$F$59,MATCH('Schweine-Porcs'!$A13,Tierkategorien_GRUD!$A$54:$A$59),6))","v":0},null,{"$f":"IF($A13=\"\",\"\",INDEX(Tierkategorien_GRUD!$A$54:$S$59,MATCH('Schweine-Porcs'!$A13,Tierkategorien_GRUD!$A$54:$A$59),19))","v":""},null,{"$f":"IF('Grunddaten-Données de base'!$D$9=\"dt.\",IF(N13=\"mit Impex\",$B13*H13,IF(U13=\"\",$G13*H13,U13)),IF(N13=\"avec Impex\",$B13*H13,IF(U13=\"\",$G13*H13,U13)))","v":0},{"$f":"IF('Grunddaten-Données de base'!$D$9=\"dt.\",IF(N13=\"mit Impex\",$B13*I13,IF(V13=\"\",$G13*I13,V13)),IF(N13=\"avec Impex\",$B13*I13,IF(V13=\"\",$G13*I13,V13)))","v":0},{"$f":"IF('Grunddaten-Données de base'!$D$9=\"dt.\",IF($N13=\"mit Impex\",$O13*$Q$22,$O13),IF($N13=\"avec Impex\",$O13*$Q$22,$O13))","v":0},{"$f":"IF('Grunddaten-Données de base'!$D$9=\"dt.\",IF($N13=\"mit Impex\",$P13*$R$22,$P13),IF($N13=\"avec Impex\",$P13*$R$22,$P13))","v":0},0,0,null,null,{"$f":"IF('Schweine-Porcs'!$A13=\"\",0,INDEX(Tierkategorien_GRUD!$A$54:$O$59,MATCH('Schweine-Porcs'!$A13,Tierkategorien_GRUD!$A$54:$A$59),15))","v":0},0,null,null,{"$f":"IF('Schweine-Porcs'!$A13=\"\",0,INDEX(Tierkategorien_GRUD!$A$54:$M$59,MATCH('Schweine-Porcs'!$A13,Tierkategorien_GRUD!$A$54:$A$59),8))","v":0},{"$f":"IF(Y13=IF('Grunddaten-Données de base'!$D$9=\"dt.\",\"02 nur Mist\",\"02 uniquement fumier\"),0,G13*AA13)","v":0},null,{"$f":"IF('Schweine-Porcs'!$A13=\"\",0,INDEX(Tierkategorien_GRUD!$A$54:$M$59,MATCH('Schweine-Porcs'!$A13,Tierkategorien_GRUD!$A$54:$A$59),13))","v":0},{"$f":"IF(Y13=IF('Grunddaten-Données de base'!$D$9=\"dt.\",\"01 nur Gülle\",\"01 uniquement lisier\"),0,G13*AD13)","v":0}]
[null,null,{"$f":"IF('Grunddaten-Données de base'!$D$9=\"dt.\",IF($A14=\"\",\"\",INDEX(Tierkategorien_GRUD!$A$54:$R$59,MATCH('Schweine-Porcs'!$A14,Tierkategorien_GRUD!$A$54:$A$59),2)),IF($A14=\"\",\"\",INDEX(Tierkategorien_GRUD!$A$54:$R$59,MATCH('Schweine-Porcs'!$A14,Tierkategorien_GRUD!$A$54:$A$59),18)))","v":""},null,null,1,0,{"$f":"IF('Schweine-Porcs'!$A14=\"\",0,INDEX(Tierkategorien_GRUD!$A$54:$F$59,MATCH('Schweine-Porcs'!$A14,Tierkategorien_GRUD!$A$54:$A$59),3))","v":0},{"$f":"IF('Schweine-Porcs'!$A14=\"\",0,INDEX(Tierkategorien_GRUD!$A$54:$F$59,MATCH('Schweine-Porcs'!$A14,Tierkategorien_GRUD!$A$54:$A$59),4))","v":0},{"$f":"IF('Schweine-Porcs'!$A14=\"\",0,INDEX(Tierkategorien_GRUD!$A$54:$F$59,MATCH('Schweine-Porcs'!$A14,Tierkategorien_GRUD!$A$54:$A$59),5))","v":0},{"$f":"IF('Schweine-Porcs'!$A14=\"\",0,INDEX(Tierkategorien_GRUD!$A$54:$F$59,MATCH('Schweine-Porcs'!$A14,Tierkategorien_GRUD!$A$54:$A$59),6))","v":0},null,{"$f":"IF($A14=\"\",\"\",INDEX(Tierkategorien_GRUD!$A$54:$S$59,MATCH('Schweine-Porcs'!$A14,Tierkategorien_GRUD!$A$54:$A$59),19))","v":""},null,{"$f":"IF('Grunddaten-Données de base'!$D$9=\"dt.\",IF(N14=\"mit Impex\",$B14*H14,IF(U14=\"\",$G14*H14,U14)),IF(N14=\"avec Impex\",$B14*H14,IF(U14=\"\",$G14*H14,U14)))","v":0},{"$f":"IF('Grunddaten-Données de base'!$D$9=\"dt.\",IF(N14=\"mit Impex\",$B14*I14,IF(V14=\"\",$G14*I14,V14)),IF(N14=\"avec Impex\",$B14*I14,IF(V14=\"\",$G14*I14,V14)))","v":0},{"$f":"IF('Grunddaten-Données de base'!$D$9=\"dt.\",IF($N14=\"mit Impex\",$O14*$Q$22,$O14),IF($N14=\"avec Impex\",$O14*$Q$22,$O14))","v":0},{"$f":"IF('Grunddaten-Données de base'!$D$9=\"dt.\",IF($N14=\"mit Impex\",$P14*$R$22,$P14),IF($N14=\"avec Impex\",$P14*$R$22,$P14))","v":0},0,0,null,null,{"$f":"IF('Schweine-Porcs'!$A14=\"\",0,INDEX(Tierkategorien_GRUD!$A$54:$O$59,MATCH('Schweine-Porcs'!$A14,Tierkategorien_GRUD!$A$54:$A$59),15))","v":0},0,null,null,{"$f":"IF('Schweine-Porcs'!$A14=\"\",0,INDEX(Tierkategorien_GRUD!$A$54:$M$59,MATCH('Schweine-Porcs'!$A14,Tierkategorien_GRUD!$A$54:$A$59),8))","v":0},{"$f":"IF(Y14=IF('Grunddaten-Données de base'!$D$9=\"dt.\",\"02 nur Mist\",\"02 uniquement fumier\"),0,G14*AA14)","v":0},null,{"$f":"IF('Schweine-Porcs'!$A14=\"\",0,INDEX(Tierkategorien_GRUD!$A$54:$M$59,MATCH('Schweine-Porcs'!$A14,Tierkategorien_GRUD!$A$54:$A$59),13))","v":0},{"$f":"IF(Y14=IF('Grunddaten-Données de base'!$D$9=\"dt.\",\"01 nur Gülle\",\"01 uniquement lisier\"),0,G14*AD14)","v":0}]
[null,null,{"$f":"IF('Grunddaten-Données de base'!$D$9=\"dt.\",IF($A15=\"\",\"\",INDEX(Tierkategorien_GRUD!$A$54:$R$59,MATCH('Schweine-Porcs'!$A15,Tierkategorien_GRUD!$A$54:$A$59),2)),IF($A15=\"\",\"\",INDEX(Tierkategorien_GRUD!$A$54:$R$59,MATCH('Schweine-Porcs'!$A15,Tierkategorien_GRUD!$A$54:$A$59),18)))","v":""},null,null,1,0,{"$f":"IF('Schweine-Porcs'!$A15=\"\",0,INDEX(Tierkategorien_GRUD!$A$54:$F$59,MATCH('Schweine-Porcs'!$A15,Tierkategorien_GRUD!$A$54:$A$59),3))","v":0},{"$f":"IF('Schweine-Porcs'!$A15=\"\",0,INDEX(Tierkategorien_GRUD!$A$54:$F$59,MATCH('Schweine-Porcs'!$A15,Tierkategorien_GRUD!$A$54:$A$59),4))","v":0},{"$f":"IF('Schweine-Porcs'!$A15=\"\",0,INDEX(Tierkategorien_GRUD!$A$54:$F$59,MATCH('Schweine-Porcs'!$A15,Tierkategorien_GRUD!$A$54:$A$59),5))","v":0},{"$f":"IF('Schweine-Porcs'!$A15=\"\",0,INDEX(Tierkategorien_GRUD!$A$54:$F$59,MATCH('Schweine-Porcs'!$A15,Tierkategorien_GRUD!$A$54:$A$59),6))","v":0},null,{"$f":"IF($A15=\"\",\"\",INDEX(Tierkategorien_GRUD!$A$54:$S$59,MATCH('Schweine-Porcs'!$A15,Tierkategorien_GRUD!$A$54:$A$59),19))","v":""},null,{"$f":"IF('Grunddaten-Données de base'!$D$9=\"dt.\",IF(N15=\"mit Impex\",$B15*H15,IF(U15=\"\",$G15*H15,U15)),IF(N15=\"avec Impex\",$B15*H15,IF(U15=\"\",$G15*H15,U15)))","v":0},{"$f":"IF('Grunddaten-Données de base'!$D$9=\"dt.\",IF(N15=\"mit Impex\",$B15*I15,IF(V15=\"\",$G15*I15,V15)),IF(N15=\"avec Impex\",$B15*I15,IF(V15=\"\",$G15*I15,V15)))","v":0},{"$f":"IF('Grunddaten-Données de base'!$D$9=\"dt.\",IF($N15=\"mit Impex\",$O15*$Q$22,$O15),IF($N15=\"avec Impex\",$O15*$Q$22,$O15))","v":0},{"$f":"IF('Grunddaten-Données de base'!$D$9=\"dt.\",IF($N15=\"mit Impex\",$P15*$R$22,$P15),IF($N15=\"avec Impex\",$P15*$R$22,$P15))","v":0},0,0,null,null,{"$f":"IF('Schweine-Porcs'!$A15=\"\",0,INDEX(Tierkategorien_GRUD!$A$54:$O$59,MATCH('Schweine-Porcs'!$A15,Tierkategorien_GRUD!$A$54:$A$59),15))","v":0},0,null,null,{"$f":"IF('Schweine-Porcs'!$A15=\"\",0,INDEX(Tierkategorien_GRUD!$A$54:$M$59,MATCH('Schweine-Porcs'!$A15,Tierkategorien_GRUD!$A$54:$A$59),8))","v":0},{"$f":"IF(Y15=IF('Grunddaten-Données de base'!$D$9=\"dt.\",\"02 nur Mist\",\"02 uniquement fumier\"),0,G15*AA15)","v":0},null,{"$f":"IF('Schweine-Porcs'!$A15=\"\",0,INDEX(Tierkategorien_GRUD!$A$54:$M$59,MATCH('Schweine-Porcs'!$A15,Tierkategorien_GRUD!$A$54:$A$59),13))","v":0},{"$f":"IF(Y15=IF('Grunddaten-Données de base'!$D$9=\"dt.\",\"01 nur Gülle\",\"01 uniquement lisier\"),0,G15*AD15)","v":0}]
[null,null,{"$f":"IF('Grunddaten-Données de base'!$D$9=\"dt.\",IF($A16=\"\",\"\",INDEX(Tierkategorien_GRUD!$A$54:$R$59,MATCH('Schweine-Porcs'!$A16,Tierkategorien_GRUD!$A$54:$A$59),2)),IF($A16=\"\",\"\",INDEX(Tierkategorien_GRUD!$A$54:$R$59,MATCH('Schweine-Porcs'!$A16,Tierkategorien_GRUD!$A$54:$A$59),18)))","v":""},null,null,1,0,{"$f":"IF('Schweine-Porcs'!$A16=\"\",0,INDEX(Tierkategorien_GRUD!$A$54:$F$59,MATCH('Schweine-Porcs'!$A16,Tierkategorien_GRUD!$A$54:$A$59),3))","v":0},{"$f":"IF('Schweine-Porcs'!$A16=\"\",0,INDEX(Tierkategorien_GRUD!$A$54:$F$59,MATCH('Schweine-Porcs'!$A16,Tierkategorien_GRUD!$A$54:$A$59),4))","v":0},{"$f":"IF('Schweine-Porcs'!$A16=\"\",0,INDEX(Tierkategorien_GRUD!$A$54:$F$59,MATCH('Schweine-Porcs'!$A16,Tierkategorien_GRUD!$A$54:$A$59),5))","v":0},{"$f":"IF('Schweine-Porcs'!$A16=\"\",0,INDEX(Tierkategorien_GRUD!$A$54:$F$59,MATCH('Schweine-Porcs'!$A16,Tierkategorien_GRUD!$A$54:$A$59),6))","v":0},null,{"$f":"IF($A16=\"\",\"\",INDEX(Tierkategorien_GRUD!$A$54:$S$59,MATCH('Schweine-Porcs'!$A16,Tierkategorien_GRUD!$A$54:$A$59),19))","v":""},null,{"$f":"IF('Grunddaten-Données de base'!$D$9=\"dt.\",IF(N16=\"mit Impex\",$B16*H16,IF(U16=\"\",$G16*H16,U16)),IF(N16=\"avec Impex\",$B16*H16,IF(U16=\"\",$G16*H16,U16)))","v":0},{"$f":"IF('Grunddaten-Données de base'!$D$9=\"dt.\",IF(N16=\"mit Impex\",$B16*I16,IF(V16=\"\",$G16*I16,V16)),IF(N16=\"avec Impex\",$B16*I16,IF(V16=\"\",$G16*I16,V16)))","v":0},{"$f":"IF('Grunddaten-Données de base'!$D$9=\"dt.\",IF($N16=\"mit Impex\",$O16*$Q$22,$O16),IF($N16=\"avec Impex\",$O16*$Q$22,$O16))","v":0},{"$f":"IF('Grunddaten-Données de base'!$D$9=\"dt.\",IF($N16=\"mit Impex\",$P16*$R$22,$P16),IF($N16=\"avec Impex\",$P16*$R$22,$P16))","v":0},0,0,null,null,{"$f":"IF('Schweine-Porcs'!$A16=\"\",0,INDEX(Tierkategorien_GRUD!$A$54:$O$59,MATCH('Schweine-Porcs'!$A16,Tierkategorien_GRUD!$A$54:$A$59),15))","v":0},0,null,null,{"$f":"IF('Schweine-Porcs'!$A16=\"\",0,INDEX(Tierkategorien_GRUD!$A$54:$M$59,MATCH('Schweine-Porcs'!$A16,Tierkategorien_GRUD!$A$54:$A$59),8))","v":0},{"$f":"IF(Y16=IF('Grunddaten-Données de base'!$D$9=\"dt.\",\"02 nur Mist\",\"02 uniquement fumier\"),0,G16*AA16)","v":0},null,{"$f":"IF('Schweine-Porcs'!$A16=\"\",0,INDEX(Tierkategorien_GRUD!$A$54:$M$59,MATCH('Schweine-Porcs'!$A16,Tierkategorien_GRUD!$A$54:$A$59),13))","v":0},{"$f":"IF(Y16=IF('Grunddaten-Données de base'!$D$9=\"dt.\",\"01 nur Gülle\",\"01 uniquement lisier\"),0,G16*AD16)","v":0}]
[null,null,{"$f":"IF('Grunddaten-Données de base'!$D$9=\"dt.\",IF($A17=\"\",\"\",INDEX(Tierkategorien_GRUD!$A$54:$R$59,MATCH('Schweine-Porcs'!$A17,Tierkategorien_GRUD!$A$54:$A$59),2)),IF($A17=\"\",\"\",INDEX(Tierkategorien_GRUD!$A$54:$R$59,MATCH('Schweine-Porcs'!$A17,Tierkategorien_GRUD!$A$54:$A$59),18)))","v":""},null,null,1,0,{"$f":"IF('Schweine-Porcs'!$A17=\"\",0,INDEX(Tierkategorien_GRUD!$A$54:$F$59,MATCH('Schweine-Porcs'!$A17,Tierkategorien_GRUD!$A$54:$A$59),3))","v":0},{"$f":"IF('Schweine-Porcs'!$A17=\"\",0,INDEX(Tierkategorien_GRUD!$A$54:$F$59,MATCH('Schweine-Porcs'!$A17,Tierkategorien_GRUD!$A$54:$A$59),4))","v":0},{"$f":"IF('Schweine-Porcs'!$A17=\"\",0,INDEX(Tierkategorien_GRUD!$A$54:$F$59,MATCH('Schweine-Porcs'!$A17,Tierkategorien_GRUD!$A$54:$A$59),5))","v":0},{"$f":"IF('Schweine-Porcs'!$A17=\"\",0,INDEX(Tierkategorien_GRUD!$A$54:$F$59,MATCH('Schweine-Porcs'!$A17,Tierkategorien_GRUD!$A$54:$A$59),6))","v":0},null,{"$f":"IF($A17=\"\",\"\",INDEX(Tierkategorien_GRUD!$A$54:$S$59,MATCH('Schweine-Porcs'!$A17,Tierkategorien_GRUD!$A$54:$A$59),19))","v":""},null,{"$f":"IF('Grunddaten-Données de base'!$D$9=\"dt.\",IF(N17=\"mit Impex\",$B17*H17,IF(U17=\"\",$G17*H17,U17)),IF(N17=\"avec Impex\",$B17*H17,IF(U17=\"\",$G17*H17,U17)))","v":0},{"$f":"IF('Grunddaten-Données de base'!$D$9=\"dt.\",IF(N17=\"mit Impex\",$B17*I17,IF(V17=\"\",$G17*I17,V17)),IF(N17=\"avec Impex\",$B17*I17,IF(V17=\"\",$G17*I17,V17)))","v":0},{"$f":"IF('Grunddaten-Données de base'!$D$9=\"dt.\",IF($N17=\"mit Impex\",$O17*$Q$22,$O17),IF($N17=\"avec Impex\",$O17*$Q$22,$O17))","v":0},{"$f":"IF('Grunddaten-Données de base'!$D$9=\"dt.\",IF($N17=\"mit Impex\",$P17*$R$22,$P17),IF($N17=\"avec Impex\",$P17*$R$22,$P17))","v":0},0,0,null,null,{"$f":"IF('Schweine-Porcs'!$A17=\"\",0,INDEX(Tierkategorien_GRUD!$A$54:$O$59,MATCH('Schweine-Porcs'!$A17,Tierkategorien_GRUD!$A$54:$A$59),15))","v":0},0,null,null,{"$f":"IF('Schweine-Porcs'!$A17=\"\",0,INDEX(Tierkategorien_GRUD!$A$54:$M$59,MATCH('Schweine-Porcs'!$A17,Tierkategorien_GRUD!$A$54:$A$59),8))","v":0},{"$f":"IF(Y17=IF('Grunddaten-Données de base'!$D$9=\"dt.\",\"02 nur Mist\",\"02 uniquement fumier\"),0,G17*AA17)","v":0},null,{"$f":"IF('Schweine-Porcs'!$A17=\"\",0,INDEX(Tierkategorien_GRUD!$A$54:$M$59,MATCH('Schweine-Porcs'!$A17,Tierkategorien_GRUD!$A$54:$A$59),13))","v":0},{"$f":"IF(Y17=IF('Grunddaten-Données de base'!$D$9=\"dt.\",\"01 nur Gülle\",\"01 uniquement lisier\"),0,G17*AD17)","v":0}]
[null,null,{"$f":"IF('Grunddaten-Données de base'!$D$9=\"dt.\",IF($A18=\"\",\"\",INDEX(Tierkategorien_GRUD!$A$54:$R$59,MATCH('Schweine-Porcs'!$A18,Tierkategorien_GRUD!$A$54:$A$59),2)),IF($A18=\"\",\"\",INDEX(Tierkategorien_GRUD!$A$54:$R$59,MATCH('Schweine-Porcs'!$A18,Tierkategorien_GRUD!$A$54:$A$59),18)))","v":""},null,null,1,0,{"$f":"IF('Schweine-Porcs'!$A18=\"\",0,INDEX(Tierkategorien_GRUD!$A$54:$F$59,MATCH('Schweine-Porcs'!$A18,Tierkategorien_GRUD!$A$54:$A$59),3))","v":0},{"$f":"IF('Schweine-Porcs'!$A18=\"\",0,INDEX(Tierkategorien_GRUD!$A$54:$F$59,MATCH('Schweine-Porcs'!$A18,Tierkategorien_GRUD!$A$54:$A$59),4))","v":0},{"$f":"IF('Schweine-Porcs'!$A18=\"\",0,INDEX(Tierkategorien_GRUD!$A$54:$F$59,MATCH('Schweine-Porcs'!$A18,Tierkategorien_GRUD!$A$54:$A$59),5))","v":0},{"$f":"IF('Schweine-Porcs'!$A18=\"\",0,INDEX(Tierkategorien_GRUD!$A$54:$F$59,MATCH('Schweine-Porcs'!$A18,Tierkategorien_GRUD!$A$54:$A$59),6))","v":0},null,{"$f":"IF($A18=\"\",\"\",INDEX(Tierkategorien_GRUD!$A$54:$S$59,MATCH('Schweine-Porcs'!$A18,Tierkategorien_GRUD!$A$54:$A$59),19))","v":""},null,{"$f":"IF('Grunddaten-Données de base'!$D$9=\"dt.\",IF(N18=\"mit Impex\",$B18*H18,IF(U18=\"\",$G18*H18,U18)),IF(N18=\"avec Impex\",$B18*H18,IF(U18=\"\",$G18*H18,U18)))","v":0},{"$f":"IF('Grunddaten-Données de base'!$D$9=\"dt.\",IF(N18=\"mit Impex\",$B18*I18,IF(V18=\"\",$G18*I18,V18)),IF(N18=\"avec Impex\",$B18*I18,IF(V18=\"\",$G18*I18,V18)))","v":0},{"$f":"IF('Grunddaten-Données de base'!$D$9=\"dt.\",IF($N18=\"mit Impex\",$O18*$Q$22,$O18),IF($N18=\"avec Impex\",$O18*$Q$22,$O18))","v":0},{"$f":"IF('Grunddaten-Données de base'!$D$9=\"dt.\",IF($N18=\"mit Impex\",$P18*$R$22,$P18),IF($N18=\"avec Impex\",$P18*$R$22,$P18))","v":0},0,0,null,null,{"$f":"IF('Schweine-Porcs'!$A18=\"\",0,INDEX(Tierkategorien_GRUD!$A$54:$O$59,MATCH('Schweine-Porcs'!$A18,Tierkategorien_GRUD!$A$54:$A$59),15))","v":0},0,null,null,{"$f":"IF('Schweine-Porcs'!$A18=\"\",0,INDEX(Tierkategorien_GRUD!$A$54:$M$59,MATCH('Schweine-Porcs'!$A18,Tierkategorien_GRUD!$A$54:$A$59),8))","v":0},{"$f":"IF(Y18=IF('Grunddaten-Données de base'!$D$9=\"dt.\",\"02 nur Mist\",\"02 uniquement fumier\"),0,G18*AA18)","v":0},null,{"$f":"IF('Schweine-Porcs'!$A18=\"\",0,INDEX(Tierkategorien_GRUD!$A$54:$M$59,MATCH('Schweine-Porcs'!$A18,Tierkategorien_GRUD!$A$54:$A$59),13))","v":0},{"$f":"IF(Y18=IF('Grunddaten-Données de base'!$D$9=\"dt.\",\"01 nur Gülle\",\"01 uniquement lisier\"),0,G18*AD18)","v":0}]
[]
[null,null,null,null,null,null,null,null,null,null,null,null,null,{"$f":"IF('Grunddaten-Données de base'!$D$9=\"dt.\",Texte!A67,Texte!B67)","v":"Résultat Impex"},null,null,null,null,null,null,{"$f":"SUM(U4:U18)","v":0},{"$f":"SUM(V4:V18)","v":0}]
[null,null,null,null,null,null,null,null,null,null,null,null,null,"mit Impex",null,null,{"$f":"SUMIFS(O4:O18,$N4:$N18,IF('Grunddaten-Données de base'!$D9=\"dt.\",\"mit Impex\",\"avec Impex\"))","v":0},{"$f":"SUMIFS(P4:P18,$N4:$N18,IF('Grunddaten-Données de base'!$D$9=\"dt.\",\"mit Impex\",\"avec Impex\"))","v":0}]
[null,null,null,null,null,null,null,null,null,null,null,null,null,"%-Satz",null,null,{"$f":"Q20/IF(Q21=0,1,Q21)","v":0},{"$f":"R20/IF(R21=0,1,R21)","v":0}]
[null,null,null,null,null,null,null,null,null,null,null,null,null,"ohne Impex",null,null,{"$f":"SUMIFS(O4:O18,$N4:$N18,IF('Grunddaten-Données de base'!$D$9=\"dt.\",\"ohne Impex\",\"sans Impex\"))","v":0},{"$f":"SUMIFS(P4:P18,$N4:$N18,IF('Grunddaten-Données de base'!$D$9=\"dt.\",\"ohne Impex\",\"sans Impex\"))","v":0}]
[]
[{"$f":"IF('Grunddaten-Données de base'!$D$9=\"dt.\",Texte!A59,Texte!B59)","v":"Total d'éléments nutr. et engrais de ferme"},null,null,null,null,null,null,null,null,null,null,null,null,null,null,null,{"$f":"SUM(Q4:Q18)","v":0},{"$f":"SUM(R4:R18)","v":0},0,0,null,null,"GVE",{"$f":"SUM(X4:X19)","v":0},null,null,null,{"$f":"SUM(AB4:AB18)","v":0},null,null,{"$f":"SUM(AE4:AE18)","v":0}]
[null,null,null,null,null,null,null,null,null,null,null,null,null,null,null,null,null,null,null,null,null,null,"MSP",{"$f":"X25/0.17","v":0}]
[]
[{"$f":"IF('Grunddaten-Données de base'!$D$9=\"dt.\",Texte!A9,Texte!B9)","v":"Fosse 1"},null,null,null,null,null,null,null,null,null,null,null,null,null,null,null,{"$f":"SUMIFS(Q$4:Q$18,$AC$4:$AC$18,IF('Grunddaten-Données de base'!$D$9=\"dt.\",\"01 Gülle Grube 1\",\"01 Fosse 1\"),$AB$4:$AB$18,\">0\")","v":0},{"$f":"SUMIFS(R$4:R$18,$AC$4:$AC$18,IF('Grunddaten-Données de base'!$D$9=\"dt.\",\"01 Gülle Grube 1\",\"01 Fosse 1\"),$AB$4:$AB$18,\">0\")","v":0},{"$f":"SUMIFS(S$4:S$18,$AC$4:$AC$18,IF('Grunddaten-Données de base'!$D$9=\"dt.\",\"01 Gülle Grube 1\",\"01 Fosse 1\"),$AB$4:$AB$18,\">0\")","v":0},{"$f":"SUMIFS(T$4:T$18,$AC$4:$AC$18,IF('Grunddaten-Données de base'!$D$9=\"dt.\",\"01 Gülle Grube 1\",\"01 Fosse 1\"),$AB$4:$AB$18,\">0\")","v":0},null,null,null,null,null,null,null,{"$f":"SUMIFS(AB$4:AB$18,AC$4:AC$18,IF('Grunddaten-Données de base'!$D$9=\"dt.\",\"01 Gülle Grube 1\",\"01 Fosse 1\"))","v":0}]
[{"$f":"IF('Grunddaten-Données de base'!$D$9=\"dt.\",Texte!A10,Texte!B10)","v":"Fosse 2"},null,null,null,null,null,null,null,null,null,null,null,null,null,null,null,{"$f":"SUMIFS(Q$4:Q$18,$AC$4:$AC$18,IF('Grunddaten-Données de base'!$D$9=\"dt.\",\"02 Gülle Grube 2\",\"02 Fosse 2\"),$AB$4:$AB$18,\">0\")","v":0},{"$f":"SUMIFS(R$4:R$18,$AC$4:$AC$18,IF('Grunddaten-Données de base'!$D$9=\"dt.\",\"02 Gülle Grube 2\",\"02 Fosse 2\"),$AB$4:$AB$18,\">0\")","v":0},{"$f":"SUMIFS(S$4:S$18,$AC$4:$AC$18,IF('Grunddaten-Données de base'!$D$9=\"dt.\",\"02 Gülle Grube 2\",\"02 Fosse 2\"),$AB$4:$AB$18,\">0\")","v":0},{"$f":"SUMIFS(T$4:T$18,$AC$4:$AC$18,IF('Grunddaten-Données de base'!$D$9=\"dt.\",\"02 Gülle Grube 2\",\"02 Fosse 2\"),$AB$4:$AB$18,\">0\")","v":0},null,null,null,null,null,null,null,{"$f":"SUMIFS(AB$4:AB$18,AC$4:AC$18,IF('Grunddaten-Données de base'!$D$9=\"dt.\",\"02 Gülle Grube 2\",\"02 Fosse 2\"))","v":0}]
[{"$f":"IF('Grunddaten-Données de base'!$D$9=\"dt.\",Texte!A11,Texte!B11)","v":"Fosse 3"},null,null,null,null,null,null,null,null,null,null,null,null,null,null,null,{"$f":"SUMIFS(Q$4:Q$18,$AC$4:$AC$18,IF('Grunddaten-Données de base'!$D$9=\"dt.\",\"03 Gülle Grube 3\",\"03 Fosse 3\"),$AB$4:$AB$18,\">0\")","v":0},{"$f":"SUMIFS(R$4:R$18,$AC$4:$AC$18,IF('Grunddaten-Données de base'!$D$9=\"dt.\",\"03 Gülle Grube 3\",\"03 Fosse 3\"),$AB$4:$AB$18,\">0\")","v":0},{"$f":"SUMIFS(S$4:S$18,$AC$4:$AC$18,IF('Grunddaten-Données de base'!$D$9=\"dt.\",\"03 Gülle Grube 3\",\"03 Fosse 3\"),$AB$4:$AB$18,\">0\")","v":0},{"$f":"SUMIFS(T$4:T$18,$AC$4:$AC$18,IF('Grunddaten-Données de base'!$D$9=\"dt.\",\"03 Gülle Grube 3\",\"03 Fosse 3\"),$AB$4:$AB$18,\">0\")","v":0},null,null,null,null,null,null,null,{"$f":"SUMIFS(AB$4:AB$18,AC$4:AC$18,IF('Grunddaten-Données de base'!$D$9=\"dt.\",\"03 Gülle Grube 3\",\"03 Fosse 3\"))","v":0}]
[]
[]
[{"$f":"IF('Grunddaten-Données de base'!$D$9=\"dt.\",Texte!A12,Texte!B12)","v":"Fumière 1"},null,null,null,null,null,null,null,null,null,null,null,null,null,null,null,{"$f":"SUMIFS(Q$4:Q$18,$AF$4:$AF$18,IF('Grunddaten-Données de base'!$D$9=\"dt.\",\"04 Mistplatz 1\",\"04 Fumière 1\"),$AE$4:$AE$18,\">0\")","v":0},{"$f":"SUMIFS(R$4:R$18,$AF$4:$AF$18,IF('Grunddaten-Données de base'!$D$9=\"dt.\",\"04 Mistplatz 1\",\"04 Fumière 1\"),$AE$4:$AE$18,\">0\")","v":0},{"$f":"SUMIFS(S$4:S$18,$AF$4:$AF$18,IF('Grunddaten-Données de base'!$D$9=\"dt.\",\"04 Mistplatz 1\",\"04 Fumière 1\"),$AE$4:$AE$18,\">0\")","v":0},{"$f":"SUMIFS(T$4:T$18,$AF$4:$AF$18,IF('Grunddaten-Données de base'!$D$9=\"dt.\",\"04 Mistplatz 1\",\"04 Fumière 1\"),$AE$4:$AE$18,\">0\")","v":0},null,null,null,null,null,null,null,null,null,null,{"$f":"SUMIFS(AE$4:AE$18,AF$4:AF$18,IF('Grunddaten-Données de base'!$D$9=\"dt.\",\"04 Mistplatz 1\",\"04 Fumière 1\"))","v":0}]
[{"$f":"IF('Grunddaten-Données de base'!$D$9=\"dt.\",Texte!A13,Texte!B13)","v":"Fumière 2"},null,null,null,null,null,null,null,null,null,null,null,null,null,null,null,{"$f":"SUMIFS(Q$4:Q$18,$AF$4:$AF$18,IF('Grunddaten-Données de base'!$D$9=\"dt.\",\"05 Mistplatz 2\",\"05 Fumière 2\"),$AE$4:$AE$18,\">0\")","v":0},{"$f":"SUMIFS(R$4:R$18,$AF$4:$AF$18,IF('Grunddaten-Données de base'!$D$9=\"dt.\",\"05 Mistplatz 2\",\"05 Fumière 2\"),$AE$4:$AE$18,\">0\")","v":0},{"$f":"SUMIFS(S$4:S$18,$AF$4:$AF$18,IF('Grunddaten-Données de base'!$D$9=\"dt.\",\"05 Mistplatz 2\",\"05 Fumière 2\"),$AE$4:$AE$18,\">0\")","v":0},{"$f":"SUMIFS(T$4:T$18,$AF$4:$AF$18,IF('Grunddaten-Données de base'!$D$9=\"dt.\",\"05 Mistplatz 2\",\"05 Fumière 2\"),$AE$4:$AE$18,\">0\")","v":0},null,null,null,null,null,null,null,null,null,null,{"$f":"SUMIFS(AE$4:AE$18,AF$4:AF$18,IF('Grunddaten-Données de base'!$D$9=\"dt.\",\"05 Mistplatz 2\",\"05 Fumière 2\"))","v":0}]
[{"$f":"IF('Grunddaten-Données de base'!$D$9=\"dt.\",Texte!A14,Texte!B14)","v":"Fumière 3"},null,null,null,null,null,null,null,null,null,null,null,null,null,null,null,{"$f":"SUMIFS(Q$4:Q$18,$AF$4:$AF$18,IF('Grunddaten-Données de base'!$D$9=\"dt.\",\"06 Mistplatz 3\",\"06 Fumière 3\"),$AE$4:$AE$18,\">0\")","v":0},{"$f":"SUMIFS(R$4:R$18,$AF$4:$AF$18,IF('Grunddaten-Données de base'!$D$9=\"dt.\",\"06 Mistplatz 3\",\"06 Fumière 3\"),$AE$4:$AE$18,\">0\")","v":0},{"$f":"SUMIFS(S$4:S$18,$AF$4:$AF$18,IF('Grunddaten-Données de base'!$D$9=\"dt.\",\"06 Mistplatz 3\",\"06 Fumière 3\"),$AE$4:$AE$18,\">0\")","v":0},{"$f":"SUMIFS(T$4:T$18,$AF$4:$AF$18,IF('Grunddaten-Données de base'!$D$9=\"dt.\",\"06 Mistplatz 3\",\"06 Fumière 3\"),$AE$4:$AE$18,\">0\")","v":0},null,null,null,null,null,null,null,null,null,null,{"$f":"SUMIFS(AE$4:AE$18,AF$4:AF$18,IF('Grunddaten-Données de base'!$D$9=\"dt.\",\"06 Mistplatz 3\",\"06 Fumière 3\"))","v":0}]
[]
[null,null,null,null,null,null,null,null,null,null,null,null,null,null,null,null,{"$f":"SUM(Q28:Q35)","v":0},{"$f":"SUM(R28:R35)","v":0},{"$f":"SUM(S28:S35)","v":0},0,null,null,null,null,null,null,null,{"$f":"SUM(AB28:AB30)","v":0},{"$f":"IF($AB$25<>$AB$37,IF('Grunddaten-Données de base'!$D$9=\"dt.\",\"Achtung! Fehler in der Zuteilung!\",\"Attention! Faute dans la distribution !\"),\"\")","v":""},{"$f":"SUM(AD28:AD30)","v":0},{"$f":"SUM(AE33:AE35)","v":0},{"$f":"IF($AE$25<>$AE$37,IF('Grunddaten-Données de base'!$D$9=\"dt.\",\"Achtung! Fehler in der Zuteilung!\",\"Attention! Faute dans la distribution !\"),\"\")","v":""}]
[null,null,null,null,null,null,null,null,null,null,null,null,null,null,null,null,null,null,null,null,null,null,null,null,null,null,null,null,{"$f":"IF($AB$25<>$AB$37,IF('Grunddaten-Données de base'!$D$9=\"dt.\",\"Achtung! Fehler in der Zuteilung!\",\"Attention! Faute dans la distribution !\"),\"\")","v":""},null,null,{"$f":"IF($AE$25<>$AE$37,IF('Grunddaten-Données de base'!$D$9=\"dt.\",\"Achtung! Fehler in der Zuteilung!\",\"Attention! Faute dans la distribution !\"),\"\")","v":""}]

{"sheet":"Geflügel-Volaille","index":5,"n_rows":29,"n_cols":30,"rows_kept":29,"cut":false,"hidden":false,"merged":[[0,3,0,4],[0,7,0,10],[0,14,0,17],[0,18,0,19]]}
[{"$f":"IF('Grunddaten-Données de base'!$D$9=\"dt.\",Texte!A35,Texte!B35)","v":"Catégorie"},null,null,{"$f":"IF('Grunddaten-Données de base'!$D$9=\"dt.\",Texte!A40,Texte!B40)","v":"Sorties / pâturage"},null,null,null,{"$f":"IF('Grunddaten-Données de base'!$D$9=\"dt.\",Texte!A44,Texte!B44)","v":"Prod. d'éléments nutr. / unité"},null,null,null,null,null,{"$f":"IF('Grunddaten-Données de base'!$D$9=\"dt.\",Texte!A71,Texte!B71)","v":"Type de correction: correction linéaire ou Impex"},{"$f":"IF('Grunddaten-Données de base'!$D$9=\"dt.\",Texte!A46,Texte!B46)","v":"Total prod. d'éléments nutr."},null,null,null,{"$f":"IF('Grunddaten-Données de base'!$D$9=\"dt.\",Texte!A70,Texte!B70)","v":"Résultat de la correction linéaire resp. de l'Impex"},null,null,"GVE-Faktor","GVE",null,null,null,"Gülle","Mist",{"$f":"IF('Grunddaten-Données de base'!$D$9=\"dt.\",Texte!A52,Texte!B52)","v":"Fumier (t)"},{"$f":"IF('Grunddaten-Données de base'!$D$9=\"dt.\",Texte!A58,Texte!B58)","v":"Fumière"}]
[{"$f":"IF('Grunddaten-Données de base'!$D$9=\"dt.\",Texte!A69,Texte!B69)","v":"Volaille"},{"$f":"IF('Grunddaten-Données de base'!$D$9=\"dt.\",Texte!A38,Texte!B38)","v":"Nombre"},{"$f":"IF('Grunddaten-Données de base'!$D$9=\"dt.\",Texte!A39,Texte!B39)","v":"Unité"},{"$f":"IF('Grunddaten-Données de base'!$D$9=\"dt.\",Texte!A41,Texte!B41)","v":"Jours / an"},{"$f":"IF('Grunddaten-Données de base'!$D$9=\"dt.\",Texte!A42,Texte!B42)","v":"h / jour"},null,{"$f":"IF('Grunddaten-Données de base'!$D$9=\"dt.\",Texte!A43,Texte!B43)","v":"Nbre corrigé"},{"$f":"IF('Grunddaten-Données de base'!$D$9=\"dt.\",Texte!A45,Texte!B45)","v":"Nstock"},"P2O5","K2O","Mg",null,"Impex zugelassen? (j(n)",null,{"$f":"IF('Grunddaten-Données de base'!$D$9=\"dt.\",Texte!A45,Texte!B45)","v":"Nstock"},"P2O5","K2O","Mg",{"$f":"IF('Grunddaten-Données de base'!$D$9=\"dt.\",Texte!A45,Texte!B45)","v":"Nstock"},"P2O5"]
[]
[null,null,{"$f":"IF('Grunddaten-Données de base'!$D$9=\"dt.\",IF('Geflügel-Volaille'!$A4=\"\",\"\",INDEX(Tierkategorien_GRUD!$A$64:$R$71,MATCH('Geflügel-Volaille'!$A4,Tierkategorien_GRUD!$A$64:$A$71),2)),IF('Geflügel-Volaille'!$A4=\"\",\"\",INDEX(Tierkategorien_GRUD!$A$64:$R$71,MATCH('Geflügel-Volaille'!$A4,Tierkategorien_GRUD!$A$64:$A$71),18)))","v":""},null,null,{"$f":"(365-($D4*($E4/24)))/365","v":1},{"$f":"$B4*$F4","v":0},{"$f":"IF('Geflügel-Volaille'!$A4=\"\",0,INDEX(Tierkategorien_GRUD!$A$64:$F$71,MATCH('Geflügel-Volaille'!$A4,Tierkategorien_GRUD!$A$64:$A$71),3))","v":0},{"$f":"IF('Geflügel-Volaille'!$A4=\"\",0,INDEX(Tierkategorien_GRUD!$A$64:$F$71,MATCH('Geflügel-Volaille'!$A4,Tierkategorien_GRUD!$A$64:$A$71),4))","v":0},{"$f":"IF('Geflügel-Volaille'!$A4=\"\",0,INDEX(Tierkategorien_GRUD!$A$64:$F$71,MATCH('Geflügel-Volaille'!$A4,Tierkategorien_GRUD!$A$64:$A$71),5))","v":0},{"$f":"IF('Geflügel-Volaille'!$A4=\"\",0,INDEX(Tierkategorien_GRUD!$A$64:$F$71,MATCH('Geflügel-Volaille'!$A4,Tierkategorien_GRUD!$A$64:$A$71),6))","v":0},null,{"$f":"IF($A4=\"\",\"\",INDEX(Tierkategorien_GRUD!$A$64:$S$71,MATCH('Geflügel-Volaille'!$A4,Tierkategorien_GRUD!$A$64:$A$71),19))","v":""},null,{"$f":"IF('Grunddaten-Données de base'!$D$9=\"dt.\",IF($S4<>\"\",IF($N4=\"Lineare Korrektur\",$S4,IF($N4=\"Impex\",$S4*$F4,$G4*$H4)),$G4*$H4),IF($S4<>\"\",IF($N4=\"Correction linéaire\",$S4,IF($N4=\"Impex\",$S4*$F4,$G4*$H4)),$G4*$H4))","v":0},{"$f":"IF('Grunddaten-Données de base'!$D$9=\"dt.\",IF($T4<>\"\",IF($N4=\"Lineare Korrektur\",$T4,IF($N4=\"Impex\",$T4*$F4,$G4*$H4)),$G4*$I4),IF($T4<>\"\",IF($N4=\"Correction linéaire\",$T4,IF($N4=\"Impex\",$T4*$F4,$G4*$I4)),$G4*$I4))","v":0},{"$f":"$G4*J4","v":0},{"$f":"$G4*K4","v":0},null,null,null,{"$f":"IF('Geflügel-Volaille'!$A4=\"\",0,INDEX(Tierkategorien_GRUD!$A$64:$O$69,MATCH('Geflügel-Volaille'!$A4,Tierkategorien_GRUD!$A$64:$A$69),15))","v":0},{"$f":"IF(G4*V4=\"\",0,G4*V4)","v":0},null,{"$f":"IF('Geflügel-Volaille'!$A4=\"\",\"\",INDEX(Tierkategorien_GRUD!$A$64:$P$69,MATCH('Geflügel-Volaille'!$A4,Tierkategorien_GRUD!$A$64:$A$69),16))","v":""},null,{"$f":"IF('Geflügel-Volaille'!$A4=\"\",0,INDEX(Tierkategorien_GRUD!$A$64:$M$71,MATCH('Geflügel-Volaille'!$A4,Tierkategorien_GRUD!$A$64:$A$71),8))","v":0},{"$f":"IF('Geflügel-Volaille'!$A4=\"\",0,INDEX(Tierkategorien_GRUD!$A$64:$M$71,MATCH('Geflügel-Volaille'!$A4,Tierkategorien_GRUD!$A$64:$A$71),10))","v":0},{"$f":"AB4*G4","v":0}]
[null,null,{"$f":"IF('Grunddaten-Données de base'!$D$9=\"dt.\",IF('Geflügel-Volaille'!$A5=\"\",\"\",INDEX(Tierkategorien_GRUD!$A$64:$R$71,MATCH('Geflügel-Volaille'!$A5,Tierkategorien_GRUD!$A$64:$A$71),2)),IF('Geflügel-Volaille'!$A5=\"\",\"\",INDEX(Tierkategorien_GRUD!$A$64:$R$71,MATCH('Geflügel-Volaille'!$A5,Tierkategorien_GRUD!$A$64:$A$71),18)))","v":""},null,null,{"$f":"(365-($D5*($E5/24)))/365","v":1},{"$f":"$B5*$F5","v":0},{"$f":"IF('Geflügel-Volaille'!$A5=\"\",0,INDEX(Tierkategorien_GRUD!$A$64:$F$71,MATCH('Geflügel-Volaille'!$A5,Tierkategorien_GRUD!$A$64:$A$71),3))","v":0},{"$f":"IF('Geflügel-Volaille'!$A5=\"\",0,INDEX(Tierkategorien_GRUD!$A$64:$F$71,MATCH('Geflügel-Volaille'!$A5,Tierkategorien_GRUD!$A$64:$A$71),4))","v":0},{"$f":"IF('Geflügel-Volaille'!$A5=\"\",0,INDEX(Tierkategorien_GRUD!$A$64:$F$71,MATCH('Geflügel-Volaille'!$A5,Tierkategorien_GRUD!$A$64:$A$71),5))","v":0},{"$f":"IF('Geflügel-Volaille'!$A5=\"\",0,INDEX(Tierkategorien_GRUD!$A$64:$F$71,MATCH('Geflügel-Volaille'!$A5,Tierkategorien_GRUD!$A$64:$A$71),6))","v":0},null,{"$f":"IF($A5=\"\",\"\",INDEX(Tierkategorien_GRUD!$A$64:$S$71,MATCH('Geflügel-Volaille'!$A5,Tierkategorien_GRUD!$A$64:$A$71),19))","v":""},null,{"$f":"IF('Grunddaten-Données de base'!$D$9=\"dt.\",IF($S5<>\"\",IF($N5=\"Lineare Korrektur\",$S5,IF($N5=\"Impex\",$S5*$F5,$G5*$H5)),$G5*$H5),IF($S5<>\"\",IF($N5=\"Correction linéaire\",$S5,IF($N5=\"Impex\",$S5*$F5,$G5*$H5)),$G5*$H5))","v":0},{"$f":"IF('Grunddaten-Données de base'!$D$9=\"dt.\",IF($T5<>\"\",IF($N5=\"Lineare Korrektur\",$T5,IF($N5=\"Impex\",$T5*$F5,$G5*$H5)),$G5*$I5),IF($T5<>\"\",IF($N5=\"Correction linéaire\",$T5,IF($N5=\"Impex\",$T5*$F5,$G5*$I5)),$G5*$I5))","v":0},{"$f":"$G5*J5","v":0},{"$f":"$G5*K5","v":0},null,null,null,{"$f":"IF('Geflügel-Volaille'!$A5=\"\",0,INDEX(Tierkategorien_GRUD!$A$64:$O$69,MATCH('Geflügel-Volaille'!$A5,Tierkategorien_GRUD!$A$64:$A$69),15))","v":0},{"$f":"IF(G5*V5=\"\",0,G5*V5)","v":0},null,{"$f":"IF('Geflügel-Volaille'!$A5=\"\",\"\",INDEX(Tierkategorien_GRUD!$A$64:$P$69,MATCH('Geflügel-Volaille'!$A5,Tierkategorien_GRUD!$A$64:$A$69),16))","v":""},null,{"$f":"IF('Geflügel-Volaille'!$A5=\"\",0,INDEX(Tierkategorien_GRUD!$A$64:$M$71,MATCH('Geflügel-Volaille'!$A5,Tierkategorien_GRUD!$A$64:$A$71),8))","v":0},{"$f":"IF('Geflügel-Volaille'!$A5=\"\",0,INDEX(Tierkategorien_GRUD!$A$64:$M$71,MATCH('Geflügel-Volaille'!$A5,Tierkategorien_GRUD!$A$64:$A$71),10))","v":0},0]
[null,null,{"$f":"IF('Grunddaten-Données de base'!$D$9=\"dt.\",IF('Geflügel-Volaille'!$A6=\"\",\"\",INDEX(Tierkategorien_GRUD!$A$64:$R$71,MATCH('Geflügel-Volaille'!$A6,Tierkategorien_GRUD!$A$64:$A$71),2)),IF('Geflügel-Volaille'!$A6=\"\",\"\",INDEX(Tierkategorien_GRUD!$A$64:$R$71,MATCH('Geflügel-Volaille'!$A6,Tierkategorien_GRUD!$A$64:$A$71),18)))","v":""},null,null,1,0,{"$f":"IF('Geflügel-Volaille'!$A6=\"\",0,INDEX(Tierkategorien_GRUD!$A$64:$F$71,MATCH('Geflügel-Volaille'!$A6,Tierkategorien_GRUD!$A$64:$A$71),3))","v":0},{"$f":"IF('Geflügel-Volaille'!$A6=\"\",0,INDEX(Tierkategorien_GRUD!$A$64:$F$71,MATCH('Geflügel-Volaille'!$A6,Tierkategorien_GRUD!$A$64:$A$71),4))","v":0},{"$f":"IF('Geflügel-Volaille'!$A6=\"\",0,INDEX(Tierkategorien_GRUD!$A$64:$F$71,MATCH('Geflügel-Volaille'!$A6,Tierkategorien_GRUD!$A$64:$A$71),5))","v":0},{"$f":"IF('Geflügel-Volaille'!$A6=\"\",0,INDEX(Tierkategorien_GRUD!$A$64:$F$71,MATCH('Geflügel-Volaille'!$A6,Tierkategorien_GRUD!$A$64:$A$71),6))","v":0},null,{"$f":"IF($A6=\"\",\"\",INDEX(Tierkategorien_GRUD!$A$64:$S$71,MATCH('Geflügel-Volaille'!$A6,Tierkategorien_GRUD!$A$64:$A$71),19))","v":""},null,{"$f":"IF('Grunddaten-Données de base'!$D$9=\"dt.\",IF($S6<>\"\",IF($N6=\"Lineare Korrektur\",$S6,IF($N6=\"Impex\",$S6*$F6,$G6*$H6)),$G6*$H6),IF($S6<>\"\",IF($N6=\"Correction linéaire\",$S6,IF($N6=\"Impex\",$S6*$F6,$G6*$H6)),$G6*$H6))","v":0},{"$f":"IF('Grunddaten-Données de base'!$D$9=\"dt.\",IF($T6<>\"\",IF($N6=\"Lineare Korrektur\",$T6,IF($N6=\"Impex\",$T6*$F6,$G6*$H6)),$G6*$I6),IF($T6<>\"\",IF($N6=\"Correction linéaire\",$T6,IF($N6=\"Impex\",$T6*$F6,$G6*$I6)),$G6*$I6))","v":0},0,0,null,null,null,{"$f":"IF('Geflügel-Volaille'!$A6=\"\",0,INDEX(Tierkategorien_GRUD!$A$64:$O$69,MATCH('Geflügel-Volaille'!$A6,Tierkategorien_GRUD!$A$64:$A$69),15))","v":0},0,null,{"$f":"IF('Geflügel-Volaille'!$A6=\"\",\"\",INDEX(Tierkategorien_GRUD!$A$64:$P$69,MATCH('Geflügel-Volaille'!$A6,Tierkategorien_GRUD!$A$64:$A$69),16))","v":""},null,{"$f":"IF('Geflügel-Volaille'!$A6=\"\",0,INDEX(Tierkategorien_GRUD!$A$64:$M$71,MATCH('Geflügel-Volaille'!$A6,Tierkategorien_GRUD!$A$64:$A$71),8))","v":0},{"$f":"IF('Geflügel-Volaille'!$A6=\"\",0,INDEX(Tierkategorien_GRUD!$A$64:$M$71,MATCH('Geflügel-Volaille'!$A6,Tierkategorien_GRUD!$A$64:$A$71),10))","v":0},0]
[null,null,{"$f":"IF('Grunddaten-Données de base'!$D$9=\"dt.\",IF('Geflügel-Volaille'!$A7=\"\",\"\",INDEX(Tierkategorien_GRUD!$A$64:$R$71,MATCH('Geflügel-Volaille'!$A7,Tierkategorien_GRUD!$A$64:$A$71),2)),IF('Geflügel-Volaille'!$A7=\"\",\"\",INDEX(Tierkategorien_GRUD!$A$64:$R$71,MATCH('Geflügel-Volaille'!$A7,Tierkategorien_GRUD!$A$64:$A$71),18)))","v":""},null,null,1,0,{"$f":"IF('Geflügel-Volaille'!$A7=\"\",0,INDEX(Tierkategorien_GRUD!$A$64:$F$71,MATCH('Geflügel-Volaille'!$A7,Tierkategorien_GRUD!$A$64:$A$71),3))","v":0},{"$f":"IF('Geflügel-Volaille'!$A7=\"\",0,INDEX(Tierkategorien_GRUD!$A$64:$F$71,MATCH('Geflügel-Volaille'!$A7,Tierkategorien_GRUD!$A$64:$A$71),4))","v":0},{"$f":"IF('Geflügel-Volaille'!$A7=\"\",0,INDEX(Tierkategorien_GRUD!$A$64:$F$71,MATCH('Geflügel-Volaille'!$A7,Tierkategorien_GRUD!$A$64:$A$71),5))","v":0},{"$f":"IF('Geflügel-Volaille'!$A7=\"\",0,INDEX(Tierkategorien_GRUD!$A$64:$F$71,MATCH('Geflügel-Volaille'!$A7,Tierkategorien_GRUD!$A$64:$A$71),6))","v":0},null,{"$f":"IF($A7=\"\",\"\",INDEX(Tierkategorien_GRUD!$A$64:$S$71,MATCH('Geflügel-Volaille'!$A7,Tierkategorien_GRUD!$A$64:$A$71),19))","v":""},null,{"$f":"IF('Grunddaten-Données de base'!$D$9=\"dt.\",IF($S7<>\"\",IF($N7=\"Lineare Korrektur\",$S7,IF($N7=\"Impex\",$S7*$F7,$G7*$H7)),$G7*$H7),IF($S7<>\"\",IF($N7=\"Correction linéaire\",$S7,IF($N7=\"Impex\",$S7*$F7,$G7*$H7)),$G7*$H7))","v":0},{"$f":"IF('Grunddaten-Données de base'!$D$9=\"dt.\",IF($T7<>\"\",IF($N7=\"Lineare Korrektur\",$T7,IF($N7=\"Impex\",$T7*$F7,$G7*$H7)),$G7*$I7),IF($T7<>\"\",IF($N7=\"Correction linéaire\",$T7,IF($N7=\"Impex\",$T7*$F7,$G7*$I7)),$G7*$I7))","v":0},0,0,null,null,null,{"$f":"IF('Geflügel-Volaille'!$A7=\"\",0,INDEX(Tierkategorien_GRUD!$A$64:$O$69,MATCH('Geflügel-Volaille'!$A7,Tierkategorien_GRUD!$A$64:$A$69),15))","v":0},0,null,{"$f":"IF('Geflügel-Volaille'!$A7=\"\",\"\",INDEX(Tierkategorien_GRUD!$A$64:$P$69,MATCH('Geflügel-Volaille'!$A7,Tierkategorien_GRUD!$A$64:$A$69),16))","v":""},null,{"$f":"IF('Geflügel-Volaille'!$A7=\"\",0,INDEX(Tierkategorien_GRUD!$A$64:$M$71,MATCH('Geflügel-Volaille'!$A7,Tierkategorien_GRUD!$A$64:$A$71),8))","v":0},{"$f":"IF('Geflügel-Volaille'!$A7=\"\",0,INDEX(Tierkategorien_GRUD!$A$64:$M$71,MATCH('Geflügel-Volaille'!$A7,Tierkategorien_GRUD!$A$64:$A$71),10))","v":0},0]
[null,null,{"$f":"IF('Grunddaten-Données de base'!$D$9=\"dt.\",IF('Geflügel-Volaille'!$A8=\"\",\"\",INDEX(Tierkategorien_GRUD!$A$64:$R$71,MATCH('Geflügel-Volaille'!$A8,Tierkategorien_GRUD!$A$64:$A$71),2)),IF('Geflügel-Volaille'!$A8=\"\",\"\",INDEX(Tierkategorien_GRUD!$A$64:$R$71,MATCH('Geflügel-Volaille'!$A8,Tierkategorien_GRUD!$A$64:$A$71),18)))","v":""},null,null,1,0,{"$f":"IF('Geflügel-Volaille'!$A8=\"\",0,INDEX(Tierkategorien_GRUD!$A$64:$F$71,MATCH('Geflügel-Volaille'!$A8,Tierkategorien_GRUD!$A$64:$A$71),3))","v":0},{"$f":"IF('Geflügel-Volaille'!$A8=\"\",0,INDEX(Tierkategorien_GRUD!$A$64:$F$71,MATCH('Geflügel-Volaille'!$A8,Tierkategorien_GRUD!$A$64:$A$71),4))","v":0},{"$f":"IF('Geflügel-Volaille'!$A8=\"\",0,INDEX(Tierkategorien_GRUD!$A$64:$F$71,MATCH('Geflügel-Volaille'!$A8,Tierkategorien_GRUD!$A$64:$A$71),5))","v":0},{"$f":"IF('Geflügel-Volaille'!$A8=\"\",0,INDEX(Tierkategorien_GRUD!$A$64:$F$71,MATCH('Geflügel-Volaille'!$A8,Tierkategorien_GRUD!$A$64:$A$71),6))","v":0},null,{"$f":"IF($A8=\"\",\"\",INDEX(Tierkategorien_GRUD!$A$64:$S$71,MATCH('Geflügel-Volaille'!$A8,Tierkategorien_GRUD!$A$64:$A$71),19))","v":""},null,{"$f":"IF('Grunddaten-Données de base'!$D$9=\"dt.\",IF($S8<>\"\",IF($N8=\"Lineare Korrektur\",$S8,IF($N8=\"Impex\",$S8*$F8,$G8*$H8)),$G8*$H8),IF($S8<>\"\",IF($N8=\"Correction linéaire\",$S8,IF($N8=\"Impex\",$S8*$F8,$G8*$H8)),$G8*$H8))","v":0},{"$f":"IF('Grunddaten-Données de base'!$D$9=\"dt.\",IF($T8<>\"\",IF($N8=\"Lineare Korrektur\",$T8,IF($N8=\"Impex\",$T8*$F8,$G8*$H8)),$G8*$I8),IF($T8<>\"\",IF($N8=\"Correction linéaire\",$T8,IF($N8=\"Impex\",$T8*$F8,$G8*$I8)),$G8*$I8))","v":0},0,0,null,null,null,{"$f":"IF('Geflügel-Volaille'!$A8=\"\",0,INDEX(Tierkategorien_GRUD!$A$64:$O$69,MATCH('Geflügel-Volaille'!$A8,Tierkategorien_GRUD!$A$64:$A$69),15))","v":0},0,null,{"$f":"IF('Geflügel-Volaille'!$A8=\"\",\"\",INDEX(Tierkategorien_GRUD!$A$64:$P$69,MATCH('Geflügel-Volaille'!$A8,Tierkategorien_GRUD!$A$64:$A$69),16))","v":""},null,{"$f":"IF('Geflügel-Volaille'!$A8=\"\",0,INDEX(Tierkategorien_GRUD!$A$64:$M$71,MATCH('Geflügel-Volaille'!$A8,Tierkategorien_GRUD!$A$64:$A$71),8))","v":0},{"$f":"IF('Geflügel-Volaille'!$A8=\"\",0,INDEX(Tierkategorien_GRUD!$A$64:$M$71,MATCH('Geflügel-Volaille'!$A8,Tierkategorien_GRUD!$A$64:$A$71),10))","v":0},0]
[null,null,{"$f":"IF('Grunddaten-Données de base'!$D$9=\"dt.\",IF('Geflügel-Volaille'!$A9=\"\",\"\",INDEX(Tierkategorien_GRUD!$A$64:$R$71,MATCH('Geflügel-Volaille'!$A9,Tierkategorien_GRUD!$A$64:$A$71),2)),IF('Geflügel-Volaille'!$A9=\"\",\"\",INDEX(Tierkategorien_GRUD!$A$64:$R$71,MATCH('Geflügel-Volaille'!$A9,Tierkategorien_GRUD!$A$64:$A$71),18)))","v":""},null,null,1,0,{"$f":"IF('Geflügel-Volaille'!$A9=\"\",0,INDEX(Tierkategorien_GRUD!$A$64:$F$71,MATCH('Geflügel-Volaille'!$A9,Tierkategorien_GRUD!$A$64:$A$71),3))","v":0},{"$f":"IF('Geflügel-Volaille'!$A9=\"\",0,INDEX(Tierkategorien_GRUD!$A$64:$F$71,MATCH('Geflügel-Volaille'!$A9,Tierkategorien_GRUD!$A$64:$A$71),4))","v":0},{"$f":"IF('Geflügel-Volaille'!$A9=\"\",0,INDEX(Tierkategorien_GRUD!$A$64:$F$71,MATCH('Geflügel-Volaille'!$A9,Tierkategorien_GRUD!$A$64:$A$71),5))","v":0},{"$f":"IF('Geflügel-Volaille'!$A9=\"\",0,INDEX(Tierkategorien_GRUD!$A$64:$F$71,MATCH('Geflügel-Volaille'!$A9,Tierkategorien_GRUD!$A$64:$A$71),6))","v":0},null,{"$f":"IF($A9=\"\",\"\",INDEX(Tierkategorien_GRUD!$A$64:$S$71,MATCH('Geflügel-Volaille'!$A9,Tierkategorien_GRUD!$A$64:$A$71),19))","v":""},null,{"$f":"IF('Grunddaten-Données de base'!$D$9=\"dt.\",IF($S9<>\"\",IF($N9=\"Lineare Korrektur\",$S9,IF($N9=\"Impex\",$S9*$F9,$G9*$H9)),$G9*$H9),IF($S9<>\"\",IF($N9=\"Correction linéaire\",$S9,IF($N9=\"Impex\",$S9*$F9,$G9*$H9)),$G9*$H9))","v":0},{"$f":"IF('Grunddaten-Données de base'!$D$9=\"dt.\",IF($T9<>\"\",IF($N9=\"Lineare Korrektur\",$T9,IF($N9=\"Impex\",$T9*$F9,$G9*$H9)),$G9*$I9),IF($T9<>\"\",IF($N9=\"Correction linéaire\",$T9,IF($N9=\"Impex\",$T9*$F9,$G9*$I9)),$G9*$I9))","v":0},0,0,null,null,null,{"$f":"IF('Geflügel-Volaille'!$A9=\"\",0,INDEX(Tierkategorien_GRUD!$A$64:$O$69,MATCH('Geflügel-Volaille'!$A9,Tierkategorien_GRUD!$A$64:$A$69),15))","v":0},0,null,{"$f":"IF('Geflügel-Volaille'!$A9=\"\",\"\",INDEX(Tierkategorien_GRUD!$A$64:$P$69,MATCH('Geflügel-Volaille'!$A9,Tierkategorien_GRUD!$A$64:$A$69),16))","v":""},null,{"$f":"IF('Geflügel-Volaille'!$A9=\"\",0,INDEX(Tierkategorien_GRUD!$A$64:$M$71,MATCH('Geflügel-Volaille'!$A9,Tierkategorien_GRUD!$A$64:$A$71),8))","v":0},{"$f":"IF('Geflügel-Volaille'!$A9=\"\",0,INDEX(Tierkategorien_GRUD!$A$64:$M$71,MATCH('Geflügel-Volaille'!$A9,Tierkategorien_GRUD!$A$64:$A$71),10))","v":0},0]
[null,null,{"$f":"IF('Grunddaten-Données de base'!$D$9=\"dt.\",IF('Geflügel-Volaille'!$A10=\"\",\"\",INDEX(Tierkategorien_GRUD!$A$64:$R$71,MATCH('Geflügel-Volaille'!$A10,Tierkategorien_GRUD!$A$64:$A$71),2)),IF('Geflügel-Volaille'!$A10=\"\",\"\",INDEX(Tierkategorien_GRUD!$A$64:$R$71,MATCH('Geflügel-Volaille'!$A10,Tierkategorien_GRUD!$A$64:$A$71),18)))","v":""},null,null,1,0,{"$f":"IF('Geflügel-Volaille'!$A10=\"\",0,INDEX(Tierkategorien_GRUD!$A$64:$F$71,MATCH('Geflügel-Volaille'!$A10,Tierkategorien_GRUD!$A$64:$A$71),3))","v":0},{"$f":"IF('Geflügel-Volaille'!$A10=\"\",0,INDEX(Tierkategorien_GRUD!$A$64:$F$71,MATCH('Geflügel-Volaille'!$A10,Tierkategorien_GRUD!$A$64:$A$71),4))","v":0},{"$f":"IF('Geflügel-Volaille'!$A10=\"\",0,INDEX(Tierkategorien_GRUD!$A$64:$F$71,MATCH('Geflügel-Volaille'!$A10,Tierkategorien_GRUD!$A$64:$A$71),5))","v":0},{"$f":"IF('Geflügel-Volaille'!$A10=\"\",0,INDEX(Tierkategorien_GRUD!$A$64:$F$71,MATCH('Geflügel-Volaille'!$A10,Tierkategorien_GRUD!$A$64:$A$71),6))","v":0},null,{"$f":"IF($A10=\"\",\"\",INDEX(Tierkategorien_GRUD!$A$64:$S$71,MATCH('Geflügel-Volaille'!$A10,Tierkategorien_GRUD!$A$64:$A$71),19))","v":""},null,{"$f":"IF('Grunddaten-Données de base'!$D$9=\"dt.\",IF($S10<>\"\",IF($N10=\"Lineare Korrektur\",$S10,IF($N10=\"Impex\",$S10*$F10,$G10*$H10)),$G10*$H10),IF($S10<>\"\",IF($N10=\"Correction linéaire\",$S10,IF($N10=\"Impex\",$S10*$F10,$G10*$H10)),$G10*$H10))","v":0},{"$f":"IF('Grunddaten-Données de base'!$D$9=\"dt.\",IF($T10<>\"\",IF($N10=\"Lineare Korrektur\",$T10,IF($N10=\"Impex\",$T10*$F10,$G10*$H10)),$G10*$I10),IF($T10<>\"\",IF($N10=\"Correction linéaire\",$T10,IF($N10=\"Impex\",$T10*$F10,$G10*$I10)),$G10*$I10))","v":0},0,0,null,null,null,{"$f":"IF('Geflügel-Volaille'!$A10=\"\",0,INDEX(Tierkategorien_GRUD!$A$64:$O$69,MATCH('Geflügel-Volaille'!$A10,Tierkategorien_GRUD!$A$64:$A$69),15))","v":0},0,null,{"$f":"IF('Geflügel-Volaille'!$A10=\"\",\"\",INDEX(Tierkategorien_GRUD!$A$64:$P$69,MATCH('Geflügel-Volaille'!$A10,Tierkategorien_GRUD!$A$64:$A$69),16))","v":""},null,{"$f":"IF('Geflügel-Volaille'!$A10=\"\",0,INDEX(Tierkategorien_GRUD!$A$64:$M$71,MATCH('Geflügel-Volaille'!$A10,Tierkategorien_GRUD!$A$64:$A$71),8))","v":0},{"$f":"IF('Geflügel-Volaille'!$A10=\"\",0,INDEX(Tierkategorien_GRUD!$A$64:$M$71,MATCH('Geflügel-Volaille'!$A10,Tierkategorien_GRUD!$A$64:$A$71),10))","v":0},0]
[null,null,{"$f":"IF('Grunddaten-Données de base'!$D$9=\"dt.\",IF('Geflügel-Volaille'!$A11=\"\",\"\",INDEX(Tierkategorien_GRUD!$A$64:$R$71,MATCH('Geflügel-Volaille'!$A11,Tierkategorien_GRUD!$A$64:$A$71),2)),IF('Geflügel-Volaille'!$A11=\"\",\"\",INDEX(Tierkategorien_GRUD!$A$64:$R$71,MATCH('Geflügel-Volaille'!$A11,Tierkategorien_GRUD!$A$64:$A$71),18)))","v":""},null,null,1,0,{"$f":"IF('Geflügel-Volaille'!$A11=\"\",0,INDEX(Tierkategorien_GRUD!$A$64:$F$71,MATCH('Geflügel-Volaille'!$A11,Tierkategorien_GRUD!$A$64:$A$71),3))","v":0},{"$f":"IF('Geflügel-Volaille'!$A11=\"\",0,INDEX(Tierkategorien_GRUD!$A$64:$F$71,MATCH('Geflügel-Volaille'!$A11,Tierkategorien_GRUD!$A$64:$A$71),4))","v":0},{"$f":"IF('Geflügel-Volaille'!$A11=\"\",0,INDEX(Tierkategorien_GRUD!$A$64:$F$71,MATCH('Geflügel-Volaille'!$A11,Tierkategorien_GRUD!$A$64:$A$71),5))","v":0},{"$f":"IF('Geflügel-Volaille'!$A11=\"\",0,INDEX(Tierkategorien_GRUD!$A$64:$F$71,MATCH('Geflügel-Volaille'!$A11,Tierkategorien_GRUD!$A$64:$A$71),6))","v":0},null,{"$f":"IF($A11=\"\",\"\",INDEX(Tierkategorien_GRUD!$A$64:$S$71,MATCH('Geflügel-Volaille'!$A11,Tierkategorien_GRUD!$A$64:$A$71),19))","v":""},null,{"$f":"IF('Grunddaten-Données de base'!$D$9=\"dt.\",IF($S11<>\"\",IF($N11=\"Lineare Korrektur\",$S11,IF($N11=\"Impex\",$S11*$F11,$G11*$H11)),$G11*$H11),IF($S11<>\"\",IF($N11=\"Correction linéaire\",$S11,IF($N11=\"Impex\",$S11*$F11,$G11*$H11)),$G11*$H11))","v":0},{"$f":"IF('Grunddaten-Données de base'!$D$9=\"dt.\",IF($T11<>\"\",IF($N11=\"Lineare Korrektur\",$T11,IF($N11=\"Impex\",$T11*$F11,$G11*$H11)),$G11*$I11),IF($T11<>\"\",IF($N11=\"Correction linéaire\",$T11,IF($N11=\"Impex\",$T11*$F11,$G11*$I11)),$G11*$I11))","v":0},0,0,null,null,null,{"$f":"IF('Geflügel-Volaille'!$A11=\"\",0,INDEX(Tierkategorien_GRUD!$A$64:$O$69,MATCH('Geflügel-Volaille'!$A11,Tierkategorien_GRUD!$A$64:$A$69),15))","v":0},0,null,{"$f":"IF('Geflügel-Volaille'!$A11=\"\",\"\",INDEX(Tierkategorien_GRUD!$A$64:$P$69,MATCH('Geflügel-Volaille'!$A11,Tierkategorien_GRUD!$A$64:$A$69),16))","v":""},null,{"$f":"IF('Geflügel-Volaille'!$A11=\"\",0,INDEX(Tierkategorien_GRUD!$A$64:$M$71,MATCH('Geflügel-Volaille'!$A11,Tierkategorien_GRUD!$A$64:$A$71),8))","v":0},{"$f":"IF('Geflügel-Volaille'!$A11=\"\",0,INDEX(Tierkategorien_GRUD!$A$64:$M$71,MATCH('Geflügel-Volaille'!$A11,Tierkategorien_GRUD!$A$64:$A$71),10))","v":0},0]
[null,null,{"$f":"IF('Grunddaten-Données de base'!$D$9=\"dt.\",IF('Geflügel-Volaille'!$A12=\"\",\"\",INDEX(Tierkategorien_GRUD!$A$64:$R$71,MATCH('Geflügel-Volaille'!$A12,Tierkategorien_GRUD!$A$64:$A$71),2)),IF('Geflügel-Volaille'!$A12=\"\",\"\",INDEX(Tierkategorien_GRUD!$A$64:$R$71,MATCH('Geflügel-Volaille'!$A12,Tierkategorien_GRUD!$A$64:$A$71),18)))","v":""},null,null,1,0,{"$f":"IF('Geflügel-Volaille'!$A12=\"\",0,INDEX(Tierkategorien_GRUD!$A$64:$F$71,MATCH('Geflügel-Volaille'!$A12,Tierkategorien_GRUD!$A$64:$A$71),3))","v":0},{"$f":"IF('Geflügel-Volaille'!$A12=\"\",0,INDEX(Tierkategorien_GRUD!$A$64:$F$71,MATCH('Geflügel-Volaille'!$A12,Tierkategorien_GRUD!$A$64:$A$71),4))","v":0},{"$f":"IF('Geflügel-Volaille'!$A12=\"\",0,INDEX(Tierkategorien_GRUD!$A$64:$F$71,MATCH('Geflügel-Volaille'!$A12,Tierkategorien_GRUD!$A$64:$A$71),5))","v":0},{"$f":"IF('Geflügel-Volaille'!$A12=\"\",0,INDEX(Tierkategorien_GRUD!$A$64:$F$71,MATCH('Geflügel-Volaille'!$A12,Tierkategorien_GRUD!$A$64:$A$71),6))","v":0},null,{"$f":"IF($A12=\"\",\"\",INDEX(Tierkategorien_GRUD!$A$64:$S$71,MATCH('Geflügel-Volaille'!$A12,Tierkategorien_GRUD!$A$64:$A$71),19))","v":""},null,{"$f":"IF('Grunddaten-Données de base'!$D$9=\"dt.\",IF($S12<>\"\",IF($N12=\"Lineare Korrektur\",$S12,IF($N12=\"Impex\",$S12*$F12,$G12*$H12)),$G12*$H12),IF($S12<>\"\",IF($N12=\"Correction linéaire\",$S12,IF($N12=\"Impex\",$S12*$F12,$G12*$H12)),$G12*$H12))","v":0},{"$f":"IF('Grunddaten-Données de base'!$D$9=\"dt.\",IF($T12<>\"\",IF($N12=\"Lineare Korrektur\",$T12,IF($N12=\"Impex\",$T12*$F12,$G12*$H12)),$G12*$I12),IF($T12<>\"\",IF($N12=\"Correction linéaire\",$T12,IF($N12=\"Impex\",$T12*$F12,$G12*$I12)),$G12*$I12))","v":0},0,0,null,null,null,{"$f":"IF('Geflügel-Volaille'!$A12=\"\",0,INDEX(Tierkategorien_GRUD!$A$64:$O$69,MATCH('Geflügel-Volaille'!$A12,Tierkategorien_GRUD!$A$64:$A$69),15))","v":0},0,null,{"$f":"IF('Geflügel-Volaille'!$A12=\"\",\"\",INDEX(Tierkategorien_GRUD!$A$64:$P$69,MATCH('Geflügel-Volaille'!$A12,Tierkategorien_GRUD!$A$64:$A$69),16))","v":""},null,{"$f":"IF('Geflügel-Volaille'!$A12=\"\",0,INDEX(Tierkategorien_GRUD!$A$64:$M$71,MATCH('Geflügel-Volaille'!$A12,Tierkategorien_GRUD!$A$64:$A$71),8))","v":0},{"$f":"IF('Geflügel-Volaille'!$A12=\"\",0,INDEX(Tierkategorien_GRUD!$A$64:$M$71,MATCH('Geflügel-Volaille'!$A12,Tierkategorien_GRUD!$A$64:$A$71),10))","v":0},0]
[null,null,{"$f":"IF('Grunddaten-Données de base'!$D$9=\"dt.\",IF('Geflügel-Volaille'!$A13=\"\",\"\",INDEX(Tierkategorien_GRUD!$A$64:$R$71,MATCH('Geflügel-Volaille'!$A13,Tierkategorien_GRUD!$A$64:$A$71),2)),IF('Geflügel-Volaille'!$A13=\"\",\"\",INDEX(Tierkategorien_GRUD!$A$64:$R$71,MATCH('Geflügel-Volaille'!$A13,Tierkategorien_GRUD!$A$64:$A$71),18)))","v":""},null,null,1,0,{"$f":"IF('Geflügel-Volaille'!$A13=\"\",0,INDEX(Tierkategorien_GRUD!$A$64:$F$71,MATCH('Geflügel-Volaille'!$A13,Tierkategorien_GRUD!$A$64:$A$71),3))","v":0},{"$f":"IF('Geflügel-Volaille'!$A13=\"\",0,INDEX(Tierkategorien_GRUD!$A$64:$F$71,MATCH('Geflügel-Volaille'!$A13,Tierkategorien_GRUD!$A$64:$A$71),4))","v":0},{"$f":"IF('Geflügel-Volaille'!$A13=\"\",0,INDEX(Tierkategorien_GRUD!$A$64:$F$71,MATCH('Geflügel-Volaille'!$A13,Tierkategorien_GRUD!$A$64:$A$71),5))","v":0},{"$f":"IF('Geflügel-Volaille'!$A13=\"\",0,INDEX(Tierkategorien_GRUD!$A$64:$F$71,MATCH('Geflügel-Volaille'!$A13,Tierkategorien_GRUD!$A$64:$A$71),6))","v":0},null,{"$f":"IF($A13=\"\",\"\",INDEX(Tierkategorien_GRUD!$A$64:$S$71,MATCH('Geflügel-Volaille'!$A13,Tierkategorien_GRUD!$A$64:$A$71),19))","v":""},null,{"$f":"IF('Grunddaten-Données de base'!$D$9=\"dt.\",IF($S13<>\"\",IF($N13=\"Lineare Korrektur\",$S13,IF($N13=\"Impex\",$S13*$F13,$G13*$H13)),$G13*$H13),IF($S13<>\"\",IF($N13=\"Correction linéaire\",$S13,IF($N13=\"Impex\",$S13*$F13,$G13*$H13)),$G13*$H13))","v":0},{"$f":"IF('Grunddaten-Données de base'!$D$9=\"dt.\",IF($T13<>\"\",IF($N13=\"Lineare Korrektur\",$T13,IF($N13=\"Impex\",$T13*$F13,$G13*$H13)),$G13*$I13),IF($T13<>\"\",IF($N13=\"Correction linéaire\",$T13,IF($N13=\"Impex\",$T13*$F13,$G13*$I13)),$G13*$I13))","v":0},0,0,null,null,null,{"$f":"IF('Geflügel-Volaille'!$A13=\"\",0,INDEX(Tierkategorien_GRUD!$A$64:$O$69,MATCH('Geflügel-Volaille'!$A13,Tierkategorien_GRUD!$A$64:$A$69),15))","v":0},0,null,{"$f":"IF('Geflügel-Volaille'!$A13=\"\",\"\",INDEX(Tierkategorien_GRUD!$A$64:$P$69,MATCH('Geflügel-Volaille'!$A13,Tierkategorien_GRUD!$A$64:$A$69),16))","v":""},null,{"$f":"IF('Geflügel-Volaille'!$A13=\"\",0,INDEX(Tierkategorien_GRUD!$A$64:$M$71,MATCH('Geflügel-Volaille'!$A13,Tierkategorien_GRUD!$A$64:$A$71),8))","v":0},{"$f":"IF('Geflügel-Volaille'!$A13=\"\",0,INDEX(Tierkategorien_GRUD!$A$64:$M$71,MATCH('Geflügel-Volaille'!$A13,Tierkategorien_GRUD!$A$64:$A$71),10))","v":0},0]
[null,null,{"$f":"IF('Grunddaten-Données de base'!$D$9=\"dt.\",IF('Geflügel-Volaille'!$A14=\"\",\"\",INDEX(Tierkategorien_GRUD!$A$64:$R$71,MATCH('Geflügel-Volaille'!$A14,Tierkategorien_GRUD!$A$64:$A$71),2)),IF('Geflügel-Volaille'!$A14=\"\",\"\",INDEX(Tierkategorien_GRUD!$A$64:$R$71,MATCH('Geflügel-Volaille'!$A14,Tierkategorien_GRUD!$A$64:$A$71),18)))","v":""},null,null,1,0,{"$f":"IF('Geflügel-Volaille'!$A14=\"\",0,INDEX(Tierkategorien_GRUD!$A$64:$F$71,MATCH('Geflügel-Volaille'!$A14,Tierkategorien_GRUD!$A$64:$A$71),3))","v":0},{"$f":"IF('Geflügel-Volaille'!$A14=\"\",0,INDEX(Tierkategorien_GRUD!$A$64:$F$71,MATCH('Geflügel-Volaille'!$A14,Tierkategorien_GRUD!$A$64:$A$71),4))","v":0},{"$f":"IF('Geflügel-Volaille'!$A14=\"\",0,INDEX(Tierkategorien_GRUD!$A$64:$F$71,MATCH('Geflügel-Volaille'!$A14,Tierkategorien_GRUD!$A$64:$A$71),5))","v":0},{"$f":"IF('Geflügel-Volaille'!$A14=\"\",0,INDEX(Tierkategorien_GRUD!$A$64:$F$71,MATCH('Geflügel-Volaille'!$A14,Tierkategorien_GRUD!$A$64:$A$71),6))","v":0},null,{"$f":"IF($A14=\"\",\"\",INDEX(Tierkategorien_GRUD!$A$64:$S$71,MATCH('Geflügel-Volaille'!$A14,Tierkategorien_GRUD!$A$64:$A$71),19))","v":""},null,{"$f":"IF('Grunddaten-Données de base'!$D$9=\"dt.\",IF($S14<>\"\",IF($N14=\"Lineare Korrektur\",$S14,IF($N14=\"Impex\",$S14*$F14,$G14*$H14)),$G14*$H14),IF($S14<>\"\",IF($N14=\"Correction linéaire\",$S14,IF($N14=\"Impex\",$S14*$F14,$G14*$H14)),$G14*$H14))","v":0},{"$f":"IF('Grunddaten-Données de base'!$D$9=\"dt.\",IF($T14<>\"\",IF($N14=\"Lineare Korrektur\",$T14,IF($N14=\"Impex\",$T14*$F14,$G14*$H14)),$G14*$I14),IF($T14<>\"\",IF($N14=\"Correction linéaire\",$T14,IF($N14=\"Impex\",$T14*$F14,$G14*$I14)),$G14*$I14))","v":0},0,0,null,null,null,{"$f":"IF('Geflügel-Volaille'!$A14=\"\",0,INDEX(Tierkategorien_GRUD!$A$64:$O$69,MATCH('Geflügel-Volaille'!$A14,Tierkategorien_GRUD!$A$64:$A$69),15))","v":0},0,null,{"$f":"IF('Geflügel-Volaille'!$A14=\"\",\"\",INDEX(Tierkategorien_GRUD!$A$64:$P$69,MATCH('Geflügel-Volaille'!$A14,Tierkategorien_GRUD!$A$64:$A$69),16))","v":""},null,{"$f":"IF('Geflügel-Volaille'!$A14=\"\",0,INDEX(Tierkategorien_GRUD!$A$64:$M$71,MATCH('Geflügel-Volaille'!$A14,Tierkategorien_GRUD!$A$64:$A$71),8))","v":0},{"$f":"IF('Geflügel-Volaille'!$A14=\"\",0,INDEX(Tierkategorien_GRUD!$A$64:$M$71,MATCH('Geflügel-Volaille'!$A14,Tierkategorien_GRUD!$A$64:$A$71),10))","v":0},0]
[null,null,{"$f":"IF('Grunddaten-Données de base'!$D$9=\"dt.\",IF('Geflügel-Volaille'!$A15=\"\",\"\",INDEX(Tierkategorien_GRUD!$A$64:$R$71,MATCH('Geflügel-Volaille'!$A15,Tierkategorien_GRUD!$A$64:$A$71),2)),IF('Geflügel-Volaille'!$A15=\"\",\"\",INDEX(Tierkategorien_GRUD!$A$64:$R$71,MATCH('Geflügel-Volaille'!$A15,Tierkategorien_GRUD!$A$64:$A$71),18)))","v":""},null,null,1,0,{"$f":"IF('Geflügel-Volaille'!$A15=\"\",0,INDEX(Tierkategorien_GRUD!$A$64:$F$71,MATCH('Geflügel-Volaille'!$A15,Tierkategorien_GRUD!$A$64:$A$71),3))","v":0},{"$f":"IF('Geflügel-Volaille'!$A15=\"\",0,INDEX(Tierkategorien_GRUD!$A$64:$F$71,MATCH('Geflügel-Volaille'!$A15,Tierkategorien_GRUD!$A$64:$A$71),4))","v":0},{"$f":"IF('Geflügel-Volaille'!$A15=\"\",0,INDEX(Tierkategorien_GRUD!$A$64:$F$71,MATCH('Geflügel-Volaille'!$A15,Tierkategorien_GRUD!$A$64:$A$71),5))","v":0},{"$f":"IF('Geflügel-Volaille'!$A15=\"\",0,INDEX(Tierkategorien_GRUD!$A$64:$F$71,MATCH('Geflügel-Volaille'!$A15,Tierkategorien_GRUD!$A$64:$A$71),6))","v":0},null,{"$f":"IF($A15=\"\",\"\",INDEX(Tierkategorien_GRUD!$A$64:$S$71,MATCH('Geflügel-Volaille'!$A15,Tierkategorien_GRUD!$A$64:$A$71),19))","v":""},null,{"$f":"IF('Grunddaten-Données de base'!$D$9=\"dt.\",IF($S15<>\"\",IF($N15=\"Lineare Korrektur\",$S15,IF($N15=\"Impex\",$S15*$F15,$G15*$H15)),$G15*$H15),IF($S15<>\"\",IF($N15=\"Correction linéaire\",$S15,IF($N15=\"Impex\",$S15*$F15,$G15*$H15)),$G15*$H15))","v":0},{"$f":"IF('Grunddaten-Données de base'!$D$9=\"dt.\",IF($T15<>\"\",IF($N15=\"Lineare Korrektur\",$T15,IF($N15=\"Impex\",$T15*$F15,$G15*$H15)),$G15*$I15),IF($T15<>\"\",IF($N15=\"Correction linéaire\",$T15,IF($N15=\"Impex\",$T15*$F15,$G15*$I15)),$G15*$I15))","v":0},0,0,null,null,null,{"$f":"IF('Geflügel-Volaille'!$A15=\"\",0,INDEX(Tierkategorien_GRUD!$A$64:$O$69,MATCH('Geflügel-Volaille'!$A15,Tierkategorien_GRUD!$A$64:$A$69),15))","v":0},0,null,{"$f":"IF('Geflügel-Volaille'!$A15=\"\",\"\",INDEX(Tierkategorien_GRUD!$A$64:$P$69,MATCH('Geflügel-Volaille'!$A15,Tierkategorien_GRUD!$A$64:$A$69),16))","v":""},null,{"$f":"IF('Geflügel-Volaille'!$A15=\"\",0,INDEX(Tierkategorien_GRUD!$A$64:$M$71,MATCH('Geflügel-Volaille'!$A15,Tierkategorien_GRUD!$A$64:$A$71),8))","v":0},{"$f":"IF('Geflügel-Volaille'!$A15=\"\",0,INDEX(Tierkategorien_GRUD!$A$64:$M$71,MATCH('Geflügel-Volaille'!$A15,Tierkategorien_GRUD!$A$64:$A$71),10))","v":0},0]
[null,null,{"$f":"IF('Grunddaten-Données de base'!$D$9=\"dt.\",IF('Geflügel-Volaille'!$A16=\"\",\"\",INDEX(Tierkategorien_GRUD!$A$64:$R$71,MATCH('Geflügel-Volaille'!$A16,Tierkategorien_GRUD!$A$64:$A$71),2)),IF('Geflügel-Volaille'!$A16=\"\",\"\",INDEX(Tierkategorien_GRUD!$A$64:$R$71,MATCH('Geflügel-Volaille'!$A16,Tierkategorien_GRUD!$A$64:$A$71),18)))","v":""},null,null,1,0,{"$f":"IF('Geflügel-Volaille'!$A16=\"\",0,INDEX(Tierkategorien_GRUD!$A$64:$F$71,MATCH('Geflügel-Volaille'!$A16,Tierkategorien_GRUD!$A$64:$A$71),3))","v":0},{"$f":"IF('Geflügel-Volaille'!$A16=\"\",0,INDEX(Tierkategorien_GRUD!$A$64:$F$71,MATCH('Geflügel-Volaille'!$A16,Tierkategorien_GRUD!$A$64:$A$71),4))","v":0},{"$f":"IF('Geflügel-Volaille'!$A16=\"\",0,INDEX(Tierkategorien_GRUD!$A$64:$F$71,MATCH('Geflügel-Volaille'!$A16,Tierkategorien_GRUD!$A$64:$A$71),5))","v":0},{"$f":"IF('Geflügel-Volaille'!$A16=\"\",0,INDEX(Tierkategorien_GRUD!$A$64:$F$71,MATCH('Geflügel-Volaille'!$A16,Tierkategorien_GRUD!$A$64:$A$71),6))","v":0},null,{"$f":"IF($A16=\"\",\"\",INDEX(Tierkategorien_GRUD!$A$64:$S$71,MATCH('Geflügel-Volaille'!$A16,Tierkategorien_GRUD!$A$64:$A$71),19))","v":""},null,{"$f":"IF('Grunddaten-Données de base'!$D$9=\"dt.\",IF($S16<>\"\",IF($N16=\"Lineare Korrektur\",$S16,IF($N16=\"Impex\",$S16*$F16,$G16*$H16)),$G16*$H16),IF($S16<>\"\",IF($N16=\"Correction linéaire\",$S16,IF($N16=\"Impex\",$S16*$F16,$G16*$H16)),$G16*$H16))","v":0},{"$f":"IF('Grunddaten-Données de base'!$D$9=\"dt.\",IF($T16<>\"\",IF($N16=\"Lineare Korrektur\",$T16,IF($N16=\"Impex\",$T16*$F16,$G16*$H16)),$G16*$I16),IF($T16<>\"\",IF($N16=\"Correction linéaire\",$T16,IF($N16=\"Impex\",$T16*$F16,$G16*$I16)),$G16*$I16))","v":0},0,0,null,null,null,{"$f":"IF('Geflügel-Volaille'!$A16=\"\",0,INDEX(Tierkategorien_GRUD!$A$64:$O$69,MATCH('Geflügel-Volaille'!$A16,Tierkategorien_GRUD!$A$64:$A$69),15))","v":0},0,null,{"$f":"IF('Geflügel-Volaille'!$A16=\"\",\"\",INDEX(Tierkategorien_GRUD!$A$64:$P$69,MATCH('Geflügel-Volaille'!$A16,Tierkategorien_GRUD!$A$64:$A$69),16))","v":""},null,{"$f":"IF('Geflügel-Volaille'!$A16=\"\",0,INDEX(Tierkategorien_GRUD!$A$64:$M$71,MATCH('Geflügel-Volaille'!$A16,Tierkategorien_GRUD!$A$64:$A$71),8))","v":0},{"$f":"IF('Geflügel-Volaille'!$A16=\"\",0,INDEX(Tierkategorien_GRUD!$A$64:$M$71,MATCH('Geflügel-Volaille'!$A16,Tierkategorien_GRUD!$A$64:$A$71),10))","v":0},0]
[null,null,{"$f":"IF('Grunddaten-Données de base'!$D$9=\"dt.\",IF('Geflügel-Volaille'!$A17=\"\",\"\",INDEX(Tierkategorien_GRUD!$A$64:$R$71,MATCH('Geflügel-Volaille'!$A17,Tierkategorien_GRUD!$A$64:$A$71),2)),IF('Geflügel-Volaille'!$A17=\"\",\"\",INDEX(Tierkategorien_GRUD!$A$64:$R$71,MATCH('Geflügel-Volaille'!$A17,Tierkategorien_GRUD!$A$64:$A$71),18)))","v":""},null,null,1,0,{"$f":"IF('Geflügel-Volaille'!$A17=\"\",0,INDEX(Tierkategorien_GRUD!$A$64:$F$71,MATCH('Geflügel-Volaille'!$A17,Tierkategorien_GRUD!$A$64:$A$71),3))","v":0},{"$f":"IF('Geflügel-Volaille'!$A17=\"\",0,INDEX(Tierkategorien_GRUD!$A$64:$F$71,MATCH('Geflügel-Volaille'!$A17,Tierkategorien_GRUD!$A$64:$A$71),4))","v":0},{"$f":"IF('Geflügel-Volaille'!$A17=\"\",0,INDEX(Tierkategorien_GRUD!$A$64:$F$71,MATCH('Geflügel-Volaille'!$A17,Tierkategorien_GRUD!$A$64:$A$71),5))","v":0},{"$f":"IF('Geflügel-Volaille'!$A17=\"\",0,INDEX(Tierkategorien_GRUD!$A$64:$F$71,MATCH('Geflügel-Volaille'!$A17,Tierkategorien_GRUD!$A$64:$A$71),6))","v":0},null,{"$f":"IF($A17=\"\",\"\",INDEX(Tierkategorien_GRUD!$A$64:$S$71,MATCH('Geflügel-Volaille'!$A17,Tierkategorien_GRUD!$A$64:$A$71),19))","v":""},null,{"$f":"IF('Grunddaten-Données de base'!$D$9=\"dt.\",IF($S17<>\"\",IF($N17=\"Lineare Korrektur\",$S17,IF($N17=\"Impex\",$S17*$F17,$G17*$H17)),$G17*$H17),IF($S17<>\"\",IF($N17=\"Correction linéaire\",$S17,IF($N17=\"Impex\",$S17*$F17,$G17*$H17)),$G17*$H17))","v":0},{"$f":"IF('Grunddaten-Données de base'!$D$9=\"dt.\",IF($T17<>\"\",IF($N17=\"Lineare Korrektur\",$T17,IF($N17=\"Impex\",$T17*$F17,$G17*$H17)),$G17*$I17),IF($T17<>\"\",IF($N17=\"Correction linéaire\",$T17,IF($N17=\"Impex\",$T17*$F17,$G17*$I17)),$G17*$I17))","v":0},0,0,null,null,null,{"$f":"IF('Geflügel-Volaille'!$A17=\"\",0,INDEX(Tierkategorien_GRUD!$A$64:$O$69,MATCH('Geflügel-Volaille'!$A17,Tierkategorien_GRUD!$A$64:$A$69),15))","v":0},0,null,{"$f":"IF('Geflügel-Volaille'!$A17=\"\",\"\",INDEX(Tierkategorien_GRUD!$A$64:$P$69,MATCH('Geflügel-Volaille'!$A17,Tierkategorien_GRUD!$A$64:$A$69),16))","v":""},null,{"$f":"IF('Geflügel-Volaille'!$A17=\"\",0,INDEX(Tierkategorien_GRUD!$A$64:$M$71,MATCH('Geflügel-Volaille'!$A17,Tierkategorien_GRUD!$A$64:$A$71),8))","v":0},{"$f":"IF('Geflügel-Volaille'!$A17=\"\",0,INDEX(Tierkategorien_GRUD!$A$64:$M$71,MATCH('Geflügel-Volaille'!$A17,Tierkategorien_GRUD!$A$64:$A$71),10))","v":0},0]
[null,null,{"$f":"IF('Grunddaten-Données de base'!$D$9=\"dt.\",IF('Geflügel-Volaille'!$A18=\"\",\"\",INDEX(Tierkategorien_GRUD!$A$64:$R$71,MATCH('Geflügel-Volaille'!$A18,Tierkategorien_GRUD!$A$64:$A$71),2)),IF('Geflügel-Volaille'!$A18=\"\",\"\",INDEX(Tierkategorien_GRUD!$A$64:$R$71,MATCH('Geflügel-Volaille'!$A18,Tierkategorien_GRUD!$A$64:$A$71),18)))","v":""},null,null,1,0,{"$f":"IF('Geflügel-Volaille'!$A18=\"\",0,INDEX(Tierkategorien_GRUD!$A$64:$F$71,MATCH('Geflügel-Volaille'!$A18,Tierkategorien_GRUD!$A$64:$A$71),3))","v":0},{"$f":"IF('Geflügel-Volaille'!$A18=\"\",0,INDEX(Tierkategorien_GRUD!$A$64:$F$71,MATCH('Geflügel-Volaille'!$A18,Tierkategorien_GRUD!$A$64:$A$71),4))","v":0},{"$f":"IF('Geflügel-Volaille'!$A18=\"\",0,INDEX(Tierkategorien_GRUD!$A$64:$F$71,MATCH('Geflügel-Volaille'!$A18,Tierkategorien_GRUD!$A$64:$A$71),5))","v":0},{"$f":"IF('Geflügel-Volaille'!$A18=\"\",0,INDEX(Tierkategorien_GRUD!$A$64:$F$71,MATCH('Geflügel-Volaille'!$A18,Tierkategorien_GRUD!$A$64:$A$71),6))","v":0},null,{"$f":"IF($A18=\"\",\"\",INDEX(Tierkategorien_GRUD!$A$64:$S$71,MATCH('Geflügel-Volaille'!$A18,Tierkategorien_GRUD!$A$64:$A$71),19))","v":""},null,{"$f":"IF('Grunddaten-Données de base'!$D$9=\"dt.\",IF($S18<>\"\",IF($N18=\"Lineare Korrektur\",$S18,IF($N18=\"Impex\",$S18*$F18,$G18*$H18)),$G18*$H18),IF($S18<>\"\",IF($N18=\"Correction linéaire\",$S18,IF($N18=\"Impex\",$S18*$F18,$G18*$H18)),$G18*$H18))","v":0},{"$f":"IF('Grunddaten-Données de base'!$D$9=\"dt.\",IF($T18<>\"\",IF($N18=\"Lineare Korrektur\",$T18,IF($N18=\"Impex\",$T18*$F18,$G18*$H18)),$G18*$I18),IF($T18<>\"\",IF($N18=\"Correction linéaire\",$T18,IF($N18=\"Impex\",$T18*$F18,$G18*$I18)),$G18*$I18))","v":0},0,0,null,null,null,{"$f":"IF('Geflügel-Volaille'!$A18=\"\",0,INDEX(Tierkategorien_GRUD!$A$64:$O$69,MATCH('Geflügel-Volaille'!$A18,Tierkategorien_GRUD!$A$64:$A$69),15))","v":0},0,null,{"$f":"IF('Geflügel-Volaille'!$A18=\"\",\"\",INDEX(Tierkategorien_GRUD!$A$64:$P$69,MATCH('Geflügel-Volaille'!$A18,Tierkategorien_GRUD!$A$64:$A$69),16))","v":""},null,{"$f":"IF('Geflügel-Volaille'!$A18=\"\",0,INDEX(Tierkategorien_GRUD!$A$64:$M$71,MATCH('Geflügel-Volaille'!$A18,Tierkategorien_GRUD!$A$64:$A$71),8))","v":0},{"$f":"IF('Geflügel-Volaille'!$A18=\"\",0,INDEX(Tierkategorien_GRUD!$A$64:$M$71,MATCH('Geflügel-Volaille'!$A18,Tierkategorien_GRUD!$A$64:$A$71),10))","v":0},0]
[]
[{"$f":"IF('Grunddaten-Données de base'!$D$9=\"dt.\",Texte!A59,Texte!B59)","v":"Total d'éléments nutr. et engrais de ferme"},null,null,null,null,null,null,null,null,null,null,null,null,null,{"$f":"SUM(O4:O19)","v":0},{"$f":"SUM(P4:P19)","v":0},0,0,null,null,null,null,{"$f":"SUM(W4:W19)","v":0},{"$f":"SUMIFS(W4:W18,Y4:Y18,\"Legehennen\")","v":0},null,null,null,null,{"$f":"SUM(AC4:AC19)","v":0}]
[null,null,null,null,null,null,null,null,null,null,null,null,null,null,null,null,null,null,null,null,null,null,null,{"$f":"SUMIFS(W4:W18,Y4:Y18,\"Mastgeflügel\")","v":0}]
[]
[]
[{"$f":"IF('Grunddaten-Données de base'!$D$9=\"dt.\",Texte!A12,Texte!B12)","v":"Fumière 1"},null,null,null,null,null,null,null,null,null,null,null,null,null,{"$f":"SUMIFS(O$4:O$18,$AD$4:$AD$18,IF('Grunddaten-Données de base'!$D$9=\"dt.\",\"04 Mistplatz 1\",\"04 Fumière 1\"),$AC$4:$AC18,\">0\")","v":0},{"$f":"SUMIFS(P$4:P$18,$AD$4:$AD$18,IF('Grunddaten-Données de base'!$D$9=\"dt.\",\"04 Mistplatz 1\",\"04 Fumière 1\"))","v":0},{"$f":"SUMIFS(Q$4:Q$18,$AD$4:$AD$18,IF('Grunddaten-Données de base'!$D$9=\"dt.\",\"04 Mistplatz 1\",\"04 Fumière 1\"))","v":0},{"$f":"SUMIFS(R$4:R$18,$AD$4:$AD$18,IF('Grunddaten-Données de base'!$D$9=\"dt.\",\"04 Mistplatz 1\",\"04 Fumière 1\"))","v":0},null,null,null,null,null,null,null,null,null,null,{"$f":"SUMIFS(AC$4:AC$18,AD$4:AD$18,IF('Grunddaten-Données de base'!D9=\"dt.\",\"04 Mistplatz 1\",\"04 Fumière 1\"))","v":0}]
[{"$f":"IF('Grunddaten-Données de base'!$D$9=\"dt.\",Texte!A13,Texte!B13)","v":"Fumière 2"},null,null,null,null,null,null,null,null,null,null,null,null,null,{"$f":"SUMIFS(O$4:O$18,$AD$4:$AD$18,IF('Grunddaten-Données de base'!$D$9=\"dt.\",\"05 Mistplatz 2\",\"05 Fumière 2\"),$AC$4:$AC18,\">0\")","v":0},{"$f":"SUMIFS(P$4:P$18,$AD$4:$AD$18,IF('Grunddaten-Données de base'!$D$9=\"dt.\",\"05 Mistplatz 2\",\"05 Fumière 2\"),$AC$4:$AC18,\">0\")","v":0},{"$f":"SUMIFS(Q$4:Q$18,$AD$4:$AD$18,IF('Grunddaten-Données de base'!$D$9=\"dt.\",\"05 Mistplatz 2\",\"05 Fumière 2\"),$AC$4:$AC18,\">0\")","v":0},{"$f":"SUMIFS(R$4:R$18,$AD$4:$AD$18,IF('Grunddaten-Données de base'!$D$9=\"dt.\",\"05 Mistplatz 2\",\"05 Fumière 2\"),$AC$4:$AC18,\">0\")","v":0},null,null,null,null,null,null,null,null,null,null,{"$f":"SUMIFS(AC$4:AC$18,AD$4:AD$18,IF('Grunddaten-Données de base'!D9=\"dt.\",\"05 Mistplatz 2\",\"05 Fumière 2\"))","v":0}]
[{"$f":"IF('Grunddaten-Données de base'!$D$9=\"dt.\",Texte!A14,Texte!B14)","v":"Fumière 3"},null,null,null,null,null,null,null,null,null,null,null,null,null,{"$f":"SUMIFS(O$4:O$18,$AD$4:$AD$18,IF('Grunddaten-Données de base'!$D$9=\"dt.\",\"06 Mistplatz 3\",\"06 Fumière 3\"),$AC$4:$AC18,\">0\")","v":0},{"$f":"SUMIFS(P$4:P$18,$AD$4:$AD$18,IF('Grunddaten-Données de base'!$D$9=\"dt.\",\"06 Mistplatz 3\",\"06 Fumière 3\"),$AC$4:$AC18,\">0\")","v":0},{"$f":"SUMIFS(Q$4:Q$18,$AD$4:$AD$18,IF('Grunddaten-Données de base'!$D$9=\"dt.\",\"06 Mistplatz 3\",\"06 Fumière 3\"),$AC$4:$AC18,\">0\")","v":0},{"$f":"SUMIFS(R$4:R$18,$AD$4:$AD$18,IF('Grunddaten-Données de base'!$D$9=\"dt.\",\"06 Mistplatz 3\",\"06 Fumière 3\"),$AC$4:$AC18,\">0\")","v":0},null,null,null,null,null,null,null,null,null,null,{"$f":"SUMIFS(AC$4:AC$18,AD$4:AD$18,IF('Grunddaten-Données de base'!D9=\"dt.\",\"06 Mistplatz 3\",\"06 Fumière 3\"))","v":0}]
[]
[null,null,null,null,null,null,null,null,null,null,null,null,null,null,{"$f":"SUM(O23:O26)","v":0},{"$f":"SUM(P23:P26)","v":0},{"$f":"SUM(Q23:Q26)","v":0},{"$f":"SUM(R23:R26)","v":0},null,null,null,null,null,null,null,null,null,null,{"$f":"SUM(AC24:AC26)","v":0}]
[null,null,null,null,null,null,null,null,null,null,null,null,null,null,null,null,null,null,null,null,null,null,null,null,null,null,null,null,null,{"$f":"IF(AC20<>AC28,IF('Grunddaten-Données de base'!$D$9=\"dt.\",\"Achtung! Fehler in der Zuteilung!\",\"Attention! Faute dans la distribution !\"),\"\")","v":""}]

{"sheet":"Oberflächen-Surfaces","index":6,"n_rows":34,"n_cols":7,"rows_kept":34,"cut":false,"hidden":false,"merged":[]}
[{"$f":"IF('Grunddaten-Données de base'!$D$9=\"dt.\",Texte!A3,Texte!B3)","v":"Surfaces non-couvertes reliées aux fosses"}]
[{"$f":"IF('Grunddaten-Données de base'!$D$9=\"dt.\",Texte!A4,Texte!B4)","v":"Fosses incl. canivaux (non-couvertes)"},{"$f":"IF('Grunddaten-Données de base'!$D$9=\"dt.\",Texte!A25,Texte!B25)","v":"Surface non couverte (m2)"},{"$f":"IF('Grunddaten-Données de base'!$D$9=\"dt.\",Texte!A26,Texte!B26)","v":"couvert"},{"$f":"IF('Grunddaten-Données de base'!$D$9=\"dt.\",Texte!A27,Texte!B27)","v":"Eau (m3 / année)"},{"$f":"IF('Grunddaten-Données de base'!$D$9=\"dt.\",Texte!A56,Texte!B56)","v":"Fosse à lisier"},null,{"$f":"IF('Grunddaten-Données de base'!$D$9=\"dt.\",Texte!A32,Texte!B32)","v":"Propre désignation (facultative)"}]
[{"$f":"IF('Grunddaten-Données de base'!$D$9=\"dt.\",Texte!A9,Texte!B9)","v":"Fosse 1"},null,"nein",{"$f":"IF($C3=IF('Grunddaten-Données de base'!$D$9=\"dt.\",\"Ja\",\"oui\"),0,$B3*Wasser_GRUD!$C$15*('Grunddaten-Données de base'!$D$11/1000))","v":0},{"$f":"IF('Grunddaten-Données de base'!$D$9=\"dt.\",Texte!A28,Texte!B28)","v":"01 Fosse 1"}]
[{"$f":"IF('Grunddaten-Données de base'!$D$9=\"dt.\",Texte!A10,Texte!B10)","v":"Fosse 2"},null,"Nein",{"$f":"IF($C4=IF('Grunddaten-Données de base'!$D$9=\"dt.\",\"Ja\",\"oui\"),0,$B4*Wasser_GRUD!$C$15*('Grunddaten-Données de base'!$D$11/1000))","v":0},{"$f":"IF('Grunddaten-Données de base'!$D$9=\"dt.\",Texte!A29,Texte!B29)","v":"02 Fosse 2"}]
[{"$f":"IF('Grunddaten-Données de base'!$D$9=\"dt.\",Texte!A11,Texte!B11)","v":"Fosse 3"},null,"Nein",{"$f":"IF($C5=IF('Grunddaten-Données de base'!$D$9=\"dt.\",\"Ja\",\"oui\"),0,$B5*Wasser_GRUD!$C$15*('Grunddaten-Données de base'!$D$11/1000))","v":0},{"$f":"IF('Grunddaten-Données de base'!$D$9=\"dt.\",Texte!A30,Texte!B30)","v":"03 Fosse 3"}]
[]
[{"$f":"IF('Grunddaten-Données de base'!$D$9=\"dt.\",Texte!A5,Texte!B5)","v":"Fumières (non-couvertes)"},{"$f":"IF('Grunddaten-Données de base'!$D$9=\"dt.\",Texte!A24,Texte!B24)","v":"Surface (m2)"},null,null,{"$f":"IF('Grunddaten-Données de base'!$D$9=\"dt.\",Texte!A31,Texte!B31)","v":"Relié à la fosse .."},null,{"$f":"IF('Grunddaten-Données de base'!$D$9=\"dt.\",Texte!A32,Texte!B32)","v":"Propre désignation (facultative)"}]
[{"$f":"IF('Grunddaten-Données de base'!$D$9=\"dt.\",Texte!A12,Texte!B12)","v":"Fumière 1"},null,"Nein",{"$f":"IF($C8=IF('Grunddaten-Données de base'!$D$9=\"dt.\",\"Ja\",\"oui\"),0,$B8*Wasser_GRUD!$C$15*('Grunddaten-Données de base'!$D$11/1000))","v":0}]
[{"$f":"IF('Grunddaten-Données de base'!$D$9=\"dt.\",Texte!A13,Texte!B13)","v":"Fumière 2"},null,"Nein",{"$f":"IF($C9=IF('Grunddaten-Données de base'!$D$9=\"dt.\",\"Ja\",\"oui\"),0,$B9*Wasser_GRUD!$C$15*('Grunddaten-Données de base'!$D$11/1000))","v":0}]
[{"$f":"IF('Grunddaten-Données de base'!$D$9=\"dt.\",Texte!A14,Texte!B14)","v":"Fumière 3"},null,"Nein",{"$f":"IF($C10=IF('Grunddaten-Données de base'!$D$9=\"dt.\",\"Ja\",\"oui\"),0,$B10*Wasser_GRUD!$C$15*('Grunddaten-Données de base'!$D$11/1000))","v":0}]
[]
[{"$f":"IF('Grunddaten-Données de base'!$D$9=\"dt.\",Texte!A6,Texte!B6)","v":"Silos non-couverts (reliés à une fosse)"},{"$f":"IF('Grunddaten-Données de base'!$D$9=\"dt.\",Texte!A24,Texte!B24)","v":"Surface (m2)"}]
[{"$f":"IF('Grunddaten-Données de base'!$D$9=\"dt.\",Texte!A15,Texte!B15)","v":"Silo 1 (partie non-couverte)"},null,"Nein",{"$f":"IF($C13=IF('Grunddaten-Données de base'!$D$9=\"dt.\",\"Ja\",\"oui\"),0,$B13*Wasser_GRUD!$C$17*('Grunddaten-Données de base'!$D$11/1000))","v":0}]
[{"$f":"IF('Grunddaten-Données de base'!$D$9=\"dt.\",Texte!A16,Texte!B16)","v":"Silo 2 (partie non-couverte)"},null,"Nein",{"$f":"IF($C14=IF('Grunddaten-Données de base'!$D$9=\"dt.\",\"Ja\",\"oui\"),0,$B14*Wasser_GRUD!$C$17*('Grunddaten-Données de base'!$D$11/1000))","v":0}]
[{"$f":"IF('Grunddaten-Données de base'!$D$9=\"dt.\",Texte!A17,Texte!B17)","v":"Silo 3 (partie non-couverte)"},null,"Nein",{"$f":"IF($C15=IF('Grunddaten-Données de base'!$D$9=\"dt.\",\"Ja\",\"oui\"),0,$B15*Wasser_GRUD!$C$17*('Grunddaten-Données de base'!$D$11/1000))","v":0}]
[]
[{"$f":"IF('Grunddaten-Données de base'!$D$9=\"dt.\",Texte!A7,Texte!B7)","v":"Courettes non-couvertes (reliées à une fosse)"},{"$f":"IF('Grunddaten-Données de base'!$D$9=\"dt.\",Texte!A24,Texte!B24)","v":"Surface (m2)"}]
[{"$f":"IF('Grunddaten-Données de base'!$D$9=\"dt.\",Texte!A18,Texte!B18)","v":"Courette 1 (partie non couverte)"},null,{"$f":"IF('Grunddaten-Données de base'!$D$9=\"dt.\",Texte!A33,Texte!B33)","v":"Non"},{"$f":"IF($C5=IF('Grunddaten-Données de base'!$D$9=\"dt.\",\"Ja\",\"oui\"),0,$B18*Wasser_GRUD!$C$15*('Grunddaten-Données de base'!$D$11/1000))","v":0}]
[{"$f":"IF('Grunddaten-Données de base'!$D$9=\"dt.\",Texte!A19,Texte!B19)","v":"Courette 2 (partie non couverte)"},null,{"$f":"IF('Grunddaten-Données de base'!$D$9=\"dt.\",Texte!A33,Texte!B33)","v":"Non"},{"$f":"IF($C6=IF('Grunddaten-Données de base'!$D$9=\"dt.\",\"Ja\",\"oui\"),0,$B19*Wasser_GRUD!$C$15*('Grunddaten-Données de base'!$D$11/1000))","v":0}]
[{"$f":"IF('Grunddaten-Données de base'!$D$9=\"dt.\",Texte!A20,Texte!B20)","v":"Courette 3 (partie non couverte)"},null,{"$f":"IF('Grunddaten-Données de base'!$D$9=\"dt.\",Texte!A33,Texte!B33)","v":"Non"},{"$f":"IF($C7=IF('Grunddaten-Données de base'!$D$9=\"dt.\",\"Ja\",\"oui\"),0,$B20*Wasser_GRUD!$C$15*('Grunddaten-Données de base'!$D$11/1000))","v":0}]
[]
[{"$f":"IF('Grunddaten-Données de base'!$D$9=\"dt.\",Texte!A8,Texte!B8)","v":"Places de lavage (reliées à une fosse)"},{"$f":"IF('Grunddaten-Données de base'!$D$9=\"dt.\",Texte!A24,Texte!B24)","v":"Surface (m2)"}]
[{"$f":"IF('Grunddaten-Données de base'!$D$9=\"dt.\",Texte!A21,Texte!B21)","v":"Place de lavage 1 (partie non-couverte)"},null,{"$f":"IF('Grunddaten-Données de base'!$D$9=\"dt.\",Texte!A33,Texte!B33)","v":"Non"},{"$f":"IF($C5=IF('Grunddaten-Données de base'!$D$9=\"dt.\",\"Ja\",\"oui\"),0,$B23*Wasser_GRUD!$C$15*('Grunddaten-Données de base'!$D$11/1000))","v":0}]
[{"$f":"IF('Grunddaten-Données de base'!$D$9=\"dt.\",Texte!A22,Texte!B22)","v":"Place de lavage 2 (partie non-couverte)"},null,{"$f":"IF('Grunddaten-Données de base'!$D$9=\"dt.\",Texte!A33,Texte!B33)","v":"Non"},{"$f":"IF($C6=IF('Grunddaten-Données de base'!$D$9=\"dt.\",\"Ja\",\"oui\"),0,$B24*Wasser_GRUD!$C$15*('Grunddaten-Données de base'!$D$11/1000))","v":0}]
[{"$f":"IF('Grunddaten-Données de base'!$D$9=\"dt.\",Texte!A23,Texte!B23)","v":"Place de lavage 3 (partie non-couverte)"},null,{"$f":"IF('Grunddaten-Données de base'!$D$9=\"dt.\",Texte!A33,Texte!B33)","v":"Non"},{"$f":"IF($C7=IF('Grunddaten-Données de base'!$D$9=\"dt.\",\"Ja\",\"oui\"),0,$B25*Wasser_GRUD!$C$15*('Grunddaten-Données de base'!$D$11/1000))","v":0}]
[]
[{"$f":"IF('Grunddaten-Données de base'!$D$9=\"dt.\",Texte!A60,Texte!B60)","v":"Total"},null,null,{"$f":"SUM(D3:D25)","v":0}]
[]
[{"$f":"IF('Grunddaten-Données de base'!$D$9=\"dt.\",Texte!A9,Texte!B9)","v":"Fosse 1"},null,null,{"$f":"SUMIFS(D$3:D$25,E$3:E$25,IF('Grunddaten-Données de base'!$D$9=\"dt.\",\"01 Gülle Grube 1\",\"01 Fosse 1\"))","v":0}]
[{"$f":"IF('Grunddaten-Données de base'!$D$9=\"dt.\",Texte!A10,Texte!B10)","v":"Fosse 2"},null,null,{"$f":"SUMIFS(D$3:D$25,E$3:E$25,IF('Grunddaten-Données de base'!$D$9=\"dt.\",\"02 Gülle Grube 2\",\"02 Fosse 2\"))","v":0}]
[{"$f":"IF('Grunddaten-Données de base'!$D$9=\"dt.\",Texte!A11,Texte!B11)","v":"Fosse 3"},null,null,{"$f":"SUMIFS(D$3:D$25,E$3:E$25,IF('Grunddaten-Données de base'!$D$9=\"dt.\",\"03 Gülle Grube 3\",\"03 Fosse 3\"))","v":0}]
[]
[null,null,null,{"$f":"SUM(D29:D31)","v":0},{"$f":"IF($D$27<>$D$33,IF('Grunddaten-Données de base'!$D$9=\"dt.\",\"Achtung! Fehler in der Zuteilung!\",\"Attention! Faute dans la distribution !\"),\"\")","v":""}]
[null,null,null,null,{"$f":"IF($D$27<>$D$33,IF('Grunddaten-Données de base'!$D$9=\"dt.\",\"Achtung! Fehler in der Zuteilung!\",\"Attention! Faute dans la distribution !\"),\"\")","v":""}]

{"sheet":" Wasser-Eau","index":7,"n_rows":37,"n_cols":22,"rows_kept":37,"cut":false,"hidden":false,"merged":[[22,2,22,4],[17,2,17,4],[18,2,18,4],[19,2,19,4],[20,2,20,4],[21,2,21,4],[22,0,22,1],[17,0,17,1],[18,0,18,1],[19,0,19,1],[20,0,20,1],[21,0,21,1]]}
[]
[{"$f":"IF('Grunddaten-Données de base'!$D$9=\"dt.\",Texte!A72,Texte!B72)","v":"Eau de nettoyage des écuries et soins aux animaux"},null,null,null,null,null,null,null,null,{"$f":"IF('Grunddaten-Données de base'!D9=\"dt.\",Texte!A97,Texte!B97)","v":"m3/an"},{"$f":"IF('Grunddaten-Données de base'!$D$9=\"dt.\",Texte!A56,Texte!B56)","v":"Fosse à lisier"},null,null,null,null,null,null,null,null,{"$f":"IF('Grunddaten-Données de base'!$D$9=\"dt.\",Texte!A9,Texte!B9)","v":"Fosse 1"},{"$f":"IF('Grunddaten-Données de base'!$D$9=\"dt.\",Texte!A10,Texte!B10)","v":"Fosse 2"},{"$f":"IF('Grunddaten-Données de base'!$D$9=\"dt.\",Texte!A11,Texte!B11)","v":"Fosse 3"}]
[null,null,null,null,null,null,null,null,null,null,null,null,null,null,null,null,null,null,null,{"$f":"IF('Grunddaten-Données de base'!D9=\"dt.\",Texte!A97,Texte!B97)","v":"m3/an"},{"$f":"IF('Grunddaten-Données de base'!D9=\"dt.\",Texte!A97,Texte!B97)","v":"m3/an"},{"$f":"IF('Grunddaten-Données de base'!D9=\"dt.\",Texte!A97,Texte!B97)","v":"m3/an"}]
[{"$f":"IF('Grunddaten-Données de base'!$D$9=\"dt.\",Texte!A72,Texte!B72)","v":"Eau de nettoyage des écuries et soins aux animaux"}]
[{"$f":"IF('Grunddaten-Données de base'!$D$9=\"dt.\",Texte!A74,Texte!B74)","v":"Bovins: Nettoyage des écuries et soins aux animaux"},{"$f":"'Rindvieh-Bovins'!W22","v":0},{"$f":"IF('Grunddaten-Données de base'!$D$9=\"dt.\",Texte!A93,Texte!B93)","v":"UGB"},7,{"$f":"IF('Grunddaten-Données de base'!$D$9=\"dt.\",Texte!A97,Texte!B97)","v":"m3/an"},null,null,null,null,{"$f":"'Rindvieh-Bovins'!$W$22*D5","v":0},null,null,{"$f":"'Rindvieh-Bovins'!AQ24","v":0},{"$f":"'Rindvieh-Bovins'!AQ25","v":0},{"$f":"'Rindvieh-Bovins'!AQ26","v":0},{"$f":"SUM(M5:O5)","v":0},{"$f":"$M5/IF($P5=0,1,$P5)","v":0},{"$f":"$N5/IF($P5=0,1,$P5)","v":0},{"$f":"$O5/IF($P5=0,1,$P5)","v":0},{"$f":"$J5*$Q5","v":0},{"$f":"$J5*$R5","v":0},{"$f":"$J5*$S5","v":0}]
[{"$f":"IF('Grunddaten-Données de base'!$D$9=\"dt.\",Texte!A75,Texte!B75)","v":"Bovins: Utilisation de canivaux"},0,{"$f":"IF('Grunddaten-Données de base'!$D$9=\"dt.\",Texte!A93,Texte!B93)","v":"UGB"},6,{"$f":"IF('Grunddaten-Données de base'!$D$9=\"dt.\",Texte!A97,Texte!B97)","v":"m3/an"},null,null,null,null,{"$f":"B6*D6","v":0},null,null,{"$f":"'Rindvieh-Bovins'!AQ24","v":0},{"$f":"'Rindvieh-Bovins'!AQ25","v":0},{"$f":"'Rindvieh-Bovins'!AQ26","v":0},{"$f":"SUM(M6:O6)","v":0},{"$f":"$M6/IF($P6=0,1,$P6)","v":0},{"$f":"$N6/IF($P6=0,1,$P6)","v":0},{"$f":"$O6/IF($P6=0,1,$P6)","v":0},{"$f":"$J6*$Q6","v":0},{"$f":"$J6*$R6","v":0},{"$f":"$J6*$S6","v":0}]
[{"$f":"IF('Grunddaten-Données de base'!$D$9=\"dt.\",Texte!A76,Texte!B76)","v":"Porcs: Nettoyage des écuries et soins aux animaux"},{"$f":"'Schweine-Porcs'!X26","v":0},{"$f":"IF('Grunddaten-Données de base'!$D$9=\"dt.\",Texte!A94,Texte!B94)","v":"PPE"},0.5,{"$f":"IF('Grunddaten-Données de base'!$D$9=\"dt.\",Texte!A97,Texte!B97)","v":"m3/an"},null,null,null,null,{"$f":"'Schweine-Porcs'!X26*D7","v":0},null,null,{"$f":"'Schweine-Porcs'!AB28","v":0},{"$f":"'Schweine-Porcs'!AB29","v":0},{"$f":"'Schweine-Porcs'!AB30","v":0},{"$f":"SUM(M7:O7)","v":0},0,0,0,0,0,0]
[]
[{"$f":"IF('Grunddaten-Données de base'!$D$9=\"dt.\",Texte!A77,Texte!B77)","v":"Nettoyage du poulialler à poules pondeuses"},{"$f":"'Geflügel-Volaille'!X20","v":0},{"$f":"IF('Grunddaten-Données de base'!$D$9=\"dt.\",Texte!A95,Texte!B95)","v":"1000 PPP"},2.5,{"$f":"IF('Grunddaten-Données de base'!$D$9=\"dt.\",Texte!A97,Texte!B97)","v":"m3/an"},null,null,null,null,{"$f":"SUMIFS('Geflügel-Volaille'!$G$4:'Geflügel-Volaille'!$G$18,'Geflügel-Volaille'!$Y$4:'Geflügel-Volaille'!$Y$18,\"Legehennen\")*100/1000*D9","v":0},"02 Gülle Grube 2"]
[{"$f":"IF('Grunddaten-Données de base'!$D$9=\"dt.\",Texte!A78,Texte!B78)","v":"Nettoyage des halles à poulets"},{"$f":"'Geflügel-Volaille'!X21","v":0},{"$f":"IF('Grunddaten-Données de base'!$D$9=\"dt.\",Texte!A96,Texte!B96)","v":"1000 PPM"},5,{"$f":"IF('Grunddaten-Données de base'!$D$9=\"dt.\",Texte!A97,Texte!B97)","v":"m3/an"},null,null,null,null,{"$f":"SUMIFS('Geflügel-Volaille'!$G$4:'Geflügel-Volaille'!$G$18,'Geflügel-Volaille'!$Y$4:'Geflügel-Volaille'!$Y$18,\"Mastgeflügel\")*100/1000*D10","v":0},"02 Gülle Grube 2"]
[{"$f":"IF('Grunddaten-Données de base'!$D$9=\"dt.\",Texte!A79,Texte!B79)","v":"Chevaux"},{"$f":"'A. RF-Verzehrer-A.a.cons. du FG'!Y22","v":0},{"$f":"IF('Grunddaten-Données de base'!$D$9=\"dt.\",Texte!A93,Texte!B93)","v":"UGB"},2.2999999999999998,{"$f":"IF('Grunddaten-Données de base'!$D$9=\"dt.\",Texte!A97,Texte!B97)","v":"m3/an"},null,null,null,null,{"$f":"'A. RF-Verzehrer-A.a.cons. du FG'!Y22*D11","v":0},"01 Gülle Grube 1"]
[{"$f":"IF('Grunddaten-Données de base'!$D$9=\"dt.\",Texte!A80,Texte!B80)","v":"Brebis laitiers"},{"$f":"'A. RF-Verzehrer-A.a.cons. du FG'!Y22","v":0},{"$f":"IF('Grunddaten-Données de base'!$D$9=\"dt.\",Texte!A93,Texte!B93)","v":"UGB"},0.5,{"$f":"IF('Grunddaten-Données de base'!$D$9=\"dt.\",Texte!A97,Texte!B97)","v":"m3/an"},null,null,null,null,{"$f":"'A. RF-Verzehrer-A.a.cons. du FG'!Y22*D12","v":0},"03 Gülle Grube 3"]
[{"$f":"IF('Grunddaten-Données de base'!$D$9=\"dt.\",Texte!A81,Texte!B81)","v":"Chèvres traites"},{"$f":"'A. RF-Verzehrer-A.a.cons. du FG'!Y24","v":0},{"$f":"IF('Grunddaten-Données de base'!$D$9=\"dt.\",Texte!A93,Texte!B93)","v":"UGB"},0.5,{"$f":"IF('Grunddaten-Données de base'!$D$9=\"dt.\",Texte!A97,Texte!B97)","v":"m3/an"}]
[{"$f":"IF('Grunddaten-Données de base'!$D$9=\"dt.\",Texte!A82,Texte!B82)","v":"Lapins"},{"$f":"'A. RF-Verzehrer-A.a.cons. du FG'!Y25","v":0},{"$f":"IF('Grunddaten-Données de base'!$D$9=\"dt.\",Texte!A93,Texte!B93)","v":"UGB"},0.5,{"$f":"IF('Grunddaten-Données de base'!$D$9=\"dt.\",Texte!A97,Texte!B97)","v":"m3/an"}]
[]
[]
[{"$f":"IF('Grunddaten-Données de base'!$D$9=\"dt.\",Texte!A83,Texte!B83)","v":"Nettoyage en cas de production laitière"},null,null,null,null,null,null,{"$f":"IF('Grunddaten-Données de base'!$D$9=\"dt.\",Texte!A103,Texte!B103)","v":"m3/unité"}]
[{"$f":"IF('Grunddaten-Données de base'!$D$9=\"dt.\",Texte!A84,Texte!B84)","v":"01 Chambre à lait"},null,{"$f":"IF('Grunddaten-Données de base'!$D$9=\"dt.\",Texte!A98,Texte!B98)","v":"Nombre d'unités de traite (UT)"},null,null,null,null,6.6,null,{"$f":"F18*H18","v":0}]
[{"$f":"IF('Grunddaten-Données de base'!$D$9=\"dt.\",Texte!A85,Texte!B85)","v":"02 Tank à lait"},null,{"$f":"IF('Grunddaten-Données de base'!$D$9=\"dt.\",Texte!A99,Texte!B99)","v":"Volume du tank (en litres)"},null,null,null,null,1.7999999999999999E-2,null,0]
[{"$f":"IF('Grunddaten-Données de base'!$D$9=\"dt.\",Texte!A86,Texte!B86)","v":"03 Système de traite à pot"},null,{"$f":"IF('Grunddaten-Données de base'!$D$9=\"dt.\",Texte!A100,Texte!B100)","v":"Nombre UT"},null,null,null,null,42,null,0]
[{"$f":"IF('Grunddaten-Données de base'!$D$9=\"dt.\",Texte!A87,Texte!B87)","v":"04 Système de traite à tuyau (à l'attache ou salle de traite)"},null,{"$f":"IF('Grunddaten-Données de base'!$D$9=\"dt.\",Texte!A100,Texte!B100)","v":"Nombre UT"},null,null,null,null,54,null,0]
[{"$f":"IF('Grunddaten-Données de base'!$D$9=\"dt.\",Texte!A88,Texte!B88)","v":"05 Nombre de places dans la salle de traite"},null,{"$f":"IF('Grunddaten-Données de base'!$D$9=\"dt.\",Texte!A101,Texte!B101)","v":"Nombre de places"},null,null,null,null,6,null,0]
[{"$f":"IF('Grunddaten-Données de base'!$D$9=\"dt.\",Texte!A89,Texte!B89)","v":"06 Système de traite automatisé (STA)"},null,{"$f":"IF('Grunddaten-Données de base'!$D$9=\"dt.\",Texte!A102,Texte!B102)","v":"Nombre d'unités"},null,null,null,null,300,null,0]
[]
[{"$f":"IF('Grunddaten-Données de base'!$D$9=\"dt.\",Texte!A90,Texte!B90)","v":"Eaux usées du ménage"},null,null,null,null,null,null,null,null,{"$f":"IF('Grunddaten-Données de base'!$D$9=\"dt.\",IF('Grunddaten-Données de base'!D15=\"Nein\",0,IF('Grunddaten-Données de base'!D17=\"Normale Verhältnisse (Dusche/Bad, WC, Waschmachine)\",'Grunddaten-Données de base'!D18*Wasser_GRUD!D29,IF('Grunddaten-Données de base'!D17=\"Einfache sanitäre Einrichtungen\",'Grunddaten-Données de base'!D18*Wasser_GRUD!D30,'Grunddaten-Données de base'!D18*Wasser_GRUD!D31))),IF('Grunddaten-Données de base'!D15=\"Non\",0,IF('Grunddaten-Données de base'!D17=\"Conditions normales (Douche/bain, WC, machine à laver)\",'Grunddaten-Données de base'!D18*Wasser_GRUD!D29,IF('Grunddaten-Données de base'!D17=\"Installation sanitaire simple\",'Grunddaten-Données de base'!D18*Wasser_GRUD!D30,'Grunddaten-Données de base'!D18*Wasser_GRUD!D31))))","v":0}]
[]
[]
[{"$f":"IF('Grunddaten-Données de base'!$D$9=\"dt.\",Texte!A91,Texte!B91)","v":"Total eau"},null,null,null,null,null,null,null,null,{"$f":"SUM(J5:J25)","v":0}]
[null,null,null,null,null,null,null,null,null,null,{"$f":"SUM(J5:J25)","v":0}]
[]
[{"$f":"IF('Grunddaten-Données de base'!$D$9=\"dt.\",Texte!A92,Texte!B92)","v":"Total eau par fosse"}]
[{"$f":"IF('Grunddaten-Données de base'!$D$9=\"dt.\",Texte!A9,Texte!B9)","v":"Fosse 1"},null,null,null,null,null,null,null,null,{"$f":"SUM(T5:T7)+SUMIFS(J$9:J$25,K$9:K$25,IF('Grunddaten-Données de base'!$D$9=\"dt.\",\"01 Gülle Grube 1\",\"01 Fosse 1\"))","v":0}]
[{"$f":"IF('Grunddaten-Données de base'!$D$9=\"dt.\",Texte!A10,Texte!B10)","v":"Fosse 2"},null,null,null,null,null,null,null,null,{"$f":"SUM(U5:U7)+SUMIFS(J$9:J$25,K$9:K$25,IF('Grunddaten-Données de base'!$D$9=\"dt.\",\"02 Gülle Grube 2\",\"02 Fosse 2\"))","v":0}]
[{"$f":"IF('Grunddaten-Données de base'!$D$9=\"dt.\",Texte!A11,Texte!B11)","v":"Fosse 3"},null,null,null,null,null,null,null,null,{"$f":"SUM(V5:V7)+SUMIFS(J$9:J$25,K$9:K$25,IF('Grunddaten-Données de base'!$D$9=\"dt.\",\"03 Gülle Grube 3\",\"03 Fosse 3\"))","v":0}]
[]
[null,null,null,null,null,null,null,null,null,{"$f":"SUM(J32:J34)","v":0}]
[null,null,null,null,null,null,null,null,null,null,{"$f":"IF($K$29<>$J$36,IF('Grunddaten-Données de base'!$D$9=\"dt.\",\"Achtung! Fehler in der Zuteilung!\",\"Attention! Faute dans la distribution !\"),\"\")","v":""}]

{"sheet":"Resultat-Résultat","index":8,"n_rows":31,"n_cols":19,"rows_kept":31,"cut":false,"hidden":false,"merged":[[0,11,0,16],[6,11,6,16],[4,11,4,16],[1,11,1,16],[2,11,2,16],[3,11,3,16],[5,11,5,16],[30,13,30,16],[10,1,10,4],[23,13,23,16],[17,13,17,16],[7,11,7,16],[11,11,11,16]]}
[{"$f":"IF('Grunddaten-Données de base'!$D$9=\"dt.\",Texte!A105,Texte!B105)","v":"Exploitation"},null,null,null,null,null,null,null,null,null,{"$f":"IF('Grunddaten-Données de base'!$D$9=\"dt.\",Texte!A56,Texte!B56)","v":"Fosse à lisier"},{"$f":"IF('Grunddaten-Données de base'!$D$9=\"dt.\",Texte!A121,Texte!B121)","v":"Désignation"}]
[{"$f":"IF('Grunddaten-Données de base'!$D$9=\"dt.\",Texte!A106,Texte!B106)","v":"No cantonal d'exploitation"},{"$f":"'Grunddaten-Données de base'!D1","v":0},null,null,null,null,null,null,null,null,{"$f":"A20","v":"Fosse 1"},{"$f":"'Oberflächen-Surfaces'!G3","v":0}]
[{"$f":"IF('Grunddaten-Données de base'!$D$9=\"dt.\",Texte!A107,Texte!B107)","v":"Nom de l'exploitation"},{"$f":"'Grunddaten-Données de base'!D3","v":0},null,null,null,null,null,null,null,null,{"$f":"A21","v":"Fosse 2"},{"$f":"'Oberflächen-Surfaces'!G4","v":0}]
["Adresse",{"$f":"'Grunddaten-Données de base'!D5","v":0},null,null,null,null,null,null,null,null,"Fosse 3",{"$f":"'Oberflächen-Surfaces'!G5","v":0}]
[{"$f":"IF('Grunddaten-Données de base'!$D$9=\"dt.\",Texte!A108,Texte!B108)","v":"NP / Lieu"},{"$f":"'Grunddaten-Données de base'!D7","v":0},null,null,null,null,null,null,null,null,{"$f":"IF('Grunddaten-Données de base'!$D$9=\"dt.\",Texte!A58,Texte!B58)","v":"Fumière"},{"$f":"IF('Grunddaten-Données de base'!$D$9=\"dt.\",Texte!A121,Texte!B121)","v":"Désignation"}]
[null,null,null,null,null,null,null,null,null,null,{"$f":"A26","v":"Fumière 1"},{"$f":"'Oberflächen-Surfaces'!G8","v":0}]
[null,null,null,null,null,null,null,null,null,null,{"$f":"A27","v":"Fumière 2"},{"$f":"'Oberflächen-Surfaces'!G9","v":0}]
[null,null,null,null,null,null,null,null,null,null,"Fumière 2",{"$f":"'Oberflächen-Surfaces'!G10","v":0}]
[]
[{"$f":"IF('Grunddaten-Données de base'!$D$9=\"dt.\",Texte!A109,Texte!B109)","v":"Teneurs des engrais de ferme en kg/m3 resp.kg/t (pour report sur HODUFLU)"}]
[{"$f":"IF('Grunddaten-Données de base'!$D$9=\"dt.\",Texte!A110,Texte!B110)","v":"Détention des animaux"},{"$f":"IF('Grunddaten-Données de base'!$D$9=\"dt.\",Texte!A111,Texte!B111)","v":"Apport en éléments nutritifs"},null,null,null,null,{"$f":"IF('Grunddaten-Données de base'!$D$9=\"dt.\",Texte!A112,Texte!B112)","v":"Prod. de lisier (m3)"},{"$f":"IF('Grunddaten-Données de base'!$D$9=\"dt.\",Texte!A113,Texte!B113)","v":"Prod. de fumier (t)"}]
[null,{"$f":"IF('Grunddaten-Données de base'!$D$9=\"dt.\",Texte!A45,Texte!B45)","v":"Nstock"},"P2O5","K2O","Mg",null,null,null,null,null,null,{"$f":"IF('Grunddaten-Données de base'!$D$9=\"dt.\",Texte!A122,Texte!B122)","v":"Imprimer les données de la détention des animaux"}]
[{"$f":"IF('Grunddaten-Données de base'!$D$9=\"dt.\",Texte!A36,Texte!B36)","v":"Bovins"},{"$f":"'Rindvieh-Bovins'!Q22","v":0},{"$f":"'Rindvieh-Bovins'!R22","v":0},{"$f":"'Rindvieh-Bovins'!S22","v":0},{"$f":"'Rindvieh-Bovins'!T22","v":0},null,{"$f":"'Rindvieh-Bovins'!AI22+'Rindvieh-Bovins'!AK22","v":0},{"$f":"'Rindvieh-Bovins'!AM22+'Rindvieh-Bovins'!AO22","v":0}]
[{"$f":"IF('Grunddaten-Données de base'!$D$9=\"dt.\",Texte!A62,Texte!B62)","v":"Autres animaux consommant des fourrages grossiers"},{"$f":"'A. RF-Verzehrer-A.a.cons. du FG'!M20","v":0},{"$f":"'A. RF-Verzehrer-A.a.cons. du FG'!N20","v":0},{"$f":"'A. RF-Verzehrer-A.a.cons. du FG'!O20","v":0},{"$f":"'A. RF-Verzehrer-A.a.cons. du FG'!P20","v":0},null,null,{"$f":"'A. RF-Verzehrer-A.a.cons. du FG'!V20","v":0}]
[{"$f":"IF('Grunddaten-Données de base'!$D$9=\"dt.\",Texte!A64,Texte!B64)","v":"Porcs"},{"$f":"'Schweine-Porcs'!Q25","v":0},{"$f":"'Schweine-Porcs'!R25","v":0},{"$f":"'Schweine-Porcs'!S25","v":0},{"$f":"'Schweine-Porcs'!T25","v":0},null,{"$f":"'Schweine-Porcs'!AB25","v":0},{"$f":"'Schweine-Porcs'!AE25","v":0},null,{"$f":"IF('Schweine-Porcs'!R20<>0,IF('Grunddaten-Données de base'!$D$9=\"dt.\",\"mit Impex\",\"avec Impex\"),\"\")","v":""},{"$f":"IF('Schweine-Porcs'!V20<>0,IF('Grunddaten-Données de base'!$D$9=\"dt.\",\"mit LK\",\"avec CL\"),\"\")","v":""}]
[{"$f":"IF('Grunddaten-Données de base'!$D$9=\"dt.\",Texte!A69,Texte!B69)","v":"Volaille"},{"$f":"'Geflügel-Volaille'!O20","v":0},{"$f":"'Geflügel-Volaille'!P20","v":0},{"$f":"'Geflügel-Volaille'!Q20","v":0},{"$f":"'Geflügel-Volaille'!R20","v":0},null,null,{"$f":"'Geflügel-Volaille'!AC20","v":0},null,{"$f":"IF('Geflügel-Volaille'!T20<>0,IF('Grunddaten-Données de base'!$D$9=\"dt.\",\"mit Impex und/oder LK\",\"avec Impex et/ou CL\"),\"\")","v":""}]
[{"$f":"IF('Grunddaten-Données de base'!$D$9=\"dt.\",Texte!A60,Texte!B60)","v":"Total"},{"$f":"SUM(B13:B16)","v":0},{"$f":"SUM(C13:C16)","v":0},0,0,null,{"$f":"SUM(G13:G16)","v":0},{"$f":"SUM(H13:H16)","v":0}]
[null,null,null,null,null,null,null,null,null,null,null,null,null,{"$f":"IF('Grunddaten-Données de base'!$D$9=\"dt.\",Texte!A114,Texte!B114)","v":"Teneurs en kg / m3"}]
[{"$f":"IF('Grunddaten-Données de base'!$D$9=\"dt.\",Texte!A49,Texte!B49)","v":"Lisier"},{"$f":"IF('Grunddaten-Données de base'!$D$9=\"dt.\",Texte!A45,Texte!B45)","v":"Nstock"},"P2O5","K2O","Mg",null,null,null,{"$f":"IF('Grunddaten-Données de base'!$D$9=\"dt.\",Texte!A115,Texte!B115)","v":"m3 de lisier non-dilué"},{"$f":"IF('Grunddaten-Données de base'!$D$9=\"dt.\",Texte!A116,Texte!B116)","v":"Surfaces reliées à une fosse"},{"$f":"IF('Grunddaten-Données de base'!$D$9=\"dt.\",Texte!A117,Texte!B117)","v":"Eau dans la fosse"},{"$f":"IF('Grunddaten-Données de base'!$D$9=\"dt.\",Texte!A118,Texte!B118)","v":"Total lisier (m3 / an)"},null,{"$f":"IF('Grunddaten-Données de base'!$D$9=\"dt.\",Texte!A45,Texte!B45)","v":"Nstock"},"P2O5","K2O","Mg"]
[{"$f":"IF('Grunddaten-Données de base'!$D$9=\"dt.\",Texte!A9,Texte!B9)","v":"Fosse 1"},{"$f":"'Rindvieh-Bovins'!Q24+'Schweine-Porcs'!Q28","v":0},{"$f":"'Rindvieh-Bovins'!R24+'Schweine-Porcs'!R28","v":0},{"$f":"'Rindvieh-Bovins'!S24+'Schweine-Porcs'!S28","v":0},{"$f":"'Rindvieh-Bovins'!T24+'Schweine-Porcs'!T28","v":0},null,null,null,{"$f":"'Rindvieh-Bovins'!$AQ$24+'Schweine-Porcs'!$AB$28","v":0},{"$f":"'Oberflächen-Surfaces'!D29","v":0},{"$f":"' Wasser-Eau'!J32","v":0},{"$f":"I20+J20+K20","v":0},null,{"$f":"B20/IF($L20=0,1,$L20)","v":0},{"$f":"C20/IF($L20=0,1,$L20)","v":0},{"$f":"D20/IF($L20=0,1,$L20)","v":0},{"$f":"E20/IF($L20=0,1,$L20)","v":0},null,{"$f":"IF('Grunddaten-Données de base'!$D$9=\"dt.\",IF(' Wasser-Eau'!J25>0,IF(' Wasser-Eau'!K25=\"01 Gülle Grube 1\",\"Achtung! Diese Gülle enthält Haushaltabwasser! Darf nicht abgegeben werden.\",\"\"),\"\"),IF(' Wasser-Eau'!J25>0,IF(' Wasser-Eau'!K25=\"01 Fosse 1\",\"Attention! Ce lisier contient des eaux usées du ménage! Ne doit pas être exporté.\",\"\"),\"\"))","v":""}]
[{"$f":"IF('Grunddaten-Données de base'!$D$9=\"dt.\",Texte!A10,Texte!B10)","v":"Fosse 2"},{"$f":"'Rindvieh-Bovins'!Q25+'Schweine-Porcs'!Q29","v":0},{"$f":"'Rindvieh-Bovins'!R25+'Schweine-Porcs'!R29","v":0},{"$f":"'Rindvieh-Bovins'!S25+'Schweine-Porcs'!S29","v":0},{"$f":"'Rindvieh-Bovins'!T25+'Schweine-Porcs'!T29","v":0},null,null,null,{"$f":"'Rindvieh-Bovins'!$AQ$25+'Schweine-Porcs'!$AB$29","v":0},{"$f":"'Oberflächen-Surfaces'!D30","v":0},{"$f":"' Wasser-Eau'!J33","v":0},{"$f":"I21+J21+K21","v":0},null,{"$f":"B21/IF($L21=0,1,$L21)","v":0},{"$f":"C21/IF($L21=0,1,$L21)","v":0},{"$f":"D21/IF($L21=0,1,$L21)","v":0},{"$f":"E21/IF($L21=0,1,$L21)","v":0},null,{"$f":"IF(' Wasser-Eau'!J25>0,IF(' Wasser-Eau'!K25=\"02 Gülle Grube 2\",\"Achtung! Diese Gülle enthält Haushaltabwasser! Darf nicht abgegeben werden.\",\"\"),\"\")","v":""}]
[{"$f":"IF('Grunddaten-Données de base'!$D$9=\"dt.\",Texte!A11,Texte!B11)","v":"Fosse 3"},{"$f":"'Rindvieh-Bovins'!Q26+'Schweine-Porcs'!Q30","v":0},{"$f":"'Rindvieh-Bovins'!R26+'Schweine-Porcs'!R30","v":0},{"$f":"'Rindvieh-Bovins'!S26+'Schweine-Porcs'!S30","v":0},{"$f":"'Rindvieh-Bovins'!T26+'Schweine-Porcs'!T30","v":0},null,null,null,{"$f":"'Rindvieh-Bovins'!$AQ$26+'Schweine-Porcs'!$AB$30","v":0},{"$f":"'Oberflächen-Surfaces'!D31","v":0},{"$f":"' Wasser-Eau'!J34","v":0},{"$f":"I22+J22+K22","v":0},null,0,0,0,0,null,{"$f":"IF(' Wasser-Eau'!J25>0,IF(' Wasser-Eau'!K25=\"03 Gülle Grube 3\",\"Achtung! Diese Gülle enthält Haushaltabwasser! Darf nicht abgegeben werden.\",\"\"),\"\")","v":""}]
[]
[{"$f":"IF('Grunddaten-Données de base'!$D$9=\"dt.\",Texte!A53,Texte!B53)","v":"Fumier"},null,null,null,null,null,null,null,null,null,null,null,null,{"$f":"IF('Grunddaten-Données de base'!$D$9=\"dt.\",Texte!A120,Texte!B120)","v":"Teneurs en kg / t"}]
[null,{"$f":"IF('Grunddaten-Données de base'!$D$9=\"dt.\",Texte!A45,Texte!B45)","v":"Nstock"},"P2O5","K2O","Mg",null,null,null,null,null,null,{"$f":"IF('Grunddaten-Données de base'!$D$9=\"dt.\",Texte!A119,Texte!B119)","v":"Total fumier (t / an)"},null,{"$f":"IF('Grunddaten-Données de base'!$D$9=\"dt.\",Texte!A45,Texte!B45)","v":"Nstock"},"P2O5","K2O","Mg"]
[{"$f":"IF('Grunddaten-Données de base'!$D$9=\"dt.\",Texte!A12,Texte!B12)","v":"Fumière 1"},{"$f":"'Rindvieh-Bovins'!Q29+'A. RF-Verzehrer-A.a.cons. du FG'!M27+'Schweine-Porcs'!Q33+'Geflügel-Volaille'!O24","v":0},{"$f":"'Rindvieh-Bovins'!R29+'A. RF-Verzehrer-A.a.cons. du FG'!N27+'Schweine-Porcs'!R33+'Geflügel-Volaille'!P24","v":0},{"$f":"'Rindvieh-Bovins'!S29+'A. RF-Verzehrer-A.a.cons. du FG'!O27+'Schweine-Porcs'!S33+'Geflügel-Volaille'!Q24","v":0},{"$f":"'Rindvieh-Bovins'!T29+'A. RF-Verzehrer-A.a.cons. du FG'!P27+'Schweine-Porcs'!T33+'Geflügel-Volaille'!R24","v":0},null,null,null,null,null,null,{"$f":"'Rindvieh-Bovins'!AQ29+'A. RF-Verzehrer-A.a.cons. du FG'!V27+'Schweine-Porcs'!AE33+'Geflügel-Volaille'!AC24","v":0},null,{"$f":"B26/IF($L26=0,1,$L26)","v":0},{"$f":"C26/IF($L26=0,1,$L26)","v":0},{"$f":"D26/IF($L26=0,1,$L26)","v":0},{"$f":"E26/IF($L26=0,1,$L26)","v":0}]
[{"$f":"IF('Grunddaten-Données de base'!$D$9=\"dt.\",Texte!A13,Texte!B13)","v":"Fumière 2"},{"$f":"'Rindvieh-Bovins'!Q30+'A. RF-Verzehrer-A.a.cons. du FG'!M28+'Schweine-Porcs'!Q34+'Geflügel-Volaille'!O25","v":0},{"$f":"'Rindvieh-Bovins'!R30+'A. RF-Verzehrer-A.a.cons. du FG'!N28+'Schweine-Porcs'!R34+'Geflügel-Volaille'!P25","v":0},{"$f":"'Rindvieh-Bovins'!S30+'A. RF-Verzehrer-A.a.cons. du FG'!O28+'Schweine-Porcs'!S34+'Geflügel-Volaille'!Q25","v":0},{"$f":"'Rindvieh-Bovins'!T30+'A. RF-Verzehrer-A.a.cons. du FG'!P28+'Schweine-Porcs'!T34+'Geflügel-Volaille'!R25","v":0},null,null,null,null,null,null,{"$f":"'Rindvieh-Bovins'!AQ30+'A. RF-Verzehrer-A.a.cons. du FG'!V28+'Schweine-Porcs'!AE34+'Geflügel-Volaille'!AC25","v":0},null,{"$f":"B27/IF($L27=0,1,$L27)","v":0},{"$f":"C27/IF($L27=0,1,$L27)","v":0},{"$f":"D27/IF($L27=0,1,$L27)","v":0},{"$f":"E27/IF($L27=0,1,$L27)","v":0}]
[{"$f":"IF('Grunddaten-Données de base'!$D$9=\"dt.\",Texte!A13,Texte!B13)","v":"Fumière 2"},{"$f":"'Rindvieh-Bovins'!Q31+'A. RF-Verzehrer-A.a.cons. du FG'!M29+'Schweine-Porcs'!Q35+'Geflügel-Volaille'!O26","v":0},{"$f":"'Rindvieh-Bovins'!R31+'A. RF-Verzehrer-A.a.cons. du FG'!N29+'Schweine-Porcs'!R35+'Geflügel-Volaille'!P26","v":0},{"$f":"'Rindvieh-Bovins'!S31+'A. RF-Verzehrer-A.a.cons. du FG'!O29+'Schweine-Porcs'!S35+'Geflügel-Volaille'!Q26","v":0},{"$f":"'Rindvieh-Bovins'!T31+'A. RF-Verzehrer-A.a.cons. du FG'!P29+'Schweine-Porcs'!T35+'Geflügel-Volaille'!R26","v":0},null,null,null,null,null,null,{"$f":"'Rindvieh-Bovins'!AQ31+'A. RF-Verzehrer-A.a.cons. du FG'!V29+'Schweine-Porcs'!AE35+'Geflügel-Volaille'!AC26","v":0},null,{"$f":"B28/IF($L28=0,1,$L28)","v":0},{"$f":"C28/IF($L28=0,1,$L28)","v":0},0,0]
[]
[]
[null,null,null,null,null,null,null,null,null,null,null,null,null,{"$f":"IF('Grunddaten-Données de base'!$D$9=\"dt.\",Texte!A123,Texte!B123)","v":"Imprimer les résultats"}]

{"sheet":"Tierkategorien_GRUD","index":9,"n_rows":71,"n_cols":19,"rows_kept":71,"cut":false,"hidden":true,"merged":[[2,8,2,10],[2,11,2,12]]}
["Tierart Nutzungsrichtung",null,"NS-Anfall",null,null,null,null,"Hofdüngeranfall",null,null,null,null,null,null,null,"Zuteilung (für Andere Raufutterverzehrer und Geflügel)","Catégorie d'animaux"]
[null,null,null,null,null,null,null,null,null,null,null,null,null,null,null,null,null,null,"Impex zugelassen ?"]
[null,null,null,null,null,null,null,"nur Gülle","Gülle und Mist",null,null,"nur Mist",null,null,"GVE"]
["Raufutterverzehrend","Einheit","Nges","P2O5","K2O","Mg",null,"Gülle","Stroheinsatz","Gülle kotarm  ","Mist","Stroheinsatz","Mist",null,"Faktor",null,"Consommnat du fourage grossier","Unité"]
[null,null,null,null,null,null,null,"m3","dt/Jahr","m3","t","dt/Jahr","t"]
[]
["01 Milchkuh mit 7500 kg Jahresleistung","Stück",95.2,39,172,14,null,23,6.8,11,8.9,30,21,null,1,null,"01 Vache laitière avec 7500 kg de lait","pièce"]
["02 Ausmastkuh","Platz",79.48,30,155,10.8,null,19.2,6.8,9.1999999999999993,7.4,30,17.5,null,1,null,"02 Vache à l'engrais","pièce"]
["03 Galtkuh","Platz",68.430000000000007,28.7,128.80000000000001,8.4,null,18.399999999999999,6.8,8.8000000000000007,7.1,30,16.8,null,1,null,"03 Vache tarie","pièce"]
["04 Mutterkuh schwer","Stück",76,31,158,10,null,19,5,9.4,7.6,25,18,null,0.8,null,"04 Vache mère lourde","pièce"]
["05 Mutterkuh mittelschwer","Stück",68,28,141,9,null,17,5,8.6999999999999993,6.7,25,16,null,0.8,null,"05 Vache mère mi-lourde","pièce"]
["06 Mutterkuh leicht","Stück",57.6,24,118,8,null,15,5,7,5.7,25,13,null,0.8,null,"06 Vache mère légère","pièce"]
["07 Jungvieh <160 Tage","Stück",19.55,5,22.9,1.3,null,3.8,1.4,1.9,1.4,5.8,3.6,null,0.13,null,"07 Jeune bétail < 160 jours","place"]
["08 Jungvieh 160-365 Tage","Platz",26.35,12,51.9,6.1,null,5.7,1.6,2.8,2.5,10,5.5,null,0.33,null,"08 Jeune bétail 160 - 365 jours","place"]
["09 Jungvieh 1- bis 2-jährig","Platz",36.130000000000003,14,62.5,5.5,null,8,2.5,4,3.2,12,7.6,null,0.4,null,"09 Jeune bétail 1 -2 ans","place"]
["10 Jungvieh über 2-jährig","Platz",46.75,20,75,7,null,12,3.5,5.4,4.4000000000000004,16,10,null,0.6,null,"10 Jeune béail > 2ans ","place"]
["11 Mastkälberplatz, 60-220 kg","Platz",15.04,6.7,13.3,0.9,null,null,null,null,null,4.2,3.2,null,0.1,null,"11 Place de veau d'engraissement, 60-220 kg","place"]
["12 Mutterkuhkalb < 160 d","Platz",17.2,7.5,18.100000000000001,0.9,null,3.8,1.4,1.9,1.4,5.8,3.6,null,0.13,null,"12 Veau de vache mère <160 j.","place"]
["13 Mutterkuhkalb > 160 d, leicht (<200kg SG)","Platz",31.84,12.3,61.3,3.5,null,6,1.7,2.9,2.4,4.3,5.5,null,0.33,null,"13 Veau de vache mère, léger (<200 kg)","place"]
["14 Mutterkuhkalb > 160 d, mittel (200-250 kg SG)","Platz",37.04,13.9,66.3,3.9,null,6,1.7,2.9,2.4,4.3,5.5,null,0.33,null,"14 Veau de vache mère, moyen (200-250 kg)","place"]
["15 Mutterkuhkalb > 160 d, schwer (>200 kg SG)","Platz",41.92,15.3,70,4.2,null,6,1.7,2.9,2.4,4.3,5.5,null,0.33,null,"15 Veau de vache mère, lourd (>200 kg)","place"]
["16 Rindviehmast, < 160 Tage","Platz",18.079999999999998,8,14.6,3.4,null,4.3,null,null,null,10,4,null,0.13,null,"16 Engraissement bovin < 160 j.","place"]
["17 Rindviehmast,  >160 Tage","Platz",35.68,13.4,36.200000000000003,5.8,null,10.5,null,null,null,17.5,9.5,null,0.17,null,"17 Engraissement bovin > 160 j.","place"]
["18 Rindvieh, Weidemast > 160 d","Platz",36,18,65,5,null,9.6,1.3,2,1.6,15,8.6999999999999993,null,0.33,null,"18 Engraissement à la pâture ","place"]
["19 Zuchtstier ","Stück",42.5,18,85,5,null,18.399999999999999,3.5,8.8000000000000007,7.1,16,16.8,null,1,null,"19 Taureau d'élevage > 160 j","pièce "]
[]
["01 Pferde (>148 cm WH), < 180 d","Platz",19.600000000000001,9,26,1.6,null,null,null,null,null,15,10,null,0.3,"Pferdeartige","01 Chevaux (>148 cm HG), < 180 j","place"]
["02 Pferde (>148 cm WH), > 180 d","Platz",30.1,21,72,4.5,null,null,null,null,null,29,12,null,0.5,"Pferdeartige","02 Chevaux (>148 cm HG), > 180 j","place"]
["03 Ponys, Kleinpferde und Esel","Platz",10.99,8.1999999999999993,26.8,1.8,null,null,null,null,null,null,3.5,null,0.25,"Pferdeartige","03 Ponys, petits chevaux et ânes","place"]
["04 Maultiere, Maulesel < 180 d","Platz",9.8000000000000007,8.1999999999999993,16,1,null,null,null,null,null,7.5,5.6,null,0.15,"Pferdeartige","04 Mulets < 108 j","place"]
["05 Maultiere, Maulesel > 180 d","Platz",18.2,13,43,3,null,null,null,null,null,7.5,5.6,null,0.25,"Pferdeartige","05 Mulets > 108 j"]
[]
["07 Ziegenplatz","Platz",14.45,5.7,24,1.5,null,null,null,null,null,null,1.7,null,0.2,"Ziegen","07 Chèvres (places)","place"]
[]
["09 Schafplatz","Platz",12.75,5.3,22.5,2,null,null,null,null,null,null,1.7,null,0.17,"Schafe","09 Moutons (places)","place"]
["10 Milchschafplatz","Platz",17.850000000000001,9,32,3,null,null,null,null,null,null,2.2999999999999998,null,0.25,"Milchschafe","10 Moutons à lait (place)","place"]
["11 Weidemastlamm ","Stück",1.79,0.8,3.5,0.3,null,null,null,null,null,null,0.3,null,0.17,"Schafe","11 Moutons engraissements à la pâture","pièce"]
[]
["12 Bison > 3-jährig","Platz",51,30,110,6,null,null,null,null,null,null,9.6,null,null,"Bisons","12 Bisons > 3 ans","place"]
["13 Bison < 3-jährig","Platz",17,10,45,2.5,null,null,null,null,null,null,4.4000000000000004,null,null,"Bisons","13 Bison < 3 ans","place"]
["14 Damhirsch jeden Alters","Platz",17,7,29,2.4,null,null,null,null,null,null,1.6,null,null,"Hirsche","14 Daim de tout âge","place"]
["15 Rothirsch jeden Alters","Platz",34,14,58,4.8,null,null,null,null,null,null,1.6,null,null,"Hirsche","15 Cerfs de tout âge","place"]
["16 Lama > 2-jährig","Platz",15.45,6.5,28,1.7,null,null,null,null,null,null,1.6,null,null,"Lama","16 Lama > 2 ans","place"]
["17 Lama < 2-jährig","Platz",9.35,4,15,1,null,null,null,null,null,null,1.6,null,null,"Lama","17 Lama < 2 ans","place"]
["18 Alpaka > 2-jährig","Platz",9.35,4,18,1,null,null,null,null,null,null,1.6,null,null,"Alpaka","18 Alpaka > 2 ans","place"]
["19 Alpaka < 2-jährig","Platz",5.95,2.5,9,0.5,null,null,null,null,null,null,1.6,null,null,"Alpaka","19 Alpaka < 2 ans","place"]
[]
["20 Produzierende Zippe","Platz",2.21,1.5,2.5,0,null,null,null,null,null,null,3.4000000000000002E-2,null,null,"Kaninchen","20 Lapine productive","place","ja"]
["21 Kaninchen Jungtiere > 35 d","100 Pl.",67.150000000000006,48,75,0,null,null,null,null,null,null,1.1000000000000001,null,null,"Kaninchen","21 Jeunes lapins > 35 j","100 pl.","ja"]
[]
[]
[]
["Schweine",null,null,null,null,null,null,null,null,null,null,null,null,null,null,null,"Porcs"]
["01 Mastschweineplatz (MSP) / Remonte","Platz",10.4,5.3,5.8,1.4,null,1.6,null,null,null,2.6,1.2,null,0.17,null,"01 Porcs d'engraissement, remonte","place","ja"]
["02 Zuchtschweineplatz (ZSP)  inkl. Ferkel < 25 kg","Platz",35.200000000000003,21,23,4.2,null,7.5,null,null,null,8,4.2,null,0.55000000000000004,null,"02 Porcs d'élevage avec porcelets < 25 kg","place","ja"]
["03 Zuchteber","Platz",14.4,10,9.6,1.5,null,5.5,null,null,null,2,2.2999999999999998,null,0.25,null,"03 Verrat","place","ja"]
["04 Säugende Zuchtsau","Platz",39.200000000000003,23,18,4.4000000000000004,null,8.1999999999999993,null,null,null,10,3.5,null,0.55000000000000004,null,"04 Truie allaitantes","place","ja"]
["05 Galtsau","Platz",19.600000000000001,15,16,2.2999999999999998,null,5.5,null,null,null,6,2.2999999999999998,null,0.26,null,"05 Truies en gestation","place","ja"]
["06 Ferkel abgesetzt bis 25 kg","Platz",3.12,1.68,2.2999999999999998,0.5,null,0.6,null,null,null,1,0.3,null,0.06,null,"06 Porcelets sevrés < 25 kg","place","ja"]
[]
[]
[]
["Geflügel",null,null,null,null,null,null,null,null,null,null,null,null,null,null,null,"Volaille"]
["01 Legehennen (Kotband)","100 Pl.",56,46,30,6.5,null,null,null,2.7,null,null,null,null,1,"Legehennen","01 Poules pondeuses (ruban)","100 pl.","nein"]
["02 Legehennen (Kotgrube / Bodenhaltung)","100 Pl.",40,46,30,6.5,null,null,null,1.5,null,null,null,null,1,"Legehennen","02 Poules pondeuses (fosse / élevage au sol)","100 pl.","nein"]
["03 Junghennen (Kotband)","100 Pl.",7.98,7.6,5.3,1.1100000000000001,null,null,null,1,null,null,null,null,0.4,"Legehennen","03 Jeunes poules (ruban)","100 pl.","ja"]
["04 Junghennen (Kotgrube / Bodenhaltung)","100 Pl. ",5.7,7.6,5.3,1.1100000000000001,null,null,null,0.6,null,null,null,null,0.4,"Legehennen","04 Jeunes poules (fosse / élevage au sol)","100 pl.","ja"]
["05 Mastpoulets","100 Pl.",21.6,13,22,4.4000000000000004,null,null,null,0.8,null,null,null,null,0.4,"Mastgeflügel","05 Poulets d'engraissement","100 pl.","ja"]
["06 Masttruten","100 Pl.",84,70,40,18,null,null,null,3,null,null,null,null,1.5,"Mastgeflügel","06 Dindes d'engraissement","100 pl.","ja"]
["07 Truten-Vormast","100 Pl.",24,20.6,12,5,null,null,null,0.86,null,null,null,null,0.5,"Mastgeflügel","07 Dindes, pré-engraissement","100 pl.","ja"]
["08 Truten-Ausmast","100 Pl.",138,114.6,70,29,null,null,null,4.93,null,null,null,null,2.8,"Mastgeflügel","08 Dindes, finission","100 pl.","ja"]

{"sheet":"Wasser_GRUD","index":10,"n_rows":31,"n_cols":4,"rows_kept":31,"cut":false,"hidden":true,"merged":[]}
["Abwassermengen:"]
[null,"Einheit"]
["Stallreinigung und Tierpflege"]
["01 Stallreinigung Tierpflege ","GVE",7,"m3/Jahr"]
["02 Betreiben einer Schwemmentmistung","GVE",6,"m3/Jahr"]
["Schweine: Stallreinigung Tierpflege ","MSP",0.5,"m3/Jahr"]
["Reinigung vonLegehennenställen ","1000 LHP",2.5,"m3/Jahr"]
["Reinigung von Mastgeflügelställen","1000 MPP",5,"m3/Jahr"]
["Pferde","GVE",2.2999999999999998,"m3/Jahr"]
["Milchschafe","GVE",0.5,"m3/Jahr"]
["Milchziegen","GVE",0.5,"m3/Jahr"]
["Kaninchen","GVE",0.5,"m3/Jahr"]
[]
[]
["Mistplatz, Laufhof, Auslauf: befestigt + nicht überdacht\n","m2 und 1000 mm\nNiederschlag",1.2,"m3/Jahr\n"]
[]
["Flachsilo: mit Entwässerung über Silosaftrinne\n","m2 und 1000 mm\nNiederschlag",0.3,"m3/Jahr\n"]
[]
["Reinigung von:"]
["01 Milchkammer","Melkeineheit (ME)",6.6,"m3/Jahr"]
["02 Kühltank","Tankvolumen (L)",1.7999999999999999E-2,"m3/Jahr"]
["03 Eimermelkanlage","ME",42,"m3/Jahr"]
["04 Rohrmelkanlage (Anbindestall oder Melkstand)","ME",54,"m3/Jahr"]
["05 Standplätze im Melkstand","Standplatz (S)",6,"m3/Jahr"]
["06 Automatisches Melksystem (AMS)","Einheit",300,"m3/Jahr"]
[]
[]
["Haushaltabwasser"]
["Normale Verhältnisse (Dusche/Bad, WC, Waschmachine)",null,null,60]
["Einfache sanitäre Einrichtungen",null,null,42]
["Sonderfälle mit dauernd deutlich geringerem Abwasseranfall",null,null,24]

{"sheet":"Texte","index":11,"n_rows":123,"n_cols":2,"rows_kept":123,"cut":false,"hidden":true,"merged":[]}
["Text_dt","Text_fr"]
[]
["Ungedeckte Oberflächen mit Entwässerung in Güllegruben","Surfaces non-couvertes reliées aux fosses"]
["Güllegruben inkl. Schwemmkanäle (ungedeckt)","Fosses incl. canivaux (non-couvertes)"]
["Mistlager (ungedeckt)","Fumières (non-couvertes)"]
["Silos ungedeckt (in Güllegrube entwässert)","Silos non-couverts (reliés à une fosse)"]
["Laufhöfe ungedeckt (in Güllegrube entwässert)","Courettes non-couvertes (reliées à une fosse)"]
["Waschplätze ungedeckt (in Güllegrube entwässert)","Places de lavage (reliées à une fosse)"]
["Güllegrube 1","Fosse 1"]
["Güllegrube 2 ","Fosse 2"]
["Güllegrube 3","Fosse 3"]
["Mistplatz 1","Fumière 1"]
["Mistplatz 2","Fumière 2"]
["Mistplatz 3","Fumière 3"]
["Silo 1 (ungedeckter Teil)","Silo 1 (partie non-couverte)"]
["Silo 2 (ungedeckter Teil)","Silo 2 (partie non-couverte)"]
["Silo 3 (ungedeckter Teil)","Silo 3 (partie non-couverte)"]
["Laufhof 1 (ungedeckter Teil)","Courette 1 (partie non couverte)"]
["Laufhof 2 (ungedeckter Teil)","Courette 2 (partie non couverte)"]
["Laufhof 3 (ungedeckter Teil)","Courette 3 (partie non couverte)"]
["Waschplatz 1  (ungedeckter Teil)","Place de lavage 1 (partie non-couverte)"]
["Waschplatz 2  (ungedeckter Teil)","Place de lavage 2 (partie non-couverte)"]
["Waschplatz 3  (ungedeckter Teil)","Place de lavage 3 (partie non-couverte)"]
["Fläche (m2)","Surface (m2)"]
["Fläche ungedeckt (m2)","Surface non couverte (m2)"]
["abgedeckt","couvert"]
["Wasser (m3 / Jahr)","Eau (m3 / année)"]
["01 Gülle Grube 1","01 Fosse 1"]
["02 Gülle Grube 2","02 Fosse 2"]
["03 Gülle Grube 3","03 Fosse 3"]
["Entwässerung in Güllegrube ..","Relié à la fosse .."]
["Eigene Bezeichnung (fakultativ)","Propre désignation (facultative)"]
["Nein","Non"]
[]
["Kategorie","Catégorie"]
["Rindvieh","Bovins"]
["Durchschnittliche Jahresmilchleistung","Moyenne annuelle de la production laitière"]
["Anzahl","Nombre"]
["Einheit","Unité"]
["Auslauf / Weide","Sorties / pâturage"]
["Tage / Jahr","Jours / an"]
["Std. / Tag","h / jour"]
["Anzahl korr.","Nbre corrigé"]
["Nährstoffanfall / Einheit","Prod. d'éléments nutr. / unité"]
["Nges","Nstock"]
["Total NS-Anfall","Total prod. d'éléments nutr."]
["Nährstoffanfall gemäss Aufstallungssystem","Prod. d'éléments nutr. selon système de stabulation"]
["Mengenverhältnis Mist / Gülle","Proportion fumier / lisier"]
["Gülle","Lisier"]
["Mist / Gülle","Fumier / lisier"]
["Gülle kotarm (m3)","Lisier clair (m3)"]
["Mist (t)","Fumier (t)"]
["Mist","Fumier"]
["Gülle (m3)","Lisier (m3)"]
["Vollgülle (m3)","Lisier complet (m3)"]
["Güllegrube","Fosse à lisier"]
["Gülle kotarm (m3)","Lisier clair (m3)"]
["Mistplatz","Fumière"]
["Total NS und Hofdünger","Total d'éléments nutr. et engrais de ferme"]
["Total","Total"]
[]
["Andere Raufutterverzehrer","Autres animaux consommant des fourrages grossiers"]
[]
["Schweine","Porcs"]
["Resultat lineare Korrektur (LK)","Résultat de la correction linéaire (CL)"]
["Hofdüngeranfall gemäss Aufstallungssystem","Prod. d'engrais organiques selon système de stabulation"]
["Resultat Impex","Résultat Impex"]
[]
["Geflügel","Volaille"]
["Resultat lineare Korrektur bzw. Impex","Résultat de la correction linéaire resp. de l'Impex"]
["Art der Korrektur : lineare Korrektur oder Impex","Type de correction: correction linéaire ou Impex"]
["Wasser für Stallreinigung und Tierpflege","Eau de nettoyage des écuries et soins aux animaux"]
["Stallreinigung und Tierpflege","Nettoyage des écuries et soins aux animaux"]
["Rindvieh: Stallreinigung und Tierpflege","Bovins: Nettoyage des écuries et soins aux animaux"]
["Rindvieh: Betreiben einer Schwemmentmistung","Bovins: Utilisation de canivaux"]
["Schweine: Stallreinigung und Tierpflege","Porcs: Nettoyage des écuries et soins aux animaux"]
["Reinigung von Leghennenställen","Nettoyage du poulialler à poules pondeuses"]
["Reinigung von Mastgeflügelställen","Nettoyage des halles à poulets"]
["Pferde","Chevaux"]
["Milchschafe","Brebis laitiers"]
["Milchziegen","Chèvres traites"]
["Kaninchen","Lapins"]
["Reinigung bei Milchproduktion","Nettoyage en cas de production laitière"]
["01 Milchkammer","01 Chambre à lait"]
["02 Kühltank","02 Tank à lait"]
["03 Eimermelkanlage","03 Système de traite à pot"]
["04 Rohrmelkanlage (Anbindestall oder Melkstand)","04 Système de traite à tuyau (à l'attache ou salle de traite)"]
["05 Standplätze im Melkstand","05 Nombre de places dans la salle de traite"]
["06 Automatisches Melkssystem (AMS)","06 Système de traite automatisé (STA)"]
["Haushaltabwasser","Eaux usées du ménage"]
["Total Wasser","Total eau"]
["Total Wasser pro Güllegrube","Total eau par fosse"]
["GVE","UGB"]
["MSP","PPE"]
["1000 LHP","1000 PPP"]
["1000 MPP","1000 PPM"]
["m3/Jahr","m3/an"]
["Anzahl Melkeinheit (ME)","Nombre d'unités de traite (UT)"]
["Tankvolumen (in Litern)","Volume du tank (en litres)"]
["Anzahl ME","Nombre UT"]
["Anzahl Standplatz (S)","Nombre de places"]
["Anzahl Einheiten","Nombre d'unités"]
["m3/Einheit","m3/unité"]
[]
["Betrieb","Exploitation"]
["Kant. Betriebsnummer","No cantonal d'exploitation"]
["Name des Betriebs","Nom de l'exploitation"]
["PLZ / Ort","NP / Lieu"]
["Hofdüngergehalte in kg/m3 bzw. kg/t (für Uebertrag in HODUFLU)","Teneurs des engrais de ferme en kg/m3 resp.kg/t (pour report sur HODUFLU)"]
["Tierhaltung","Détention des animaux"]
["Nährstofanfall","Apport en éléments nutritifs"]
["Gülleanfall (m3)","Prod. de lisier (m3)"]
["Mistanfall (t)","Prod. de fumier (t)"]
["Gehalte in kg / m3","Teneurs en kg / m3"]
["m3 Gülle unverdünnt","m3 de lisier non-dilué"]
["Oberflächen mit Entwässerung in Güllegrube","Surfaces reliées à une fosse"]
["Wasser in Güllegrube","Eau dans la fosse"]
["Total Gülle (m3 / Jahr)","Total lisier (m3 / an)"]
["Total Mist (t / Jahr)","Total fumier (t / an)"]
["Gehalte in kg / t","Teneurs en kg / t"]
["Bezeichnung","Désignation"]
["Daten der Tierhaltung drucken","Imprimer les données de la détention des animaux"]
["Resultate drucken","Imprimer les résultats"]

{"sheet":"Auswahl","index":12,"n_rows":38,"n_cols":2,"rows_kept":38,"cut":false,"hidden":true,"merged":[]}
["01 Gülle Grube 1","01 Fosse 1"]
["02 Gülle Grube 2","02 Fosse 2"]
["03 Gülle Grube 3","03 Fosse 3"]
[]
["04 Mistplatz 1","04 Fumière 1"]
["05 Mistplatz 2","05 Fumière 2"]
["06 Mistplatz 3","06 Fumière 3"]
[]
["01 nur Gülle","01 uniquement lisier"]
["02 Mist / Gülle","02 Fumier / Lisier"]
["03 nur Mist","03 uniquement fumier"]
[]
["01 Mist/Gülle=25/75","01 Fumier/lisier=25/75"]
["02 Mist/Gülle=50/50","02 Fumier/lisier=50/50"]
["03 Mist/Gülle=75/25","03 Fumier/lisier=75/25"]
[]
["01 nur Gülle","01 uniquement lisier"]
["02 nur Mist","02 uniquement fumier"]
[]
["01 Band","01 Tapis à fumier"]
["02 Kotgrube / Bodenhaltung","02 Fosse / élevage au sol"]
[]
[]
["mit Impex","avec Impex"]
["Standard-Werte","Valeurs standards"]
["Impex nicht zugelassen","Impex pas admis"]
[]
["Ja","Oui"]
["Nein","Non"]
[]
["Normale Verhältnisse (Dusche/Bad, WC, Waschmachine)","Conditions normales (Douche/bain, WC, machine à laver)"]
["Einfache sanitäre Einrichtungen","Installation sanitaire simple"]
["Sonderfälle mit dauernd deutlich geringerem Abwasseranfall","Cas spéciaux avec durablement moins d'eau usée"]
[]
["Lineare Korrektur","Correction linéaire"]
["Standard-Werte","Valeurs standards"]
["Impex","Impex"]
["Standard-Werte","Valeurs standards"]